Workbook

Sheet proteinGroupsFile ESCs
A1: Protein IDs | B1: Majority protein IDs | C1: Peptide counts (all) | D1: Peptide counts (razor+unique) | E1: Peptide counts (unique) | F1: Protein names | G1: Gene names | H1: Fasta headers | I1: Number of proteins | J1: Peptides | K1: Razor + unique peptides | L1: Unique peptides | M1: Peptides DKO_FACS_A_01 | N1: Peptides DKO_FACS_A_02 | O1: Peptides DKO_FACS_B_01 | P1: Peptides DKO_FACS_B_02 | Q1: Peptides DKO_FACS_C_01 | R1: Peptides DKO_FACS_C_02 | S1: Peptides DKO_LP_A_01 | T1: Peptides DKO_LP_A_02 | U1: Peptides DKO_LP_B_01 | V1: Peptides DKO_LP_B_02 | W1: Peptides DKO_LP_C_01 | X1: Peptides DKO_LP_C_02 | Y1: Peptides WT_FACS_A_01 | Z1: Peptides WT_FACS_A_02 | AA1: Peptides WT_FACS_B_01 | AB1: Peptides WT_FACS_B_02 | AC1: Peptides WT_FACS_C_01 | AD1: Peptides WT_FACS_C_02 | AE1: Peptides WT_LP_A_01 | AF1: Peptides WT_LP_A_02 | AG1: Peptides WT_LP_B_01 | AH1: Peptides WT_LP_B_02 | AI1: Peptides WT_LP_C_01 | AJ1: Peptides WT_LP_C_02 | AK1: Razor + unique peptides DKO_FACS_A_01 | AL1: Razor + unique peptides DKO_FACS_A_02 | AM1: Razor + unique peptides DKO_FACS_B_01 | AN1: Razor + unique peptides DKO_FACS_B_02 | AO1: Razor + unique peptides DKO_FACS_C_01 | AP1: Razor + unique peptides DKO_FACS_C_02 | AQ1: Razor + unique peptides DKO_LP_A_01 | AR1: Razor + unique peptides DKO_LP_A_02 | AS1: Razor + unique peptides DKO_LP_B_01 | AT1: Razor + unique peptides DKO_LP_B_02 | AU1: Razor + unique peptides DKO_LP_C_01 | AV1: Razor + unique peptides DKO_LP_C_02 | AW1: Razor + unique peptides WT_FACS_A_01 | AX1: Razor + unique peptides WT_FACS_A_02 | AY1: Razor + unique peptides WT_FACS_B_01 | AZ1: Razor + unique peptides WT_FACS_B_02 | BA1: Razor + unique peptides WT_FACS_C_01 | BB1: Razor + unique peptides WT_FACS_C_02 | BC1: Razor + unique peptides WT_LP_A_01 | BD1: Razor + unique peptides WT_LP_A_02 | BE1: Razor + unique peptides WT_LP_B_01 | BF1: Razor + unique peptides WT_LP_B_02 | BG1: Razor + unique peptides WT_LP_C_01 | BH1: Razor + unique peptides WT_LP_C_02 | BI1: Unique peptides DKO_FACS_A_01 | BJ1: Unique peptides DKO_FACS_A_02 | BK1: Unique peptides DKO_FACS_B_01 | BL1: Unique peptides DKO_FACS_B_02 | BM1: Unique peptides DKO_FACS_C_01 | BN1: Unique peptides DKO_FACS_C_02 | BO1: Unique peptides DKO_LP_A_01 | BP1: Unique peptides DKO_LP_A_02 | BQ1: Unique peptides DKO_LP_B_01 | BR1: Unique peptides DKO_LP_B_02 | BS1: Unique peptides DKO_LP_C_01 | BT1: Unique peptides DKO_LP_C_02 | BU1: Unique peptides WT_FACS_A_01 | BV1: Unique peptides WT_FACS_A_02 | BW1: Unique peptides WT_FACS_B_01 | BX1: Unique peptides WT_FACS_B_02 | BY1: Unique peptides WT_FACS_C_01 | BZ1: Unique peptides WT_FACS_C_02 | CA1: Unique peptides WT_LP_A_01 | CB1: Unique peptides WT_LP_A_02 | CC1: Unique peptides WT_LP_B_01 | CD1: Unique peptides WT_LP_B_02 | CE1: Unique peptides WT_LP_C_01 | CF1: Unique peptides WT_LP_C_02 | CG1: Sequence coverage [%] | CH1: Unique + razor sequence coverage [%] | CI1: Unique sequence coverage [%] | CJ1: Mol. weight [kDa] | CK1: Sequence length | CL1: Sequence lengths | CM1: Q-value | CN1: Score | CO1: Identification type DKO_FACS_A_01 | CP1: Identification type DKO_FACS_A_02 | CQ1: Identification type DKO_FACS_B_01 | CR1: Identification type DKO_FACS_B_02 | CS1: Identification type DKO_FACS_C_01 | CT1: Identification type DKO_FACS_C_02 | CU1: Identification type DKO_LP_A_01 | CV1: Identification type DKO_LP_A_02 | CW1: Identification type DKO_LP_B_01 | CX1: Identification type DKO_LP_B_02 | CY1: Identification type DKO_LP_C_01 | CZ1: Identification type DKO_LP_C_02 | DA1: Identification type WT_FACS_A_01 | DB1: Identification type WT_FACS_A_02 | DC1: Identification type WT_FACS_B_01 | DD1: Identification type WT_FACS_B_02 | DE1: Identification type WT_FACS_C_01 | DF1: Identification type WT_FACS_C_02 | DG1: Identification type WT_LP_A_01 | DH1: Identification type WT_LP_A_02 | DI1: Identification type WT_LP_B_01 | DJ1: Identification type WT_LP_B_02 | DK1: Identification type WT_LP_C_01 | DL1: Identification type WT_LP_C_02 | DM1: Sequence coverage DKO_FACS_A_01 [%] | DN1: Sequence coverage DKO_FACS_A_02 [%] | DO1: Sequence coverage DKO_FACS_B_01 [%] | DP1: Sequence coverage DKO_FACS_B_02 [%] | DQ1: Sequence coverage DKO_FACS_C_01 [%] | DR1: Sequence coverage DKO_FACS_C_02 [%] | DS1: Sequence coverage DKO_LP_A_01 [%] | DT1: Sequence coverage DKO_LP_A_02 [%] | DU1: Sequence coverage DKO_LP_B_01 [%] | DV1: Sequence coverage DKO_LP_B_02 [%] | DW1: Sequence coverage DKO_LP_C_01 [%] | DX1: Sequence coverage DKO_LP_C_02 [%] | DY1: Sequence coverage WT_FACS_A_01 [%] | DZ1: Sequence coverage WT_FACS_A_02 [%] | EA1: Sequence coverage WT_FACS_B_01 [%] | EB1: Sequence coverage WT_FACS_B_02 [%] | EC1: Sequence coverage WT_FACS_C_01 [%] | ED1: Sequence coverage WT_FACS_C_02 [%] | EE1: Sequence coverage WT_LP_A_01 [%] | EF1: Sequence coverage WT_LP_A_02 [%] | EG1: Sequence coverage WT_LP_B_01 [%] | EH1: Sequence coverage WT_LP_B_02 [%] | EI1: Sequence coverage WT_LP_C_01 [%] | EJ1: Sequence coverage WT_LP_C_02 [%] | EK1: Intensity | EL1: Intensity DKO_FACS_A_01 | EM1: Intensity DKO_FACS_A_02 | EN1: Intensity DKO_FACS_B_01 | EO1: Intensity DKO_FACS_B_02 | EP1: Intensity DKO_FACS_C_01 | EQ1: Intensity DKO_FACS_C_02 | ER1: Intensity DKO_LP_A_01 | ES1: Intensity DKO_LP_A_02 | ET1: Intensity DKO_LP_B_01 | EU1: Intensity DKO_LP_B_02 | EV1: Intensity DKO_LP_C_01 | EW1: Intensity DKO_LP_C_02 | EX1: Intensity WT_FACS_A_01 | EY1: Intensity WT_FACS_A_02 | EZ1: Intensity WT_FACS_B_01 | FA1: Intensity WT_FACS_B_02 | FB1: Intensity WT_FACS_C_01 | FC1: Intensity WT_FACS_C_02 | FD1: Intensity WT_LP_A_01 | FE1: Intensity WT_LP_A_02 | FF1: Intensity WT_LP_B_01 | FG1: Intensity WT_LP_B_02 | FH1: Intensity WT_LP_C_01 | FI1: Intensity WT_LP_C_02 | FJ1: LFQ intensity Suv39h dn_sorted chromosomes1_1 | FK1: LFQ intensity Suv39h dn_sorted chromosomes1_2 | FL1: LFQ intensity Suv39h dn_sorted chromosomes2_1 | FM1: LFQ intensity Suv39h dn_sorted chromosomes2_2 | FN1: LFQ intensity Suv39h dn_sorted chromosomes3_1 | FO1: LFQ intensity Suv39h dn_sorted chromosomes3_2 | FP1: LFQ intensity Suv39h dn_mitotic lysate pellet1_1 | FQ1: LFQ intensity Suv39h dn_mitotic lysate pellet1_2 | FR1: LFQ intensity Suv39h dn_mitotic lysate pellet2_1 | FS1: LFQ intensity Suv39h dn_mitotic lysate pellet2_2 | FT1: LFQ intensity Suv39h dn_mitotic lysate pellet3_1 | FU1: LFQ intensity Suv39h dn_mitotic lysate pellet3_2 | FV1: LFQ intensity WT_sorted chromosomes1_1 | FW1: LFQ intensity WT_WT_sorted chromosomes1_2 | FX1: LFQ intensity WT_sorted chromosomes2_1 | FY1: LFQ intensity WT_sorted chromosomes2_2 | FZ1: LFQ intensity WT_sorted chromosomes3_1 | GA1: LFQ intensity WT_sorted chromosomes3_2 | GB1: LFQ intensity WT_mitotic lysate pellet1_1 | GC1: LFQ intensity WT_mitotic lysate pellet1_2 | GD1: LFQ intensity WT_mitotic lysate pellet2_1 | GE1: LFQ intensity WT_mitotic lysate pellet2_2 | GF1: LFQ intensity WT_mitotic lysate pellet3_1 | GG1: LFQ intensity WT_mitotic lysate pellet3_2 | GH1: MS/MS count DKO_FACS_A_01 | GI1: MS/MS count DKO_FACS_A_02 | GJ1: MS/MS count DKO_FACS_B_01 | GK1: MS/MS count DKO_FACS_B_02 | GL1: MS/MS count DKO_FACS_C_01 | GM1: MS/MS count DKO_FACS_C_02 | GN1: MS/MS count DKO_LP_A_01 | GO1: MS/MS count DKO_LP_A_02 | GP1: MS/MS count DKO_LP_B_01 | GQ1: MS/MS count DKO_LP_B_02 | GR1: MS/MS count DKO_LP_C_01 | GS1: MS/MS count DKO_LP_C_02 | GT1: MS/MS count WT_FACS_A_01 | GU1: MS/MS count WT_FACS_A_02 | GV1: MS/MS count WT_FACS_B_01 | GW1: MS/MS count WT_FACS_B_02 | GX1: MS/MS count WT_FACS_C_01 | GY1: MS/MS count WT_FACS_C_02 | GZ1: MS/MS count WT_LP_A_01 | HA1: MS/MS count WT_LP_A_02 | HB1: MS/MS count WT_LP_B_01 | HC1: MS/MS count WT_LP_B_02 | HD1: MS/MS count WT_LP_C_01 | HE1: MS/MS count WT_LP_C_02 | HF1: MS/MS count | HG1: Only identified by site | HH1: Reverse | HI1: Potential contaminant | HJ1: id | HK1: Peptide IDs | HL1: Peptide is razor | HM1: Mod. peptide IDs | HN1: Evidence IDs | HO1: MS/MS IDs | HP1: Best MS/MS | HQ1: Deamidation (N) site IDs | HR1: Oxidation (M) site IDs | HS1: Deamidation (N) site positions | HT1: Oxidation (M) site positions | HU1: Average LFQ intensity WT mitotic Lysate pellet | HV1: Average LFQ intensity WT sorted chromosomes | HW1: LFQ intensitySuv39h dn mitotic Lysate pellet | HX1: LFQ intensity Suv39h dn sorted chromosomes | HY1: Log2 fold change Suv39h dn vs WT_mitotic Lysate pellet | HZ1: Log2 fold change Suv39h dn vs WT_sorted chromosomes
A2: P63260 | B2: P63260 | C2: 38 | D2: 38 | E2: 1 | F2: Actin, cytoplasmic 2;Actin, cytoplasmic 2, N-terminally processed | G2: Actg1 | H2: sp|P63260|ACTG_MOUSE Actin, cytoplasmic 2 OS=Mus musculus GN=Actg1 PE=1 SV=1 | I2: 1 | J2: 38 | K2: 38 | L2: 1 | M2: 25 | N2: 27 | O2: 26 | P2: 26 | Q2: 25 | R2: 25 | S2: 30 | T2: 34 | U2: 34 | V2: 34 | W2: 33 | X2: 34 | Y2: 26 | Z2: 27 | AA2: 26 | AB2: 28 | AC2: 28 | AD2: 27 | AE2: 34 | AF2: 34 | AG2: 33 | AH2: 34 | AI2: 35 | AJ2: 34 | AK2: 25 | AL2: 27 | AM2: 26 | AN2: 26 | AO2: 25 | AP2: 25 | AQ2: 30 | AR2: 34 | AS2: 34 | AT2: 34 | AU2: 33 | AV2: 34 | AW2: 26 | AX2: 27 | AY2: 26 | AZ2: 28 | BA2: 28 | BB2: 27 | BC2: 34 | BD2: 34 | BE2: 33 | BF2: 34 | BG2: 35 | BH2: 34 | BI2: 1 | BJ2: 1 | BK2: 1 | BL2: 1 | BM2: 1 | BN2: 1 | BO2: 1 | BP2: 1 | BQ2: 1 | BR2: 1 | BS2: 1 | BT2: 1 | BU2: 1 | BV2: 1 | BW2: 1 | BX2: 1 | BY2: 1 | BZ2: 1 | CA2: 1 | CB2: 1 | CC2: 1 | CD2: 1 | CE2: 1 | CF2: 1 | CG2: 90.1 | CH2: 90.1 | CI2: 4.5 | CJ2: 41.792 | CK2: 375 | CL2: 375 | CM2: 0 | CN2: 323.31 | CO2: By MS/MS | CP2: By MS/MS | CQ2: By MS/MS | CR2: By MS/MS | CS2: By MS/MS | CT2: By MS/MS | CU2: By MS/MS | CV2: By MS/MS | CW2: By MS/MS | CX2: By MS/MS | CY2: By MS/MS | CZ2: By MS/MS | DA2: By MS/MS | DB2: By MS/MS | DC2: By MS/MS | DD2: By MS/MS | DE2: By MS/MS | DF2: By MS/MS | DG2: By MS/MS | DH2: By MS/MS | DI2: By MS/MS | DJ2: By MS/MS | DK2: By MS/MS | DL2: By MS/MS | DM2: 85.1 | DN2: 85.9 | DO2: 76.8 | DP2: 84.3 | DQ2: 77.3 | DR2: 85.1 | DS2: 78.9 | DT2: 90.1 | DU2: 90.1 | DV2: 90.1 | DW2: 90.1 | DX2: 81.9 | DY2: 85.6 | DZ2: 84.5 | EA2: 83.7 | EB2: 85.6 | EC2: 85.6 | ED2: 82.7 | EE2: 89.1 | EF2: 89.1 | EG2: 86.9 | EH2: 89.1 | EI2: 89.1 | EJ2: 86.9 | EK2: 5297400000000 | EL2: 10869000000 | EM2: 10574000000 | EN2: 10135000000 | EO2: 11157000000 | EP2: 12287000000 | EQ2: 9782600000 | ER2: 326560000000 | ES2: 377580000000 | ET2: 538340000000 | EU2: 496130000000 | EV2: 216890000000 | EW2: 311560000000 | EX2: 18319000000 | EY2: 17227000000 | EZ2: 20238000000 | FA2: 19487000000 | FB2: 21109000000 | FC2: 19232000000 | FD2: 533960000000 | FE2: 537440000000 | FF2: 438330000000 | FG2: 458180000000 | FH2: 443810000000 | FI2: 438250000000 | FJ2: 206250000000 | FK2: 221900000000 | FL2: 172760000000 | FM2: 202520000000 | FN2: 270060000000 | FO2: 241960000000 | FP2: 358440000000 | FQ2: 293940000000 | FR2: 327450000000 | FS2: 325120000000 | FT2: 296420000000 | FU2: 291200000000 | FV2: 209650000000 | FW2: 209260000000 | FX2: 321870000000 | FY2: 291240000000 | FZ2: 268600000000 | GA2: 253680000000 | GB2: 310770000000 | GC2: 304770000000 | GD2: 378180000000 | GE2: 410670000000 | GF2: 350330000000 | GG2: 350450000000 | GH2: 40 | GI2: 43 | GJ2: 41 | GK2: 49 | GL2: 38 | GM2: 40 | GN2: 83 | GO2: 141 | GP2: 170 | GQ2: 170 | GR2: 111 | GS2: 103 | GT2: 82 | GU2: 79 | GV2: 79 | GW2: 77 | GX2: 81 | GY2: 74 | GZ2: 268 | HA2: 301 | HB2: 265 | HC2: 265 | HD2: 224 | HE2: 254 | HF2: 3078 | HJ2: 1589 | HK2: 2230;6584;6585;7416;8014;10602;11719;11824;11825;13253;13254;15728;17790;17927;17944;24598;30092;30093;31881;31882;31883;34351;34352;35263;37132;37133;37564;40175;40422;40423;50462;56535;56536;66762;66763;70969;72057;80089 | HL2: True;True;True;True;True;True;True;True;True;True;True;True;True;True;True;True;True;True;True;True;True;True;True;True;True;True;True;True;True;True;True;True;True;True;True;True;True;True | HM2: 2440;7313;7314;8223;8885;8886;8887;8888;8889;8890;11769;13004;13005;13119;13120;13121;13122;13123;13124;14754;14755;17461;17462;17463;17464;17465;17466;17467;19747;19748;19899;19919;27349;27350;27351;27352;27353;27354;33424;33425;35399;35400;35401;35402;35403;35404;35405;38167;38168;39175;41294;41295;41296;41765;41766;44615;44616;44890;44891;44892;44893;56665;56666;56667;63572;63573;74831;74832;74833;74834;79509;79510;80709;80710;89658;89659 | HP2: 19609;60438;60456;67716;72515;97373;108785;109774;109879;124494;124619;147987;167579;168968;169112;230176;280891;280958;300396;300458;300479;325111;325121;334030;350971;351471;355285;378587;381240;381260;474559;531708;531749;618776;618893;658507;669790;746423 | HQ2: 646;648;649;650;651;652;752 | HR2: 3367;3368;3370;3371;3372;3373;3374;3375;3376;3377;3378;3379;3380;3381;3689 | HS2: 12;92;111;128;252;280;296 | HT2: 16;44;47;82;119;123;132;153;190;227;269;283;305;313;325 | HU2: =AVERAGE(GB2:GG2) -> 3.508616667e+11 | HV2: =AVERAGE(FV2:GA2) -> 259050000000 | HW2: =AVERAGE(FP2:FU2) -> 3.154283333e+11 | HX2: =AVERAGE(FJ2:FO2) -> 2.192416667e+11 | HY2: =LOG(HW2/HU2,2) -> -0.153590079 | HZ2: =LOG(HX2/HV2,2) -> -0.2407085764
A3: Q6ZWY9;Q64478;Q64525;P10854 | B3: Q6ZWY9;Q64478;Q64525;P10854 | C3: 24;24;23;23 | D3: 24;24;23;23 | E3: 3;3;3;3 | F3: Histone H2B type 1-C/E/G;Histone H2B type 1-H;Histone H2B type 2-B;Histone H2B type 1-M | G3: Hist1h2bc;Hist1h2bh;Hist2h2bb;Hist1h2bm | H3: sp|Q6ZWY9|H2B1C_MOUSE Histone H2B type 1-C/E/G OS=Mus musculus GN=Hist1h2bc PE=1 SV=3;sp|Q64478|H2B1H_MOUSE Histone H2B type 1-H OS=Mus musculus GN=Hist1h2bh PE=1 SV=3;sp|Q64525|H2B2B_MOUSE Histone H2B type 2-B OS=Mus musculus GN=Hist2h2bb PE=1 SV=3;sp|P10 | I3: 4 | J3: 24 | K3: 24 | L3: 3 | M3: 15 | N3: 18 | O3: 18 | P3: 17 | Q3: 16 | R3: 15 | S3: 19 | T3: 21 | U3: 21 | V3: 21 | W3: 22 | X3: 20 | Y3: 16 | Z3: 15 | AA3: 16 | AB3: 16 | AC3: 16 | AD3: 16 | AE3: 15 | AF3: 15 | AG3: 15 | AH3: 14 | AI3: 14 | AJ3: 15 | AK3: 15 | AL3: 18 | AM3: 18 | AN3: 17 | AO3: 16 | AP3: 15 | AQ3: 19 | AR3: 21 | AS3: 21 | AT3: 21 | AU3: 22 | AV3: 20 | AW3: 16 | AX3: 15 | AY3: 16 | AZ3: 16 | BA3: 16 | BB3: 16 | BC3: 15 | BD3: 15 | BE3: 15 | BF3: 14 | BG3: 14 | BH3: 15 | BI3: 2 | BJ3: 1 | BK3: 2 | BL3: 2 | BM3: 2 | BN3: 1 | BO3: 0 | BP3: 3 | BQ3: 3 | BR3: 2 | BS3: 2 | BT3: 1 | BU3: 1 | BV3: 1 | BW3: 1 | BX3: 1 | BY3: 1 | BZ3: 1 | CA3: 1 | CB3: 1 | CC3: 1 | CD3: 1 | CE3: 1 | CF3: 1 | CG3: 83.3 | CH3: 83.3 | CI3: 22.2 | CJ3: 13.906 | CK3: 126 | CL3: 126;126;126;126 | CM3: 0 | CN3: 323.31 | CO3: By MS/MS | CP3: By MS/MS | CQ3: By MS/MS | CR3: By MS/MS | CS3: By MS/MS | CT3: By MS/MS | CU3: By MS/MS | CV3: By MS/MS | CW3: By MS/MS | CX3: By MS/MS | CY3: By MS/MS | CZ3: By MS/MS | DA3: By MS/MS | DB3: By MS/MS | DC3: By MS/MS | DD3: By MS/MS | DE3: By MS/MS | DF3: By MS/MS | DG3: By MS/MS | DH3: By MS/MS | DI3: By MS/MS | DJ3: By MS/MS | DK3: By MS/MS | DL3: By MS/MS | DM3: 71.4 | DN3: 77.8 | DO3: 76.2 | DP3: 76.2 | DQ3: 76.2 | DR3: 73 | DS3: 77.8 | DT3: 82.5 | DU3: 82.5 | DV3: 77.8 | DW3: 83.3 | DX3: 77.8 | DY3: 68.3 | DZ3: 68.3 | EA3: 68.3 | EB3: 68.3 | EC3: 68.3 | ED3: 68.3 | EE3: 71.4 | EF3: 71.4 | EG3: 71.4 | EH3: 67.5 | EI3: 71.4 | EJ3: 71.4 | EK3: 4670700000000 | EL3: 118030000000 | EM3: 105890000000 | EN3: 127890000000 | EO3: 127270000000 | EP3: 123900000000 | EQ3: 103420000000 | ER3: 212980000000 | ES3: 287620000000 | ET3: 294200000000 | EU3: 298150000000 | EV3: 199420000000 | EW3: 226690000000 | EX3: 135500000000 | EY3: 145980000000 | EZ3: 152500000000 | FA3: 153750000000 | FB3: 162660000000 | FC3: 159260000000 | FD3: 265060000000 | FE3: 254270000000 | FF3: 232910000000 | FG3: 239980000000 | FH3: 273130000000 | FI3: 270270000000 | FJ3: 2775800000000 | FK3: 2463300000000 | FL3: 2405900000000 | FM3: 2223100000000 | FN3: 2907500000000 | FO3: 2366700000000 | FP3: 311570000000 | FQ3: 332670000000 | FR3: 302830000000 | FS3: 272650000000 | FT3: 288810000000 | FU3: 296960000000 | FV3: 1892800000000 | FW3: 1990900000000 | FX3: 2597800000000 | FY3: 2335600000000 | FZ3: 2451800000000 | GA3: 2690700000000 | GB3: 270570000000 | GC3: 252610000000 | GD3: 329120000000 | GE3: 327960000000 | GF3: 457430000000 | GG3: 377900000000 | GH3: 90 | GI3: 88 | GJ3: 88 | GK3: 95 | GL3: 64 | GM3: 51 | GN3: 65 | GO3: 100 | GP3: 85 | GQ3: 103 | GR3: 61 | GS3: 58 | GT3: 133 | GU3: 175 | GV3: 156 | GW3: 163 | GX3: 135 | GY3: 145 | GZ3: 111 | HA3: 123 | HB3: 112 | HC3: 124 | HD3: 111 | HE3: 126 | HF3: 2562 | HJ3: 2655 | HK3: 4334;4335;4336;6906;17749;17750;21044;21045;21046;30302;30303;30304;32799;37790;37791;39557;44131;44132;54571;59162;65206;66018;66019;74674 | HL3: True;True;True;True;True;True;True;True;True;True;True;True;True;True;True;True;True;True;True;True;True;True;True;True | HM3: 4800;4801;4802;4803;4804;4805;4806;4807;4808;4809;4810;4811;7652;19703;19704;23383;23384;23385;33653;33654;33655;36409;42015;42016;43934;48964;48965;61439;66466;73143;74015;74016;83627 | HN3: 64235;64236;64237;64238;64239;64240;64241;64242;64243;64244;64245;64246;64247;64248;64249;64250;64251;64252;64253;64254;64255;64256;64257;64258;64259;64260;64261;64262;64263;64264;64265;64266;64267;64268;64269;64270;64271;64272;64273;64274;64275;64276;64277;64278;64279;64280;64281;64282;64283;64284;64285;64286;64287;64288;64289;64290;64291;64292;64293;64294;64295;64296;64297;64298;64299;64300;64301;64302;64303;64304;64305;64306;64307;64308;64309;64310;64311;64312;64313;64314;64315;64316;64317;64318;64319;64320;64321;64322;64323;64324;64325;64326;64327;64328;64329;64330;64331;64332;64333;64334;64335;64336;64337;64338;64339;64340;64341;64342;64343;64344;64345;64346;64347;64348;64349;64350;64351;64352;64353;64354;64355;64356;64357;64358;64359;64360;64361;64362;64363;64364;64365;64366;64367;64368;64369;64370;64371;64372;64373;64374;64375;64376;64377;64378;64379;64380;64381;64382;64383;64384;64385;64386;64387;64388;64389;64390;64391;64392;64393;64394;64395;64396;64397;64398;64399;64400;64401;64402;64403;64404;64405;64406;64407;64408;64409;64410;64411;64412;64413;64414;64415;64416;64417;64418;64419;64420;64421;64422;64423;64424;64425;64426;64427;64428;64429;64430;64431;64432;64433;64434;64435;64436;64437;64438;64439;64440;64441;64442;64443;64444;64445;64446;64447;64448;64449;64450;64451;64452;64453;64454;64455;64456;64457;64458;64459;64460;64461;64462;64463;64464;64465;64466;64467;64468;64469;64470;64471;64472;64473;64474;64475;64476;64477;64478;64479;64480;64481;64482;64483;64484;64485;64486;64487;64488;64489;64490;64491;64492;64493;64494;64495;64496;64497;64498;64499;64500;64501;64502;64503;64504;64505;64506;64507;64508;64509;64510;64511;64512;64513;64514;64515;64516;64517;64518;64519;64520;64521;64522;64523;64524;64525;64526;64527;64528;64529;64530;64531;64532;64533;64534;64535;64536;64537;64538;64539;64540;64541;64542;64543;64544;64545;64546;64547;64548;64549;64550;64551;64552;64553;64554;64555;64556;64557;64558;64559;64560;64561;64562;64563;64564;64565;64566;64567;64568;64569;64570;64571;64572;64573;64574;64575;64576;64577;64578;64579;64580;64581;64582;64583;64584;64585;64586;64587;64588;64589;64590;64591;64592;64593;64594;64595;64596;64597;64598;64599;64600;64601;64602;64603;64604;64605;64606;64607;64608;64609;64610;64611;64612;64613;64614;64615;64616;64617;64618;64619;64620;64621;64622;64623;64624;64625;64626;64627;64628;64629;64630;64631;64632;64633;64634;64635;64636;64637;64638;64639;64640;64641;64642;64643;64644;64645;64646;64647;64648;64649;64650;64651;64652;64653;64654;64655;64656;64657;64658;64659;64660;64661;64662;64663;64664;64665;64666;64667;64668;64669;64670;64671;64672;64673;64674;64675;64676;64677;64678;64679;64680;64681;64682;64683;64684;64685;64686;64687;64688;64689;64690;64691;64692;64693;64694;64695;64696;64697;64698;64699;64700;64701;64702;64703;64704;64705;64706;64707;64708;64709;64710;64711;64712;64713;64714;64715;64716;64717;64718;64719;64720;64721;64722;64723;64724;64725;64726;64727;64728;64729;64730;64731;64732;64733;64734;64735;64736;64737;64738;64739;64740;64741;64742;64743;64744;64745;64746;64747;64748;64749;64750;64751;64752;64753;64754;64755;64756;64757;64758;64759;64760;64761;64762;64763;64764;64765;64766;64767;64768;64769;64770;64771;64772;64773;64774;64775;64776;64777;64778;64779;64780;64781;64782;64783;64784;64785;64786;64787;64788;64789;64790;64791;64792;64793;64794;64795;64796;64797;64798;64799;64800;64801;64802;64803;64804;64805;64806;64807;64808;64809;64810;64811;64812;64813;64814;64815;64816;64817;64818;64819;64820;64821;64822;64823;64824;64825;64826;64827;64828;64829;64830;64831;64832;64833;64834;64835;64836;64837;64838;64839;64840;64841;64842;64843;64844;64845;64846;64847;64848;64849;64850;64851;64852;64853;64854;64855;64856;64857;64858;64859;64860;64861;64862;64863;64864;64865;64866;64867;64868;64869;64870;64871;64872;64873;64874;64875;64876;64877;64878;64879;64880;64881;64882;64883;64884;64885;64886;64887;64888;64889;64890;64891;64892;64893;64894;64895;64896;64897;64898;64899;64900;64901;64902;64903;64904;64905;64906;64907;64908;64909;64910;64911;64912;64913;64914;64915;64916;64917;64918;64919;64920;64921;64922;64923;64924;64925;64926;64927;64928;64929;64930;64931;64932;64933;64934;64935;64936;64937;64938;64939;64940;64941;64942;64943;64944;64945;64946;64947;64948;64949;64950;64951;64952;64953;64954;64955;64956;64957;64958;64959;64960;64961;64962;64963;64964;64965;64966;64967;64968;64969;64970;64971;64972;64973;64974;64975;64976;64977;64978;64979;64980;64981;64982;64983;64984;64985;64986;64987;64988;64989;64990;64991;64992;64993;64994;64995;64996;64997;64998;64999;65000;65001;65002;65003;65004;65005;65006;65007;65008;65009;65010;65011;65012;65013;65014;65015;65016;65017;65018;65019;65020;65021;65022;65023;65024;65025;65026;65027;65028;65029;65030;65031;65032;65033;65034;65035;65036;65037;65038;65039;65040;65041;65042;65043;65044;65045;65046;65047;65048;65049;65050;65051;65052;65053;65054;65055;65056;65057;65058;65059;65060;65061;65062;65063;65064;65065;65066;65067;65068;65069;65070;65071;65072;65073;103631;103632;103633;103634;103635;103636;103637;103638;103639;103640;103641;103642;103643;103644;103645;103646;103647;103648;103649;103650;103651;103652;103653;103654;103655;103656;103657;103658;103659;103660;103661;103662;103663;103664;103665;269740;269741;269742;269743;269744;269745;269746;269747;269748;269749;269750;269751;269752;269753;269754;269755;269756;269757;269758;269759;269760;269761;269762;269763;269764;269765;269766;269767;269768;269769;269770;269771;269772;269773;269774;269775;269776;269777;269778;269779;269780;269781;269782;269783;269784;269785;269786;269787;269788;269789;269790;269791;269792;269793;269794;269795;269796;269797;269798;269799;269800;269801;269802;269803;269804;269805;269806;269807;269808;269809;269810;269811;269812;269813;269814;269815;269816;269817;269818;269819;269820;269821;269822;269823;269824;269825;269826;269827;269828;269829;269830;269831;269832;269833;269834;269835;269836;269837;269838;269839;269840;269841;269842;269843;269844;269845;269846;269847;269848;269849;269850;269851;269852;269853;269854;269855;269856;269857;269858;269859;269860;269861;269862;269863;269864;269865;269866;269867;269868;269869;269870;269871;269872;269873;269874;269875;269876;269877;269878;269879;269880;269881;269882;269883;269884;269885;269886;269887;269888;269889;269890;269891;269892;269893;269894;269895;269896;269897;269898;269899;269900;269901;269902;269903;269904;269905;269906;269907;269908;269909;269910;319383;319384;319385;319386;319387;319388;319389;319390;319391;319392;319393;319394;319395;319396;319397;319398;319399;319400;319401;319402;319403;319404;319405;319406;319407;319408;319409;319410;319411;319412;319413;319414;319415;319416;319417;319418;319419;319420;319421;319422;319423;319424;319425;319426;319427;319428;319429;319430;319431;319432;319433;319434;319435;319436;319437;319438;319439;319440;319441;319442;319443;319444;319445;319446;319447;319448;319449;319450;319451;319452;319453;319454;319455;319456;319457;319458;319459;319460;319461;319462;319463;319464;319465;319466;319467;319468;319469;319470;319471;319472;319473;319474;319475;319476;319477;319478;319479;319480;319481;319482;319483;319484;319485;319486;319487;319488;319489;319490;319491;319492;319493;319494;319495;319496;319497;319498;319499;319500;319501;319502;319503;319504;319505;319506;319507;319508;319509;319510;319511;319512;319513;319514;319515;319516;319517;319518;319519;319520;319521;319522;319523;319524;319525;319526;319527;319528;319529;319530;319531;319532;319533;319534;319535;319536;319537;319538;319539;319540;319541;319542;319543;319544;319545;319546;319547;319548;319549;319550;319551;319552;319553;319554;319555;319556;319557;319558;319559;319560;319561;319562;319563;319564;319565;319566;319567;319568;319569;319570;319571;319572;319573;319574;319575;319576;319577;319578;319579;319580;319581;319582;319583;319584;319585;319586;319587;319588;319589;319590;319591;319592;319593;319594;319595;319596;319597;319598;319599;319600;319601;319602;319603;319604;319605;319606;458576;458577;458578;458579;458580;458581;458582;458583;458584;458585;458586;458587;458588;458589;458590;458591;458592;458593;458594;458595;458596;458597;458598;458599;458600;458601;458602;458603;458604;458605;458606;458607;458608;458609;458610;458611;458612;458613;458614;458615;458616;458617;458618;458619;458620;458621;458622;458623;458624;458625;458626;458627;458628;458629;458630;458631;458632;458633;458634;458635;458636;458637;458638;458639;458640;458641;458642;458643;458644;458645;458646;458647;458648;458649;458650;458651;458652;458653;458654;458655;458656;458657;458658;458659;458660;458661;458662;458663;458664;458665;458666;458667;458668;458669;458670;458671;458672;458673;458674;458675;458676;458677;458678;458679;458680;458681;458682;458683;458684;458685;458686;458687;458688;458689;458690;458691;458692;458693;458694;458695;458696;458697;458698;458699;458700;458701;458702;458703;458704;458705;458706;458707;458708;458709;458710;458711;458712;458713;458714;458715;458716;458717;458718;458719;458720;458721;458722;458723;458724;458725;458726;458727;458728;458729;458730;458731;458732;458733;458734;458735;458736;458737;458738;458739;458740;458741;458742;458743;458744;458745;458746;458747;458748;458749;458750;458751;458752;458753;458754;499597;499598;499599;499600;499601;499602;499603;576533;576534;576535;576536;576537;576538;576539;576540;576541;576542;576543;576544;576545;576546;576547;576548;576549;576550;576551;576552;576553;576554;576555;576556;576557;576558;576559;576560;576561;576562;576563;576564;576565;576566;576567;576568;576569;576570;576571;576572;576573;576574;576575;576576;576577;576578;576579;576580;576581;576582;576583;576584;576585;576586;576587;576588;576589;576590;576591;576592;576593;576594;576595;576596;576597;576598;576599;576600;576601;576602;576603;576604;576605;576606;576607;576608;576609;576610;576611;576612;576613;576614;576615;576616;576617;576618;576619;576620;576621;576622;576623;576624;576625;576626;576627;576628;576629;576630;576631;576632;576633;576634;576635;576636;576637;576638;576639;576640;576641;576642;576643;576644;576645;576646;576647;576648;576649;576650;576651;576652;576653;576654;576655;576656;576657;576658;576659;576660;576661;576662;576663;576664;576665;576666;576667;576668;576669;576670;576671;576672;576673;576674;576675;576676;576677;576678;576679;576680;576681;576682;576683;576684;576685;576686;576687;576688;576689;576690;576691;576692;576693;576694;576695;576696;576697;576698;576699;576700;576701;576702;576703;576704;576705;576706;576707;576708;576709;576710;576711;576712;576713;576714;576715;604122;604123;604124;604125;604126;604127;604128;604129;670822;670823;670824;670825;670826;670827;670828;670829;670830;670831;670832;670833;670834;670835;670836;670837;670838;670839;670840;670841;670842;670843;670844;670845;670846;670847;670848;670849;670850;670851;670852;670853;670854;670855;670856;670857;670858;670859;670860;670861;670862;670863;670864;670865;670866;670867;670868;670869;670870;670871;670872;670873;670874;670875;670876;670877;670878;670879;670880;670881;670882;670883;670884;670885;670886;670887;670888;670889;670890;670891;670892;670893;670894;670895;670896;670897;670898;670899;670900;670901;670902;670903;670904;670905;670906;670907;670908;670909;670910;670911;670912;670913;670914;670915;670916;670917;670918;670919;670920;670921;670922;670923;670924;670925;670926;670927;670928;670929;670930;670931;670932;670933;670934;670935;670936;670937;670938;670939;670940;670941;670942;670943;670944;670945;670946;670947;670948;670949;670950;670951;670952;670953;670954;670955;670956;670957;670958;670959;670960;670961;670962;670963;670964;670965;670966;670967;670968;670969;670970;670971;670972;670973;670974;670975;670976;670977;670978;670979;670980;670981;670982;670983;670984;670985;670986;670987;670988;670989;670990;670991;670992;670993;670994;670995;670996;670997;670998;670999;671000;671001;671002;671003;671004;671005;671006;671007;671008;671009;671010;671011;671012;671013;671014;671015;671016;671017;671018;671019;671020;671021;671022;671023;671024;671025;671026;671027;671028;671029;671030;671031;671032;671033;671034;671035;671036;671037;671038;671039;671040;671041;671042;671043;671044;671045;671046;671047;671048;671049;671050;671051;671052;671053;671054;671055;671056;671057;671058;671059;671060;671061;671062;671063;671064;671065;671066;671067;671068;671069;671070;671071;671072;671073;671074;671075;671076;671077;671078;671079;671080;671081;671082;671083;671084;671085;671086;671087;671088;671089;671090;671091;671092;671093;671094;671095;671096;671097;671098;671099;671100;671101;671102;671103;671104;671105;671106;671107;671108;671109;671110;671111;671112;671113;671114;671115;671116;671117;671118;671119;671120;671121;671122;671123;671124;671125;671126;671127;671128;671129;671130;671131;671132;671133;671134;671135;671136;671137;671138;671139;671140;671141;671142;671143;671144;671145;671146;671147;671148;671149;671150;671151;671152;671153;671154;671155;671156;671157;671158;671159;671160;671161;671162;671163;671164;671165;671166;671167;671168;671169;671170;671171;671172;671173;671174;671175;671176;671177;671178;671179;671180;671181;671182;671183;671184;671185;671186;671187;671188;671189;671190;671191;671192;671193;671194;671195;671196;671197;671198;671199;671200;671201;671202;671203;671204;671205;671206;671207;671208;671209;671210;671211;671212;671213;671214;671215;671216;671217;671218;671219;671220;671221;671222;671223;671224;671225;671226;671227;671228;671229;671230;671231;671232;671233;671234;671235;671236;671237;671238;671239;671240;671241;671242;671243;671244;671245;671246;671247;671248;671249;671250;671251;671252;671253;671254;671255;671256;671257;671258;671259;671260;671261;671262;671263;671264;671265;671266;671267;671268;671269;671270;671271;671272;671273;671274;671275;671276;671277;671278;671279;671280;671281;671282;671283;671284;671285;671286;671287;671288;671289;671290;671291;671292;671293;671294;671295;671296;671297;671298;671299;671300;671301;671302;671303;671304;671305;671306;671307;671308;671309;671310;671311;671312;671313;671314;671315;671316;671317;671318;671319;671320;671321;671322;671323;671324;671325;671326;671327;671328;671329;671330;671331;671332;671333;671334;671335;671336;671337;671338;671339;671340;671341;671342;671343;671344;671345;671346;671347;671348;671349;671350;671351;671352;671353;671354;671355;671356;671357;671358;671359;671360;671361;671362;671363;671364;671365;671366;671367;671368;836508;836509;836510;836511;836512;836513;836514;836515;836516;836517;836518;836519;836520;836521;836522;836523;836524;836525;836526;836527;836528;836529;836530;899404;899405;899406;899407;899408;899409;899410;899411;899412;899413;899414;899415;899416;899417;899418;899419;899420;899421;899422;899423;899424;899425;899426;899427;899428;899429;899430;899431;899432;899433;899434;899435;899436;899437;899438;899439;899440;899441;899442;899443;899444;899445;899446;899447;899448;899449;899450;899451;899452;899453;899454;899455;899456;899457;899458;899459;899460;899461;899462;899463;899464;899465;899466;899467;899468;899469;899470;899471;899472;899473;899474;899475;899476;899477;899478;899479;899480;899481;899482;899483;899484;899485;899486;899487;899488;899489;899490;899491;899492;899493;899494;899495;899496;899497;899498;899499;899500;899501;899502;899503;899504;899505;899506;899507;899508;899509;899510;899511;899512;899513;899514;899515;899516;899517;899518;899519;899520;899521;899522;899523;899524;899525;899526;899527;899528;899529;899530;899531;899532;899533;899534;899535;899536;899537;899538;899539;899540;899541;899542;899543;899544;899545;987667;987668;987669;987670;987671;987672;987673;987674;987675;987676;987677;987678;987679;998995;998996;998997;998998;998999;999000;999001;999002;999003;999004;999005;1132051;1132052;1132053;1132054;1132055;1132056;1132057;1132058;1132059;1132060;1132061;1132062;1132063;1132064;1132065;1132066;1132067;1132068;1132069;1132070;1132071;1132072;1132073;1132074;1132075;1132076;1132077;1132078;1132079;1132080;1132081;1132082;1132083;1132084;1132085;1132086;1132087;1132088;1132089 | HP3: 39108;39523;39549;63027;166966;167096;197395;197464;197481;282892;283038;283042;309695;357222;357316;372594;414555;415050;516239;552790;605421;612096;612097;696042 | HQ3: 1089;1090 | HR3: 6036;6037 | HS3: 64;68 | HT3: 60;63 | HU3: =AVERAGE(GB3:GG3) -> 3.359316667e+11 | HV3: =AVERAGE(FV3:GA3) -> 2326600000000 | HW3: =AVERAGE(FP3:FU3) -> 300915000000 | HX3: =AVERAGE(FJ3:FO3) -> 2.523716667e+12 | HY3: =LOG(HW3/HU3,2) -> -0.158811774 | HZ3: =LOG(HX3/HV3,2) -> 0.1173267534
A4: Q8VDD5;A2AQP0 | B4: Q8VDD5 | C4: 228;1 | D4: 228;1 | E4: 193;0 | F4: Myosin-9 | G4: Myh9 | H4: sp|Q8VDD5|MYH9_MOUSE Myosin-9 OS=Mus musculus GN=Myh9 PE=1 SV=4 | I4: 2 | J4: 228 | K4: 228 | L4: 193 | M4: 143 | N4: 129 | O4: 135 | P4: 135 | Q4: 129 | R4: 126 | S4: 147 | T4: 165 | U4: 164 | V4: 167 | W4: 156 | X4: 164 | Y4: 160 | Z4: 161 | AA4: 165 | AB4: 164 | AC4: 160 | AD4: 159 | AE4: 212 | AF4: 208 | AG4: 208 | AH4: 210 | AI4: 204 | AJ4: 201 | AK4: 143 | AL4: 129 | AM4: 135 | AN4: 135 | AO4: 129 | AP4: 126 | AQ4: 147 | AR4: 165 | AS4: 164 | AT4: 167 | AU4: 156 | AV4: 164 | AW4: 160 | AX4: 161 | AY4: 165 | AZ4: 164 | BA4: 160 | BB4: 159 | BC4: 212 | BD4: 208 | BE4: 208 | BF4: 210 | BG4: 204 | BH4: 201 | BI4: 118 | BJ4: 106 | BK4: 109 | BL4: 110 | BM4: 104 | BN4: 103 | BO4: 120 | BP4: 136 | BQ4: 133 | BR4: 136 | BS4: 128 | BT4: 134 | BU4: 132 | BV4: 134 | BW4: 139 | BX4: 137 | BY4: 134 | BZ4: 132 | CA4: 180 | CB4: 176 | CC4: 176 | CD4: 180 | CE4: 173 | CF4: 170 | CG4: 74.6 | CH4: 74.6 | CI4: 65.4 | CJ4: 226.37 | CK4: 1960 | CL4: 1960;1941 | CM4: 0 | CN4: 323.31 | CO4: By MS/MS | CP4: By MS/MS | CQ4: By MS/MS | CR4: By MS/MS | CS4: By MS/MS | CT4: By MS/MS | CU4: By MS/MS | CV4: By MS/MS | CW4: By MS/MS | CX4: By MS/MS | CY4: By MS/MS | CZ4: By MS/MS | DA4: By MS/MS | DB4: By MS/MS | DC4: By MS/MS | DD4: By MS/MS | DE4: By MS/MS | DF4: By MS/MS | DG4: By MS/MS | DH4: By MS/MS | DI4: By MS/MS | DJ4: By MS/MS | DK4: By MS/MS | DL4: By MS/MS | DM4: 64.7 | DN4: 59.6 | DO4: 61.7 | DP4: 63.5 | DQ4: 59 | DR4: 59.1 | DS4: 59.6 | DT4: 68.9 | DU4: 68.1 | DV4: 68.7 | DW4: 67 | DX4: 68.3 | DY4: 68.2 | DZ4: 67.9 | EA4: 67.1 | EB4: 67.3 | EC4: 66.6 | ED4: 67.2 | EE4: 74 | EF4: 73.1 | EG4: 73.2 | EH4: 73.1 | EI4: 73 | EJ4: 72.5 | EK4: 3861100000000 | EL4: 4578500000 | EM4: 4367300000 | EN4: 4613200000 | EO4: 4318500000 | EP4: 5442200000 | EQ4: 5019300000 | ER4: 183250000000 | ES4: 231170000000 | ET4: 337780000000 | EU4: 348210000000 | EV4: 82827000000 | EW4: 121270000000 | EX4: 12323000000 | EY4: 11833000000 | EZ4: 15014000000 | FA4: 14628000000 | FB4: 12335000000 | FC4: 11594000000 | FD4: 492820000000 | FE4: 490570000000 | FF4: 424680000000 | FG4: 388100000000 | FH4: 326190000000 | FI4: 328160000000 | FJ4: 117290000000 | FK4: 124160000000 | FL4: 101940000000 | FM4: 101770000000 | FN4: 157490000000 | FO4: 161540000000 | FP4: 202320000000 | FQ4: 182680000000 | FR4: 201350000000 | FS4: 204540000000 | FT4: 121360000000 | FU4: 118490000000 | FV4: 165750000000 | FW4: 162570000000 | FX4: 239050000000 | FY4: 232080000000 | FZ4: 162830000000 | GA4: 163470000000 | GB4: 285370000000 | GC4: 291380000000 | GD4: 334120000000 | GE4: 346820000000 | GF4: 239500000000 | GG4: 237750000000 | GH4: 98 | GI4: 85 | GJ4: 86 | GK4: 90 | GL4: 62 | GM4: 52 | GN4: 226 | GO4: 263 | GP4: 289 | GQ4: 299 | GR4: 169 | GS4: 195 | GT4: 182 | GU4: 181 | GV4: 188 | GW4: 191 | GX4: 146 | GY4: 149 | GZ4: 462 | HA4: 463 | HB4: 478 | HC4: 474 | HD4: 403 | HE4: 416 | HF4: 5647 | HJ4: 4399 | HK4: 940;943;1555;2304;2498;2499;3207;3234;3478;3479;3480;3527;3567;3568;3853;4541;4542;5084;5682;5683;5846;7742;7743;7971;8154;9275;9416;9490;9773;9774;10847;11084;11085;11129;11130;11233;11234;11235;11612;11613;11885;12519;12520;12679;13625;13787;13788;13789;15455;15456;15457;15736;15875;16130;16131;16226;16227;18138;18208;18209;18344;19234;19235;20068;20069;20187;20188;20498;22863;24039;24724;25170;25171;25172;25539;25540;25959;26021;26249;29347;29348;30472;30485;30564;31176;31177;32132;32133;32906;32907;32908;32911;34466;35374;35503;36146;36147;36577;37437;37582;37583;37681;37682;37830;38016;38017;38159;38202;38203;38219;38296;38324;38335;38390;38487;38499;38500;38519;38520;38760;38761;38963;39026;39067;40531;40532;40879;41004;41449;43278;43640;45901;46128;46129;46130;46245;46246;46278;46402;47415;47521;48379;48380;49115;49116;50206;50207;50758;50939;51483;51638;51639;51640;52202;52566;52765;52766;53474;53475;53701;53794;54388;54992;55686;55896;56344;56658;57010;57011;57386;57387;57640;58536;58664;58877;58878;58974;58975;59522;59589;59705;59767;59832;59904;60136;60182;60183;64061;64062;64110;64111;66380;67544;67824;67834;67870;67871;68115;68555;68556;69168;70340;70479;70480;71269;71762;71846;72638;72681;72714;72727;72729;72730;72731;74149;74168;74169;74268;75299;76099;76281;76720;77077;77249;78366;78798;79500;79882 | HL4: True;True;True;True;True;True;True;True;True;True;True;True;True;True;True;True;True;True;True;True;True;True;True;True;True;True;True;True;True;True;True;True;True;True;True;True;True;True;True;True;True;True;True;True;True;True;True;True;True;True;True;True;True;True;True;True;True;True;True;True;True;True;True;True;True;True;True;True;True;True;True;True;True;True;True;True;True;True;True;True;True;True;True;True;True;True;True;True;True;True;True;True;True;True;True;True;True;True;True;True;True;True;True;True;True;True;True;True;True;True;True;True;True;True;True;True;True;True;True;True;True;True;True;True;True;True;True;True;True;True;True;True;True;True;True;True;True;True;True;True;True;True;True;True;True;True;True;True;True;True;True;True;True;True;True;True;True;True;True;True;True;True;True;True;True;True;True;True;True;True;True;True;True;True;True;True;True;True;True;True;True;True;True;True;True;True;True;True;True;True;True;True;True;True;True;True;True;True;True;True;True;True;True;True;True;True;True;True;True;True;True;True;True;True;True;True;True;True;True;True;True;True;True;True;True;True;True;True | HM4: 1027;1028;1031;1700;2522;2736;2737;3535;3536;3566;3838;3839;3840;3841;3842;3891;3935;3936;3937;4239;5066;5067;5068;5655;6309;6310;6493;8581;8582;8836;8837;9043;10291;10440;10524;10834;10835;10836;10837;12046;12304;12305;12306;12354;12355;12464;12465;12466;12887;12888;13206;13207;13208;13209;13950;13951;13952;14133;15157;15158;15333;15334;15335;17177;17178;17179;17475;17630;17913;17914;18014;18015;18016;18017;20129;20207;20208;20209;20210;20211;20357;21364;21365;21366;21367;22325;22326;22454;22455;22796;22797;22798;25403;26700;26701;27495;27496;27990;27991;27992;27993;28391;28392;28854;28920;29159;32604;32605;33836;33837;33851;33941;33942;34603;34604;34605;34606;35675;35676;36532;36533;36534;36535;36536;36541;36542;38294;38295;39311;39312;39313;39483;39484;40190;40191;40674;41630;41786;41787;41894;41895;42058;42259;42260;42417;42461;42462;42479;42560;42561;42562;42563;42592;42603;42604;42663;42664;42764;42779;42780;42781;42782;42804;42805;42806;43066;43067;43289;43357;43400;45011;45012;45388;45389;45522;46011;46012;48032;48431;50968;50969;51214;51215;51216;51343;51344;51378;51379;51380;51517;52618;52619;52620;52621;52738;53685;53686;54615;54616;54617;54618;56290;56291;56292;57078;57280;57883;57884;57885;58063;58064;58065;58066;58728;58729;59133;59134;59357;59358;59359;59360;59361;60213;60214;60469;60470;60471;60579;61244;61887;62639;62640;62877;62878;63364;63712;63713;64092;64093;64094;64095;64499;64500;64771;64772;65779;65780;65922;66151;66152;66260;66261;66262;66263;66855;66856;66929;67051;67118;67189;67190;67264;67526;67573;67574;71816;71817;71818;71819;71820;71900;71901;71902;71903;74406;75697;76006;76017;76057;76058;76059;76060;76061;76062;76338;76817;76818;76819;76820;77498;78813;78969;78970;79834;80380;80472;80473;81352;81398;81437;81438;81439;81452;81456;81457;81458;83050;83072;83073;83185;84350;85242;85442;85931;86324;86519;87736;88212;88213;88986;89402 | HU4: 2.891566667e+11 | HV4: 187625000000 | HW4: 171790000000 | HX4: 127365000000 | HY4: -0.7512053059 | HZ4: -0.5588831935
A5: P09405 | B5: P09405 | C5: 61 | D5: 61 | E5: 61 | F5: Nucleolin | G5: Ncl | H5: sp|P09405|NUCL_MOUSE Nucleolin OS=Mus musculus GN=Ncl PE=1 SV=2 | I5: 1 | J5: 61 | K5: 61 | L5: 61 | M5: 48 | N5: 43 | O5: 48 | P5: 39 | Q5: 42 | R5: 44 | S5: 36 | T5: 46 | U5: 44 | V5: 45 | W5: 48 | X5: 50 | Y5: 48 | Z5: 47 | AA5: 47 | AB5: 45 | AC5: 46 | AD5: 48 | AE5: 54 | AF5: 53 | AG5: 50 | AH5: 52 | AI5: 52 | AJ5: 54 | AK5: 48 | AL5: 43 | AM5: 48 | AN5: 39 | AO5: 42 | AP5: 44 | AQ5: 36 | AR5: 46 | AS5: 44 | AT5: 45 | AU5: 48 | AV5: 50 | AW5: 48 | AX5: 47 | AY5: 47 | AZ5: 45 | BA5: 46 | BB5: 48 | BC5: 54 | BD5: 53 | BE5: 50 | BF5: 52 | BG5: 52 | BH5: 54 | BI5: 48 | BJ5: 43 | BK5: 48 | BL5: 39 | BM5: 42 | BN5: 44 | BO5: 36 | BP5: 46 | BQ5: 44 | BR5: 45 | BS5: 48 | BT5: 50 | BU5: 48 | BV5: 47 | BW5: 47 | BX5: 45 | BY5: 46 | BZ5: 48 | CA5: 54 | CB5: 53 | CC5: 50 | CD5: 52 | CE5: 52 | CF5: 54 | CG5: 56 | CH5: 56 | CI5: 56 | CJ5: 76.722 | CK5: 707 | CL5: 707 | CM5: 0 | CN5: 323.31 | CO5: By MS/MS | CP5: By MS/MS | CQ5: By MS/MS | CR5: By MS/MS | CS5: By MS/MS | CT5: By MS/MS | CU5: By MS/MS | CV5: By MS/MS | CW5: By MS/MS | CX5: By MS/MS | CY5: By MS/MS | CZ5: By MS/MS | DA5: By MS/MS | DB5: By MS/MS | DC5: By MS/MS | DD5: By MS/MS | DE5: By MS/MS | DF5: By MS/MS | DG5: By MS/MS | DH5: By MS/MS | DI5: By MS/MS | DJ5: By MS/MS | DK5: By MS/MS | DL5: By MS/MS | DM5: 50.9 | DN5: 46.4 | DO5: 50.9 | DP5: 47.5 | DQ5: 49.5 | DR5: 49.1 | DS5: 42.4 | DT5: 51.1 | DU5: 50.1 | DV5: 51.1 | DW5: 51.9 | DX5: 52.9 | DY5: 48.9 | DZ5: 49.9 | EA5: 49.9 | EB5: 47.9 | EC5: 48.8 | ED5: 49.6 | EE5: 52.6 | EF5: 52.6 | EG5: 51.6 | EH5: 50.1 | EI5: 52.6 | EJ5: 52.6 | EK5: 2421300000000 | EL5: 19378000000 | EM5: 15546000000 | EN5: 23630000000 | EO5: 22750000000 | EP5: 9778500000 | EQ5: 8115100000 | ER5: 145630000000 | ES5: 216800000000 | ET5: 226130000000 | EU5: 230360000000 | EV5: 126950000000 | EW5: 155770000000 | EX5: 13516000000 | EY5: 14002000000 | EZ5: 14869000000 | FA5: 13984000000 | FB5: 15993000000 | FC5: 16398000000 | FD5: 219800000000 | FE5: 212740000000 | FF5: 153660000000 | FG5: 139860000000 | FH5: 206570000000 | FI5: 199080000000 | FJ5: 400440000000 | FK5: 389150000000 | FL5: 460100000000 | FM5: 463560000000 | FN5: 222670000000 | FO5: 212420000000 | FP5: 191380000000 | FQ5: 180720000000 | FR5: 153330000000 | FS5: 152710000000 | FT5: 179200000000 | FU5: 159250000000 | FV5: 195620000000 | FW5: 211450000000 | FX5: 237200000000 | FY5: 231710000000 | FZ5: 229560000000 | GA5: 229660000000 | GB5: 160420000000 | GC5: 161550000000 | GD5: 152980000000 | GE5: 148470000000 | GF5: 181650000000 | GG5: 178420000000 | GH5: 67 | GI5: 46 | GJ5: 70 | GK5: 74 | GL5: 34 | GM5: 32 | GN5: 61 | GO5: 95 | GP5: 96 | GQ5: 91 | GR5: 80 | GS5: 83 | GT5: 74 | GU5: 73 | GV5: 84 | GW5: 74 | GX5: 73 | GY5: 64 | GZ5: 129 | HA5: 133 | HB5: 111 | HC5: 115 | HD5: 126 | HE5: 130 | HF5: 2015 | HJ5: 779 | HK5: 721;722;3541;4216;4217;6117;6441;14757;14758;14795;14796;14797;20668;21254;21620;21621;21682;22534;22535;23443;26195;26510;26752;27184;27185;27978;27979;29935;29936;37071;37072;37335;37476;37850;39131;41148;48883;51088;52650;52651;52652;56692;56693;57269;63069;63070;66473;66569;68929;69640;69641;70847;72829;73184;73185;74117;75632;75633;76729;76730;77374 | HL5: True;True;True;True;True;True;True;True;True;True;True;True;True;True;True;True;True;True;True;True;True;True;True;True;True;True;True;True;True;True;True;True;True;True;True;True;True;True;True;True;True;True;True;True;True;True;True;True;True;True;True;True;True;True;True;True;True;True;True;True;True | HM5: 790;791;3907;4652;4653;6793;7148;16402;16403;16443;16444;16445;16446;16447;22984;23612;24016;24017;24018;24019;24090;24091;25044;25045;25046;26045;29100;29452;29453;29729;30201;30202;31070;31071;33257;33258;41229;41230;41515;41670;42078;43466;45677;45678;54276;57445;57446;59224;59225;59226;59227;59228;59229;63749;63750;64377;70733;70734;74509;74617;77243;78011;78012;78013;79376;81568;81569;81978;81979;83017;84727;84728;85941;85942;86654 | HO5: 6142;6143;6144;6145;6146;6147;6148;6149;6150;6151;6152;6153;6154;6155;6156;6157;6158;6159;6160;6161;6162;6163;6164;31731;31732;31733;31734;31735;31736;31737;31738;31739;31740;31741;31742;31743;31744;31745;31746;31747;31748;31749;31750;31751;31752;31753;31754;31755;31756;31757;31758;31759;31760;31761;31762;31763;31764;31765;31766;31767;31768;31769;31770;31771;31772;31773;31774;31775;31776;31777;31778;31779;31780;31781;31782;31783;31784;31785;31786;31787;31788;31789;31790;31791;31792;31793;31794;31795;31796;31797;31798;31799;31800;31801;31802;31803;31804;31805;31806;31807;31808;31809;31810;31811;31812;31813;31814;31815;31816;31817;31818;31819;37649;37650;37651;37652;37653;37654;37655;37656;37657;37658;37659;37660;37661;37662;37663;37664;37665;37666;37667;37668;37669;55943;55944;55945;58790;58791;58792;58793;58794;139091;139092;139093;139094;139095;139096;139097;139098;139099;139100;139101;139102;139103;139104;139105;139106;139107;139108;139109;139110;139111;139112;139113;139114;139115;139116;139117;139118;139119;139120;139121;139122;139123;139468;139469;139470;139471;139472;139473;139474;139475;139476;139477;139478;139479;139480;139481;139482;139483;139484;139485;139486;139487;139488;139489;139490;139491;139492;139493;139494;139495;139496;139497;139498;139499;139500;139501;139502;139503;139504;139505;139506;139507;139508;139509;139510;139511;139512;139513;139514;139515;139516;139517;139518;139519;139520;139521;139522;139523;139524;139525;139526;139527;139528;139529;139530;139531;139532;139533;139534;139535;139536;139537;139538;139539;139540;139541;139542;139543;139544;139545;139546;139547;139548;139549;139550;139551;139552;139553;139554;139555;139556;139557;139558;139559;139560;139561;139562;139563;139564;139565;139566;139567;139568;139569;139570;139571;139572;139573;139574;139575;139576;139577;139578;139579;139580;139581;139582;139583;139584;139585;139586;139587;139588;139589;139590;139591;139592;139593;139594;139595;139596;139597;139598;139599;139600;139601;139602;139603;139604;139605;139606;139607;139608;139609;139610;139611;139612;139613;139614;139615;139616;139617;139618;139619;139620;139621;139622;139623;139624;139625;139626;139627;139628;139629;139630;139631;139632;139633;139634;139635;139636;139637;139638;139639;139640;139641;139642;139643;139644;139645;139646;139647;139648;139649;139650;139651;139652;139653;139654;139655;139656;139657;139658;139659;139660;139661;139662;139663;139664;139665;139666;139667;194216;194217;194218;194219;194220;194221;194222;194223;194224;194225;194226;194227;194228;194229;194230;194231;194232;194233;194234;194235;194236;194237;194238;194239;194240;194241;194242;194243;194244;194245;194246;194247;199181;199182;199183;199184;199185;199186;199187;199188;199189;199190;199191;199192;199193;199194;199195;199196;199197;199198;199199;199200;199201;199202;199203;199204;199205;199206;199207;199208;199209;199210;199211;199212;199213;199214;199215;199216;199217;199218;199219;199220;199221;199222;199223;199224;199225;199226;199227;199228;199229;199230;199231;199232;199233;199234;199235;199236;199237;199238;199239;199240;199241;199242;199243;202463;202464;202465;202466;202467;202468;202469;202470;202471;202472;202473;202474;202475;202476;202477;202478;202479;202480;202481;202482;202483;202484;202485;202486;202487;202488;202489;202490;202491;202492;202493;202494;202495;202496;202497;202498;202499;202500;202501;202502;202503;202504;202505;202506;202507;202508;202509;202510;202511;202512;202513;202514;202515;202516;202517;202518;202519;202520;202521;202522;202523;202524;202525;202526;202527;202528;202529;202530;202531;202532;202533;202534;202535;202536;202537;202538;202539;202540;202541;202542;202543;202544;203051;203052;203053;203054;203055;203056;203057;203058;203059;203060;203061;203062;203063;203064;203065;203066;203067;203068;203069;203070;203071;203072;203073;203074;203075;203076;203077;203078;203079;203080;203081;203082;203083;203084;203085;203086;203087;203088;203089;203090;203091;203092;203093;203094;203095;203096;203097;203098;203099;203100;203101;203102;203103;203104;203105;203106;203107;203108;203109;203110;203111;203112;203113;203114;203115;203116;203117;203118;203119;203120;203121;203122;203123;203124;203125;203126;203127;203128;203129;203130;203131;203132;203133;203134;203135;203136;203137;203138;203139;203140;203141;203142;203143;203144;203145;203146;210943;210944;210945;210946;210947;210948;210949;210950;210951;210952;210953;210954;210955;210956;210957;210958;210959;210960;210961;210962;210963;210964;210965;210966;210967;210968;210969;210970;210971;210972;210973;210974;210975;210976;210977;210978;210979;210980;210981;210982;210983;210984;210985;210986;210987;210988;210989;210990;210991;210992;210993;210994;210995;210996;210997;210998;210999;211000;211001;211002;211003;211004;211005;211006;211007;211008;211009;211010;211011;211012;211013;211014;211015;211016;211017;211018;211019;211020;211021;211022;211023;211024;211025;211026;211027;211028;211029;211030;211031;211032;211033;211034;211035;211036;211037;211038;211039;211040;211041;211042;211043;211044;211045;211046;211047;211048;211049;211050;211051;211052;211053;211054;211055;211056;211057;211058;211059;211060;211061;211062;211063;211064;211065;211066;211067;211068;211069;211070;211071;211072;211073;211074;211075;211076;211077;211078;211079;211080;211081;211082;211083;211084;211085;211086;211087;211088;211089;211090;211091;211092;211093;211094;211095;211096;211097;211098;211099;211100;211101;211102;211103;211104;211105;211106;211107;211108;211109;211110;211111;211112;211113;211114;211115;211116;211117;211118;211119;211120;211121;211122;211123;211124;211125;211126;211127;211128;211129;211130;211131;211132;211133;211134;211135;211136;211137;211138;211139;211140;218973;218974;218975;218976;218977;218978;218979;218980;218981;218982;218983;218984;218985;218986;218987;218988;218989;218990;218991;218992;218993;218994;218995;218996;218997;218998;218999;219000;219001;219002;219003;219004;219005;219006;219007;219008;219009;219010;219011;219012;219013;219014;219015;219016;219017;219018;219019;219020;219021;219022;219023;219024;219025;219026;219027;219028;219029;219030;219031;219032;219033;219034;219035;219036;219037;219038;219039;219040;244907;244908;244909;244910;244911;244912;247902;247903;247904;247905;247906;247907;247908;247909;247910;247911;247912;247913;247914;247915;247916;247917;247918;247919;247920;247921;247922;247923;247924;247925;247926;247927;247928;247929;247930;247931;247932;247933;247934;247935;247936;247937;247938;247939;247940;247941;247942;247943;247944;247945;247946;247947;247948;247949;247950;247951;247952;247953;247954;247955;247956;247957;247958;247959;247960;247961;247962;247963;247964;247965;247966;247967;247968;247969;247970;247971;247972;247973;247974;247975;247976;247977;247978;247979;247980;247981;247982;247983;247984;247985;247986;247987;247988;247989;247990;247991;247992;247993;247994;247995;247996;247997;247998;247999;248000;248001;248002;248003;248004;248005;248006;248007;248008;248009;248010;248011;248012;248013;248014;248015;248016;248017;248018;248019;248020;250255;250256;250257;250258;250259;250260;250261;250262;250263;250264;250265;250266;250267;250268;250269;250270;250271;250272;254559;254560;254561;254562;254563;254564;254565;254566;254567;254568;254569;254570;254571;254572;254573;254574;254575;254576;254577;254578;254579;254580;254581;254582;254583;254584;254585;254586;254587;254588;254589;254590;254591;254592;254593;254594;254595;254596;254597;254598;254599;254600;254601;254602;254603;254604;254605;254606;254607;254608;254609;254610;254611;254612;254613;254614;254615;254616;254617;254618;254619;254620;254621;254622;254623;254624;254625;254626;254627;254628;254629;254630;254631;254632;254633;254634;254635;254636;254637;254638;254639;254640;254641;254642;254643;254644;254645;254646;254647;254648;254649;254650;254651;254652;254653;254654;254655;254656;254657;254658;254659;254660;254661;254662;254663;254664;254665;254666;254667;254668;254669;254670;254671;254672;254673;254674;254675;254676;254677;254678;254679;254680;254681;254682;254683;254684;254685;254686;254687;254688;254689;254690;261676;261677;261678;261679;261680;261681;261682;261683;261684;261685;261686;261687;261688;261689;261690;261691;261692;261693;261694;261695;261696;261697;261698;261699;261700;261701;261702;261703;261704;261705;261706;261707;261708;261709;261710;261711;261712;261713;261714;261715;261716;261717;261718;261719;261720;261721;261722;261723;261724;261725;261726;261727;261728;261729;261730;261731;261732;261733;261734;261735;261736;261737;261738;261739;261740;261741;261742;261743;261744;261745;261746;261747;261748;261749;261750;261751;261752;261753;261754;261755;261756;261757;261758;261759;261760;261761;261762;261763;261764;261765;261766;261767;261768;261769;261770;261771;261772;261773;279253;279254;279255;279256;279257;279258;279259;279260;279261;279262;279263;279264;279265;279266;279267;279268;279269;279270;279271;279272;279273;279274;279275;279276;279277;279278;279279;279280;279281;279282;279283;279284;279285;279286;279287;279288;279289;279290;279291;279292;279293;279294;279295;279296;279297;279298;279299;279300;279301;279302;279303;279304;279305;279306;279307;279308;279309;279310;279311;279312;279313;279314;279315;279316;279317;279318;279319;279320;279321;279322;279323;279324;279325;279326;279327;279328;279329;279330;279331;279332;279333;279334;279335;279336;279337;279338;279339;279340;279341;279342;279343;279344;279345;279346;279347;279348;279349;279350;279351;279352;279353;279354;279355;279356;279357;279358;279359;279360;279361;279362;279363;279364;279365;279366;279367;279368;279369;279370;279371;279372;279373;279374;279375;279376;279377;279378;279379;279380;279381;279382;279383;279384;279385;279386;279387;279388;350444;350445;350446;350447;350448;350449;350450;350451;350452;350453;350454;350455;350456;350457;350458;350459;350460;350461;350462;350463;350464;350465;350466;350467;350468;350469;350470;353416;353417;353418;353419;353420;354581;354582;357754;357755;357756;357757;357758;357759;357760;357761;357762;357763;357764;357765;357766;357767;357768;357769;357770;357771;357772;357773;357774;357775;357776;357777;357778;357779;357780;357781;357782;357783;357784;357785;357786;357787;357788;357789;357790;357791;368687;368688;368689;368690;368691;368692;368693;386842;386843;386844;386845;386846;386847;386848;386849;386850;386851;386852;386853;386854;386855;386856;386857;386858;386859;386860;386861;386862;386863;386864;386865;386866;386867;386868;386869;386870;386871;386872;386873;386874;386875;386876;386877;386878;386879;386880;386881;386882;386883;386884;386885;386886;386887;386888;386889;386890;386891;386892;386893;386894;386895;386896;386897;386898;386899;386900;386901;386902;386903;386904;386905;386906;386907;386908;386909;456736;456737;456738;456739;480828;480829;480830;480831;480832;480833;480834;480835;480836;480837;480838;480839;480840;480841;480842;480843;480844;480845;480846;480847;480848;480849;480850;480851;480852;480853;480854;480855;480856;480857;480858;480859;480860;480861;480862;480863;480864;480865;480866;480867;480868;480869;480870;480871;480872;480873;480874;480875;480876;480877;480878;480879;480880;480881;480882;480883;480884;480885;480886;480887;480888;480889;480890;480891;480892;480893;480894;480895;480896;480897;480898;480899;480900;480901;480902;480903;480904;480905;480906;480907;480908;496268;496269;496270;496271;496272;496273;496274;496275;496276;496277;496278;496279;496280;496281;496282;496283;496284;496285;496286;496287;496288;496289;496290;496291;496292;496293;496294;496295;496296;496297;496298;496299;496300;496301;496302;496303;496304;496305;496306;496307;496308;496309;496310;496311;496312;496313;496314;496315;496316;496317;496318;496319;496320;496321;496322;496323;496324;496325;496326;496327;496328;496329;496330;496331;496332;496333;496334;496335;496336;496337;496338;496339;496340;496341;496342;496343;496344;496345;496346;496347;496348;496349;496350;496351;496352;496353;496354;496355;496356;496357;496358;496359;496360;496361;496362;496363;496364;496365;496366;496367;496368;496369;496370;496371;496372;496373;496374;496375;496376;496377;496378;496379;533180;533181;533182;533183;533184;533185;533186;533187;533188;533189;533190;533191;533192;533193;533194;533195;533196;533197;533198;533199;533200;533201;533202;533203;533204;533205;533206;533207;533208;533209;533210;533211;533212;533213;533214;533215;533216;533217;533218;533219;533220;533221;533222;533223;533224;533225;537950;537951;537952;537953;537954;537955;537956;537957;537958;537959;537960;537961;537962;537963;537964;537965;537966;537967;537968;537969;537970;537971;537972;537973;537974;585860;585861;585862;585863;585864;585865;616075;616076;616890;616891;616892;616893;616894;616895;616896;616897;616898;616899;616900;616901;616902;616903;616904;616905;616906;616907;616908;616909;616910;616911;616912;616913;616914;616915;616916;616917;616918;616919;616920;616921;616922;616923;616924;616925;616926;616927;616928;616929;616930;616931;616932;616933;616934;616935;616936;616937;616938;616939;616940;616941;616942;616943;616944;616945;616946;616947;616948;616949;616950;616951;616952;616953;616954;616955;640038;640039;640040;640041;640042;646588;646589;646590;646591;646592;646593;646594;646595;646596;646597;646598;646599;646600;646601;646602;646603;646604;646605;646606;646607;646608;646609;646610;646611;646612;646613;646614;646615;646616;646617;646618;646619;646620;646621;646622;646623;646624;646625;646626;646627;646628;646629;646630;646631;646632;646633;646634;646635;646636;646637;646638;646639;646640;646641;646642;646643;646644;646645;646646;646647;646648;646649;646650;646651;646652;646653;646654;646655;646656;646657;646658;646659;646660;646661;646662;646663;646664;646665;646666;646667;646668;646669;646670;646671;646672;646673;646674;646675;646676;646677;646678;646679;646680;646681;646682;646683;646684;646685;646686;646687;646688;646689;646690;646691;646692;646693;646694;646695;646696;646697;646698;646699;646700;646701;646702;646703;646704;646705;646706;646707;646708;646709;646710;646711;646712;646713;646714;646715;646716;646717;646718;646719;646720;657295;657296;657297;657298;657299;657300;657301;657302;657303;657304;657305;657306;657307;657308;657309;657310;657311;657312;657313;657314;657315;657316;657317;657318;657319;657320;657321;657322;657323;657324;657325;657326;657327;657328;657329;677793;677794;677795;677796;677797;677798;677799;677800;677801;677802;677803;677804;677805;677806;677807;677808;677809;677810;677811;677812;677813;677814;677815;677816;677817;677818;677819;677820;677821;677822;677823;677824;677825;677826;677827;677828;677829;677830;677831;677832;677833;677834;677835;677836;677837;677838;677839;677840;677841;677842;677843;677844;677845;677846;677847;677848;677849;677850;677851;677852;677853;677854;677855;677856;677857;677858;677859;677860;677861;677862;677863;677864;677865;677866;677867;677868;677869;677870;677871;677872;677873;677874;677875;681418;681419;681420;681421;681422;681423;681424;681425;681426;681427;681428;681429;681430;681431;681432;681433;681434;681435;690695;690696;690697;690698;690699;705269;705270;705271;705272;705273;705274;705275;705276;705277;705278;705279;705280;705281;705282;705283;705284;705285;705286;705287;705288;705289;705290;705291;705292;705293;705294;705295;705296;705297;705298;705299;705300;705301;705302;705303;705304;705305;705306;705307;705308;705309;715809;715810;715811;715812;715813;715814;715815;715816;715817;715818;715819;715820;715821;715822;715823;715824;715825;715826;715827;715828;721407;721408;721409;721410;721411;721412;721413;721414 | HP5: 6145;6163;31773;37654;37662;55944;58793;139109;139123;139487;139660;139663;194246;199206;202466;202518;203110;211027;211116;218973;244911;247948;250269;254603;254683;261702;261771;279311;279386;350455;350470;353417;354581;357780;368693;386874;456738;480848;496288;496372;496374;533189;533210;537951;585862;585865;616075;616914;640038;646632;646709;657310;677815;681424;681430;690698;705277;705303;715812;715823;721408 | HQ5: 303;304;305;306;307;308;309;310;311;312 | HR5: 1687;1688;1689;1690;1691 | HS5: 310;315;317;319;336;401;405;493;615;635 | HT5: 17;33;419;547;627 | HU5: 163915000000 | HV5: 2.225333333e+11 | HW5: 1.694316667e+11 | HX5: 3.580566667e+11 | HY5: 0.0477556559 | HZ5: 0.686166475
A6: Q8CGP5;C0HKE9;C0HKE8;C0HKE7;C0HKE6;C0HKE5;C0HKE4;C0HKE3;C0HKE2;C0HKE1;Q8CGP6;Q8BFU2;Q8R1M2 | B6: Q8CGP5;C0HKE9;C0HKE8;C0HKE7;C0HKE6;C0HKE5;C0HKE4;C0HKE3;C0HKE2;C0HKE1;Q8CGP6;Q8BFU2;Q8R1M2 | C6: 12;10;10;10;10;10;10;10;10;10;10;10;8 | D6: 12;10;10;10;10;10;10;10;10;10;10;10;8 | E6: 2;0;0;0;0;0;0;0;0;0;0;0;0 | F6: Histone H2A type 1-F;Histone H2A type 1-H;Histone H2A type 3;Histone H2A.J | G6: Hist1h2af;Hist1h2ah;Hist3h2a;H2afj | H6: sp|Q8CGP5|H2A1F_MOUSE Histone H2A type 1-F OS=Mus musculus GN=Hist1h2af PE=1 SV=3;sp|C0HKE9|H2A1P_MOUSE Histone H2A type 1-P OS=Mus musculus GN=Hist1h2ap PE=1 SV=1;sp|C0HKE8|H2A1O_MOUSE Histone H2A type 1-O OS=Mus musculus GN=Hist1h2ao PE=1 SV=1;sp|C0HKE7| | I6: 13 | J6: 12 | K6: 12 | L6: 2 | M6: 5 | N6: 6 | O6: 8 | P6: 7 | Q6: 7 | R6: 5 | S6: 5 | T6: 7 | U6: 7 | V6: 7 | W6: 8 | X6: 6 | Y6: 10 | Z6: 10 | AA6: 10 | AB6: 9 | AC6: 10 | AD6: 10 | AE6: 9 | AF6: 7 | AG6: 7 | AH6: 5 | AI6: 8 | AJ6: 7 | AK6: 5 | AL6: 6 | AM6: 8 | AN6: 7 | AO6: 7 | AP6: 5 | AQ6: 5 | AR6: 7 | AS6: 7 | AT6: 7 | AU6: 8 | AV6: 6 | AW6: 10 | AX6: 10 | AY6: 10 | AZ6: 9 | BA6: 10 | BB6: 10 | BC6: 9 | BD6: 7 | BE6: 7 | BF6: 5 | BG6: 8 | BH6: 7 | BI6: 0 | BJ6: 0 | BK6: 1 | BL6: 1 | BM6: 1 | BN6: 0 | BO6: 0 | BP6: 1 | BQ6: 1 | BR6: 1 | BS6: 1 | BT6: 1 | BU6: 2 | BV6: 2 | BW6: 2 | BX6: 2 | BY6: 2 | BZ6: 2 | CA6: 2 | CB6: 1 | CC6: 1 | CD6: 0 | CE6: 1 | CF6: 0 | CG6: 70 | CH6: 70 | CI6: 6.9 | CJ6: 14.161 | CK6: 130 | CL6: 130;130;130;130;130;130;130;130;130;130;128;130;129 | CM6: 0 | CN6: 323.31 | CO6: By MS/MS | CP6: By MS/MS | CQ6: By MS/MS | CR6: By MS/MS | CS6: By MS/MS | CT6: By MS/MS | CU6: By MS/MS | CV6: By MS/MS | CW6: By MS/MS | CX6: By MS/MS | CY6: By MS/MS | CZ6: By MS/MS | DA6: By MS/MS | DB6: By MS/MS | DC6: By MS/MS | DD6: By MS/MS | DE6: By MS/MS | DF6: By MS/MS | DG6: By MS/MS | DH6: By MS/MS | DI6: By MS/MS | DJ6: By MS/MS | DK6: By MS/MS | DL6: By MS/MS | DM6: 32.3 | DN6: 37.7 | DO6: 44.6 | DP6: 43.8 | DQ6: 43.8 | DR6: 32.3 | DS6: 20.8 | DT6: 41.5 | DU6: 41.5 | DV6: 41.5 | DW6: 42.3 | DX6: 38.5 | DY6: 47.7 | DZ6: 47.7 | EA6: 47.7 | EB6: 42.3 | EC6: 47.7 | ED6: 47.7 | EE6: 42.3 | EF6: 39.2 | EG6: 42.3 | EH6: 37.7 | EI6: 61.5 | EJ6: 60 | EK6: 2317900000000 | EL6: 50505000000 | EM6: 44720000000 | EN6: 33836000000 | EO6: 52423000000 | EP6: 53411000000 | EQ6: 48152000000 | ER6: 86787000000 | ES6: 113760000000 | ET6: 113550000000 | EU6: 113750000000 | EV6: 125550000000 | EW6: 155240000000 | EX6: 45564000000 | EY6: 70740000000 | EZ6: 89523000000 | FA6: 97455000000 | FB6: 96165000000 | FC6: 103560000000 | FD6: 185640000000 | FE6: 114430000000 | FF6: 169600000000 | FG6: 77445000000 | FH6: 134080000000 | FI6: 142050000000 | FJ6: 1138000000000 | FK6: 1038700000000 | FL6: 1056500000000 | FM6: 1146900000000 | FN6: 1209900000000 | FO6: 1083800000000 | FP6: 135240000000 | FQ6: 144740000000 | FR6: 106650000000 | FS6: 120520000000 | FT6: 186030000000 | FU6: 159070000000 | FV6: 776660000000 | FW6: 1054100000000 | FX6: 1517900000000 | FY6: 1405600000000 | FZ6: 1290900000000 | GA6: 1396200000000 | GB6: 101940000000 | GC6: 106100000000 | GD6: 167130000000 | GE6: 152200000000 | GF6: 151830000000 | GG6: 190800000000 | GH6: 56 | GI6: 52 | GJ6: 49 | GK6: 54 | GL6: 40 | GM6: 28 | GN6: 24 | GO6: 41 | GP6: 34 | GQ6: 40 | GR6: 21 | GS6: 22 | GT6: 83 | GU6: 104 | GV6: 99 | GW6: 97 | GX6: 105 | GY6: 96 | GZ6: 70 | HA6: 55 | HB6: 74 | HC6: 39 | HD6: 71 | HE6: 64 | HF6: 1418 | HJ6: 3941 | HK6: 2336;31444;31446;31447;37966;38945;38946;51044;51045;67961;73342;76702 | HL6: True;True;True;True;True;True;True;True;True;True;True;True | HM6: 2557;34899;34901;34902;34903;42206;43269;43270;57398;57399;76167;82159;85905;85906 | HN6: 34068;34069;34070;34071;34072;34073;34074;34075;34076;34077;34078;34079;34080;34081;34082;34083;34084;34085;34086;34087;34088;34089;34090;34091;34092;34093;34094;34095;34096;34097;34098;34099;34100;34101;34102;34103;34104;34105;34106;34107;34108;34109;34110;34111;34112;34113;34114;34115;34116;34117;34118;34119;34120;34121;34122;34123;34124;34125;34126;34127;34128;34129;34130;34131;34132;34133;34134;34135;34136;34137;34138;34139;34140;34141;34142;34143;34144;34145;34146;34147;34148;34149;34150;34151;34152;34153;34154;34155;34156;34157;34158;34159;34160;34161;34162;34163;34164;34165;34166;34167;34168;34169;34170;34171;34172;34173;34174;34175;34176;34177;34178;34179;34180;34181;34182;34183;34184;34185;34186;34187;34188;34189;34190;34191;476529;476530;476531;476532;476533;476534;476535;476536;476537;476538;476539;476540;476541;476542;476543;476544;476545;476546;476547;476548;476549;476550;476551;476552;476553;476554;476555;476556;476557;476558;476559;476560;476561;476562;476563;476564;476565;476566;476567;476568;476569;476570;476571;476572;476573;476574;476575;476576;476577;476578;476579;476580;476581;476582;476583;476584;476585;476586;476587;476588;476589;476590;476591;476592;476593;476594;476595;476596;476597;476598;476599;476600;476601;476602;476603;476604;476605;476606;476607;476608;476609;476610;476611;476612;476613;476614;476615;476616;476617;476618;476619;476620;476621;476622;476623;476624;476625;476626;476627;476628;476629;476630;476631;476632;476633;476634;476635;476636;476637;476638;476639;476640;476641;476642;476643;476644;476645;476646;476647;476648;476649;476650;476651;476652;476653;476654;476655;476656;476657;476658;476659;476660;476661;476662;476663;476664;476665;476666;476667;476668;476669;476670;476671;476672;476673;476674;476675;476676;476677;476678;476679;476680;476681;476682;476683;476684;476685;476686;476687;476688;476689;476690;476691;476692;476693;476694;476695;476696;476697;476698;476699;476700;476701;476702;476703;476704;476705;476706;476707;476708;476709;476710;476711;476712;476713;476714;476715;476716;476717;476718;476719;476720;476721;476722;476723;476724;476725;476726;476727;476728;476729;476730;476731;476732;476733;476734;476735;476736;476737;476738;476739;476740;476741;476742;476743;476744;476745;476746;476747;476748;476749;476750;476751;476752;476753;476754;476755;476756;476757;476758;476759;476760;476761;476762;476763;476764;476765;476766;476767;476768;476769;476770;476771;476772;476773;476774;476775;476776;476777;476778;476779;476780;476781;476782;476783;476784;476785;476786;476787;476788;476789;476790;476791;476792;476793;476794;476795;476796;476797;476798;476799;476800;476801;476802;476803;476804;476805;476806;476807;476808;476809;476810;476811;476812;476813;476814;476815;476816;476817;476818;476819;476820;476821;476822;476823;476824;476825;476826;476827;476828;476829;476830;476831;476832;476833;476834;476835;476836;476837;476838;476839;476840;476841;476842;476843;476844;476845;476846;476847;476848;476849;476850;476851;476852;476853;476854;476855;476856;476857;476858;476859;476860;476861;476862;476863;476864;476865;476866;476867;476868;476869;476870;476871;476872;476873;476874;476875;476876;476877;476878;476879;476880;476881;476882;476883;476884;476885;476886;476887;476888;476889;476890;476891;476892;476893;476894;476895;476896;476897;476898;476899;476900;476901;476902;476903;476904;476905;476906;476907;476908;477374;477375;477376;477377;477378;477379;477380;477381;477382;477383;477384;477385;477386;477387;477388;477389;477390;477391;477392;477393;477394;477395;477396;477397;477398;477399;477400;477401;477402;477403;477404;477405;477406;477407;477408;477409;477410;477411;477412;477413;477414;477415;477416;477417;477418;477419;477420;477421;477422;477423;477424;477425;477426;477427;477428;477429;477430;477431;477432;477433;477434;477435;477436;477437;477438;477439;477440;477441;477442;477443;477444;477445;477446;477447;477448;477449;477450;477451;477452;477453;477454;477455;477456;477457;477458;477459;477460;477461;477462;477463;477464;477465;477466;477467;477468;477469;477470;477471;477472;477473;477474;477475;477476;477477;477478;477479;477480;477481;477482;477483;477484;477485;477486;477487;477488;477489;477490;477491;477492;477493;477494;477495;477496;477497;477498;477499;477500;477501;477502;477503;477504;477505;477506;477507;477508;477509;477510;477511;477512;477513;477514;477515;477516;477517;477518;477519;477520;477521;477522;477523;477524;477525;477526;477527;477528;477529;477530;477531;477532;477533;477534;477535;477536;477537;477538;477539;477540;477541;477542;477543;477544;477545;477546;477547;477548;477549;477550;477551;477552;477553;477554;477555;477556;477557;477558;477559;477560;477561;477562;477563;477564;477565;477566;477567;477568;477569;477570;477571;477572;477573;477574;477575;477576;477577;477578;477579;477580;477581;477582;477583;477584;477585;477586;477587;477588;477589;477590;477591;477592;477593;477594;477595;477596;477597;477598;477599;477600;477601;477602;477603;477604;477605;477606;477607;477608;477609;477610;477611;477612;477613;477614;477615;477616;477617;477618;477619;477620;477621;477622;477623;477624;477625;477626;477627;477628;477629;477630;477631;477632;477633;477634;477635;477636;477637;477638;477639;477640;477641;477642;477643;477644;477645;477646;477647;477648;477649;477650;477651;477652;477653;477654;477655;477656;477657;477658;477659;477660;477661;477662;477663;477664;477665;477666;477667;477668;477669;477670;477671;477672;477673;477674;477675;477676;477677;477678;477679;477680;477681;477682;477683;477684;477685;477686;477687;477688;477689;477690;477691;477692;477693;477694;477695;477696;477697;477698;477699;477700;477701;477702;477703;477704;477705;477706;477707;477708;477709;477710;477711;477712;477713;477714;477715;477716;477717;477718;477719;477720;477721;477722;477723;477724;477725;477726;477727;477728;477729;477730;477731;477732;477733;477734;477735;477736;477737;477738;477739;477740;477741;477742;477743;477744;477745;477746;477747;477748;477749;477750;477751;477752;477753;477754;477755;477756;477757;477758;477759;477760;477761;477762;477763;477764;477765;477766;477767;477768;477769;477770;477771;477772;477773;477774;477775;477776;477777;477778;477779;477780;477781;477782;477783;477784;477785;477786;477787;477788;477789;477790;477791;477792;477793;477794;477795;477796;477797;477798;477799;477800;477801;477802;477803;477804;477805;477806;477807;477808;477809;477810;477811;477812;477813;477814;477815;477816;477817;477818;477819;477820;477821;477822;477823;477824;477825;477826;477827;477828;477829;477830;579404;579405;579406;579407;579408;579409;579410;579411;594571;594572;594573;594574;594575;594576;594577;594578;594579;594580;594581;594582;594583;594584;594585;594586;594587;594588;594589;594590;594591;594592;594593;594594;594595;779558;779559;779560;779561;779562;779563;779564;779565;779566;779567;779568;779569;779570;779571;779572;779573;779574;779575;779576;779577;779578;779579;779580;779581;779582;779583;779584;779585;779586;779587;779588;779589;779590;779591;779592;779593;779594;779595;779596;779597;779598;779599;779600;779601;779602;779603;779604;779605;779606;779607;779608;779609;779610;779611;779612;779613;779614;779615;779616;779617;779618;779619;779620;779621;779622;779623;779624;779625;779626;779627;779628;779629;779630;779631;779632;779633;779634;779635;779636;779637;779638;779639;779640;779641;779642;779643;779644;779645;779646;779647;779648;779649;779650;779651;779652;779653;779654;779655;779656;779657;779658;779659;779660;779661;779662;779663;779664;779665;779666;779667;779668;779669;779670;779671;779672;779673;779674;779675;779676;779677;779678;779679;779680;779681;779682;779683;779684;779685;1028030;1028031;1028032;1028033;1028034;1028035;1028036;1028037;1028038;1028039;1028040;1028041;1028042;1028043;1028044;1028045;1111945;1111946;1111947;1111948;1163664;1163665;1163666;1163667;1163668;1163669;1163670;1163671;1163672;1163673;1163674;1163675;1163676;1163677;1163678;1163679;1163680;1163681;1163682;1163683;1163684;1163685;1163686;1163687;1163688;1163689;1163690;1163691;1163692;1163693;1163694;1163695;1163696;1163697;1163698;1163699;1163700;1163701;1163702;1163703;1163704;1163705;1163706;1163707;1163708;1163709;1163710;1163711;1163712;1163713;1163714;1163715;1163716;1163717;1163718;1163719;1163720;1163721;1163722;1163723;1163724;1163725;1163726;1163727;1163728;1163729;1163730;1163731;1163732;1163733;1163734;1163735;1163736;1163737;1163738;1163739;1163740;1163741;1163742;1163743;1163744;1163745;1163746;1163747;1163748;1163749;1163750;1163751;1163752;1163753;1163754;1163755;1163756;1163757;1163758;1163759;1163760;1163761;1163762;1163763;1163764;1163765;1163766;1163767;1163768;1163769;1163770;1163771;1163772;1163773;1163774;1163775;1163776;1163777;1163778;1163779;1163780;1163781;1163782;1163783;1163784;1163785;1163786;1163787;1163788;1163789;1163790;1163791;1163792;1163793;1163794;1163795;1163796;1163797;1163798;1163799;1163800;1163801;1163802;1163803;1163804;1163805;1163806;1163807;1163808;1163809;1163810;1163811;1163812;1163813;1163814;1163815;1163816;1163817;1163818;1163819;1163820;1163821;1163822;1163823;1163824;1163825;1163826;1163827;1163828;1163829;1163830;1163831;1163832;1163833;1163834;1163835;1163836;1163837;1163838;1163839;1163840;1163841;1163842;1163843;1163844;1163845;1163846;1163847;1163848;1163849;1163850;1163851;1163852;1163853;1163854;1163855;1163856;1163857;1163858;1163859;1163860;1163861;1163862;1163863;1163864;1163865;1163866;1163867;1163868;1163869;1163870;1163871;1163872;1163873;1163874;1163875;1163876;1163877;1163878;1163879;1163880;1163881;1163882;1163883;1163884;1163885;1163886;1163887;1163888;1163889;1163890;1163891;1163892;1163893;1163894;1163895;1163896;1163897;1163898;1163899;1163900;1163901;1163902;1163903;1163904;1163905;1163906;1163907;1163908;1163909;1163910;1163911;1163912;1163913;1163914;1163915;1163916;1163917;1163918;1163919;1163920;1163921;1163922;1163923;1163924;1163925;1163926;1163927;1163928;1163929;1163930 | HO6: 20511;20512;20513;20514;20515;20516;20517;20518;20519;20520;20521;20522;20523;20524;20525;20526;20527;20528;20529;20530;20531;20532;20533;20534;20535;20536;20537;20538;20539;20540;20541;20542;20543;20544;20545;20546;20547;20548;20549;20550;20551;20552;20553;20554;20555;20556;20557;20558;20559;20560;20561;20562;20563;20564;20565;20566;20567;20568;20569;20570;20571;20572;20573;20574;20575;20576;20577;20578;20579;20580;20581;20582;20583;20584;20585;20586;20587;20588;20589;20590;20591;20592;20593;20594;20595;20596;20597;20598;20599;20600;20601;20602;20603;20604;20605;20606;20607;20608;20609;20610;20611;20612;20613;20614;20615;20616;20617;20618;20619;20620;20621;20622;20623;20624;20625;20626;20627;20628;20629;20630;20631;20632;20633;20634;20635;20636;20637;20638;20639;20640;20641;20642;20643;20644;20645;20646;20647;20648;20649;20650;20651;20652;20653;20654;20655;20656;20657;20658;20659;20660;20661;20662;20663;20664;20665;20666;20667;20668;20669;20670;20671;20672;20673;20674;20675;20676;20677;20678;20679;20680;20681;20682;20683;20684;20685;20686;20687;20688;20689;20690;20691;20692;20693;20694;20695;20696;20697;20698;20699;20700;20701;20702;20703;20704;20705;20706;20707;20708;20709;20710;20711;20712;20713;20714;20715;20716;20717;20718;20719;20720;20721;20722;20723;20724;20725;20726;20727;20728;20729;20730;20731;20732;20733;20734;20735;20736;20737;20738;20739;20740;20741;20742;20743;20744;20745;20746;20747;20748;20749;20750;20751;20752;20753;20754;20755;20756;20757;20758;20759;20760;20761;20762;294643;294644;294645;294646;294647;294648;294649;294650;294651;294652;294653;294654;294655;294656;294657;294658;294659;294660;294661;294662;294663;294664;294665;294666;294667;294668;294669;294670;294671;294672;294673;294674;294675;294676;294677;294678;294679;294680;294681;294682;294683;294684;294685;294686;294687;294688;294689;294690;294691;294692;294693;294694;294695;294696;294697;294698;294699;294700;294701;294702;294703;294704;294705;294706;294707;294708;294709;294710;294711;294712;294713;294714;294715;294716;294717;294718;294719;294720;294721;294722;294723;294724;294725;294726;294727;294728;294729;294730;294731;294732;294733;294734;294735;294736;294737;294738;294739;294740;294741;294742;294743;294744;294745;294746;294747;294748;294749;294750;294751;294752;294753;294754;294755;294756;294757;294758;294759;294760;294761;294762;294763;294764;294765;294766;294767;294768;294769;294770;294771;294772;294773;294774;294775;294776;294777;294778;294779;294780;294781;294782;294783;294784;294785;294786;294787;294788;294789;294790;294791;294792;294793;294794;294795;294796;294797;294798;294799;294800;294801;294802;294803;294804;294805;294806;294807;294808;294809;294810;294811;294812;294813;294814;294815;294816;294817;294818;294819;294820;294821;294822;294823;294824;294825;294826;294827;294828;294829;294830;294831;294832;294833;294834;294835;294836;294837;294838;294839;294840;294841;294842;294843;294844;294845;294846;294847;294848;294849;294850;294851;294852;294853;294854;294855;294856;294857;294858;294859;294860;294861;294862;294863;294864;294865;294866;294867;294868;294869;294870;294871;294872;294873;294874;294875;294876;294877;294878;294879;294880;294881;294882;294883;294884;294885;294886;294887;294888;294889;294890;294891;294892;294893;294894;294895;294896;294897;294898;294899;294900;294901;294902;294903;294904;294905;294906;294907;294908;294909;294910;294911;294912;294913;294914;294915;294916;294917;294918;294919;294920;294921;294922;294923;294924;294925;294926;294927;294928;294929;294930;294931;294932;294933;294934;294935;294936;294937;294938;294939;294940;294941;294942;294943;294944;294945;294946;294947;294948;294949;294950;294951;294952;294953;294954;294955;294956;294957;294958;294959;294960;294961;294962;294963;294964;294965;294966;294967;294968;294969;294970;294971;294972;294973;294974;294975;294976;294977;294978;294979;294980;294981;294982;294983;294984;294985;294986;294987;294988;294989;294990;294991;294992;294993;294994;294995;294996;294997;294998;294999;295000;295001;295325;295326;295327;295328;295329;295330;295331;295332;295333;295334;295335;295336;295337;295338;295339;295340;295341;295342;295343;295344;295345;295346;295347;295348;295349;295350;295351;295352;295353;295354;295355;295356;295357;295358;295359;295360;295361;295362;295363;295364;295365;295366;295367;295368;295369;295370;295371;295372;295373;295374;295375;295376;295377;295378;295379;295380;295381;295382;295383;295384;295385;295386;295387;295388;295389;295390;295391;295392;295393;295394;295395;295396;295397;295398;295399;295400;295401;295402;295403;295404;295405;295406;295407;295408;295409;295410;295411;295412;295413;295414;295415;295416;295417;295418;295419;295420;295421;295422;295423;295424;295425;295426;295427;295428;295429;295430;295431;295432;295433;295434;295435;295436;295437;295438;295439;295440;295441;295442;295443;295444;295445;295446;295447;295448;295449;295450;295451;295452;295453;295454;295455;295456;295457;295458;295459;295460;295461;295462;295463;295464;295465;295466;295467;295468;295469;295470;295471;295472;295473;295474;295475;295476;295477;295478;295479;295480;295481;295482;295483;295484;295485;295486;295487;295488;295489;295490;295491;295492;295493;295494;295495;295496;295497;295498;295499;295500;295501;295502;295503;295504;295505;295506;295507;295508;295509;295510;295511;295512;295513;295514;295515;295516;295517;295518;295519;295520;295521;295522;295523;295524;295525;295526;295527;295528;295529;295530;295531;295532;295533;295534;295535;295536;295537;295538;295539;295540;295541;295542;295543;295544;295545;295546;295547;295548;295549;295550;295551;295552;295553;295554;295555;295556;295557;295558;295559;295560;295561;295562;295563;295564;295565;295566;295567;295568;295569;295570;295571;295572;295573;295574;295575;295576;295577;295578;295579;295580;295581;295582;295583;295584;295585;295586;295587;295588;295589;295590;295591;295592;295593;295594;295595;295596;295597;295598;295599;295600;295601;295602;295603;295604;295605;295606;295607;295608;295609;295610;295611;295612;295613;295614;295615;295616;295617;295618;295619;295620;295621;295622;295623;295624;295625;295626;295627;295628;295629;295630;295631;295632;295633;295634;295635;295636;295637;295638;295639;295640;295641;295642;295643;295644;295645;295646;295647;295648;295649;295650;295651;295652;295653;295654;295655;295656;295657;295658;295659;295660;295661;295662;295663;295664;295665;295666;295667;295668;295669;295670;295671;295672;295673;295674;295675;295676;295677;295678;295679;295680;295681;295682;295683;295684;295685;295686;295687;295688;295689;295690;295691;295692;295693;295694;295695;295696;295697;295698;295699;295700;295701;295702;295703;295704;295705;295706;295707;295708;295709;295710;295711;295712;295713;295714;295715;295716;295717;295718;295719;295720;295721;295722;295723;295724;295725;295726;295727;295728;295729;295730;295731;295732;295733;358776;358777;358778;358779;367044;367045;367046;367047;367048;367049;367050;367051;367052;480269;480270;480271;480272;480273;480274;480275;480276;480277;480278;480279;480280;480281;480282;480283;480284;480285;480286;480287;480288;480289;480290;480291;480292;480293;480294;480295;480296;480297;480298;480299;480300;480301;480302;480303;480304;480305;480306;480307;480308;480309;480310;480311;480312;480313;480314;480315;480316;480317;480318;480319;480320;480321;480322;480323;480324;480325;480326;480327;480328;480329;480330;480331;480332;480333;480334;480335;480336;480337;480338;480339;480340;480341;480342;480343;480344;480345;480346;480347;480348;480349;480350;480351;480352;480353;480354;480355;480356;480357;480358;480359;480360;480361;480362;480363;480364;480365;480366;480367;480368;480369;480370;480371;480372;480373;480374;480375;480376;480377;480378;480379;480380;480381;480382;480383;480384;480385;480386;480387;480388;480389;480390;480391;480392;480393;480394;480395;480396;480397;480398;480399;480400;480401;480402;480403;480404;480405;480406;480407;480408;630318;630319;630320;630321;630322;630323;683505;683506;683507;683508;715172;715173;715174;715175;715176;715177;715178;715179;715180;715181;715182;715183;715184;715185;715186;715187;715188;715189;715190;715191;715192;715193;715194;715195;715196;715197;715198;715199;715200;715201;715202;715203;715204;715205;715206;715207;715208;715209;715210;715211;715212;715213;715214;715215;715216;715217;715218;715219;715220;715221;715222;715223;715224;715225;715226;715227;715228;715229;715230;715231;715232;715233;715234;715235;715236;715237;715238;715239;715240;715241;715242;715243;715244;715245;715246;715247;715248;715249;715250;715251;715252;715253;715254;715255;715256;715257;715258;715259;715260;715261;715262;715263;715264;715265;715266;715267;715268;715269;715270;715271;715272;715273;715274;715275;715276;715277;715278;715279;715280;715281;715282;715283;715284;715285;715286;715287;715288;715289;715290;715291;715292;715293;715294;715295;715296;715297;715298;715299;715300;715301;715302;715303;715304;715305;715306;715307;715308;715309;715310;715311;715312;715313;715314;715315;715316;715317;715318;715319;715320;715321;715322;715323;715324;715325;715326;715327;715328;715329;715330;715331;715332;715333;715334;715335;715336;715337;715338;715339;715340;715341;715342;715343;715344;715345;715346;715347;715348;715349;715350;715351;715352;715353;715354;715355;715356;715357;715358;715359;715360;715361;715362;715363;715364;715365;715366;715367;715368;715369;715370;715371;715372;715373;715374;715375;715376;715377;715378;715379;715380;715381;715382;715383;715384;715385;715386;715387;715388;715389;715390;715391;715392;715393;715394;715395;715396;715397;715398;715399;715400;715401;715402;715403;715404;715405;715406;715407;715408;715409;715410;715411;715412;715413;715414;715415;715416;715417;715418;715419;715420;715421;715422;715423;715424;715425;715426;715427;715428;715429;715430;715431;715432;715433;715434;715435;715436;715437;715438;715439;715440;715441;715442;715443;715444;715445;715446;715447;715448;715449;715450;715451;715452;715453;715454;715455;715456;715457;715458;715459;715460;715461;715462;715463;715464;715465;715466;715467;715468;715469;715470;715471;715472;715473;715474;715475;715476;715477;715478;715479;715480;715481;715482;715483;715484;715485;715486;715487;715488;715489;715490;715491;715492;715493;715494;715495;715496 | HP6: 20631;294932;295429;295733;358777;367045;367051;480333;480404;630320;683505;715332 | HQ6: 479;480;1130 | HS6: 90;95;111 | HU6: 145000000000 | HV6: 1.240226667e+12 | HW6: 1.420416667e+11 | HX6: 1112300000000 | HY6: -0.0297387066 | HZ6: -0.1570578631
A7: Q01320 | B7: Q01320 | C7: 145 | D7: 145 | E7: 128 | F7: DNA topoisomerase 2-alpha | G7: Top2a | H7: sp|Q01320|TOP2A_MOUSE DNA topoisomerase 2-alpha OS=Mus musculus GN=Top2a PE=1 SV=2 | I7: 1 | J7: 145 | K7: 145 | L7: 128 | M7: 105 | N7: 106 | O7: 111 | P7: 108 | Q7: 99 | R7: 100 | S7: 86 | T7: 106 | U7: 102 | V7: 103 | W7: 96 | X7: 101 | Y7: 134 | Z7: 129 | AA7: 128 | AB7: 126 | AC7: 131 | AD7: 136 | AE7: 113 | AF7: 115 | AG7: 112 | AH7: 112 | AI7: 111 | AJ7: 114 | AK7: 105 | AL7: 106 | AM7: 111 | AN7: 108 | AO7: 99 | AP7: 100 | AQ7: 86 | AR7: 106 | AS7: 102 | AT7: 103 | AU7: 96 | AV7: 101 | AW7: 134 | AX7: 129 | AY7: 128 | AZ7: 126 | BA7: 131 | BB7: 136 | BC7: 113 | BD7: 115 | BE7: 112 | BF7: 112 | BG7: 111 | BH7: 114 | BI7: 91 | BJ7: 91 | BK7: 96 | BL7: 92 | BM7: 84 | BN7: 84 | BO7: 70 | BP7: 90 | BQ7: 86 | BR7: 87 | BS7: 80 | BT7: 85 | BU7: 117 | BV7: 112 | BW7: 111 | BX7: 110 | BY7: 115 | BZ7: 119 | CA7: 97 | CB7: 99 | CC7: 96 | CD7: 95 | CE7: 94 | CF7: 98 | CG7: 77 | CH7: 77 | CI7: 70.8 | CJ7: 172.79 | CK7: 1528 | CL7: 1528 | CM7: 0 | CN7: 323.31 | CO7: By MS/MS | CP7: By MS/MS | CQ7: By MS/MS | CR7: By MS/MS | CS7: By MS/MS | CT7: By MS/MS | CU7: By MS/MS | CV7: By MS/MS | CW7: By MS/MS | CX7: By MS/MS | CY7: By MS/MS | CZ7: By MS/MS | DA7: By MS/MS | DB7: By MS/MS | DC7: By MS/MS | DD7: By MS/MS | DE7: By MS/MS | DF7: By MS/MS | DG7: By MS/MS | DH7: By MS/MS | DI7: By MS/MS | DJ7: By MS/MS | DK7: By MS/MS | DL7: By MS/MS | DM7: 59.8 | DN7: 59.6 | DO7: 61 | DP7: 60.2 | DQ7: 58.7 | DR7: 59.8 | DS7: 54.1 | DT7: 62.8 | DU7: 63.2 | DV7: 61.7 | DW7: 60.5 | DX7: 59.7 | DY7: 70.9 | DZ7: 70.2 | EA7: 69.8 | EB7: 70.5 | EC7: 74 | ED7: 74.1 | EE7: 65.1 | EF7: 67.7 | EG7: 65.1 | EH7: 67.3 | EI7: 66.1 | EJ7: 68.1 | EK7: 2160900000000 | EL7: 35429000000 | EM7: 27699000000 | EN7: 41971000000 | EO7: 40431000000 | EP7: 38999000000 | EQ7: 33071000000 | ER7: 93363000000 | ES7: 122470000000 | ET7: 162610000000 | EU7: 156590000000 | EV7: 48992000000 | EW7: 68077000000 | EX7: 71728000000 | EY7: 70031000000 | EZ7: 48788000000 | FA7: 52475000000 | FB7: 75993000000 | FC7: 71562000000 | FD7: 187810000000 | FE7: 186040000000 | FF7: 102860000000 | FG7: 93780000000 | FH7: 161290000000 | FI7: 168810000000 | FJ7: 718500000000 | FK7: 704320000000 | FL7: 823750000000 | FM7: 827470000000 | FN7: 926910000000 | FO7: 904860000000 | FP7: 112850000000 | FQ7: 103760000000 | FR7: 103820000000 | FS7: 101910000000 | FT7: 69184000000 | FU7: 66973000000 | FV7: 975890000000 | FW7: 979590000000 | FX7: 760300000000 | FY7: 767390000000 | FZ7: 1001900000000 | GA7: 1024300000000 | GB7: 115070000000 | GC7: 117790000000 | GD7: 90535000000 | GE7: 92491000000 | GF7: 123610000000 | GG7: 125980000000 | GH7: 165 | GI7: 178 | GJ7: 194 | GK7: 187 | GL7: 141 | GM7: 127 | GN7: 107 | GO7: 158 | GP7: 151 | GQ7: 146 | GR7: 84 | GS7: 104 | GT7: 352 | GU7: 356 | GV7: 277 | GW7: 292 | GX7: 314 | GY7: 325 | GZ7: 182 | HA7: 187 | HB7: 161 | HC7: 158 | HD7: 181 | HE7: 173 | HF7: 4700 | HJ7: 1799 | HK7: 339;2179;2180;3183;3184;3188;5164;5229;7081;9322;10805;10921;10933;13209;13210;13211;15363;17981;18547;19580;20046;20365;22016;22017;22076;22154;22159;22160;22243;22244;22281;23798;24105;24106;24996;24997;25001;26157;26610;26614;26883;27351;27352;27358;27359;27761;27836;29387;29388;29962;31980;32396;33728;34718;34719;35382;35756;35955;36938;36953;37317;37318;37430;37452;37810;38205;38394;38395;38562;38570;38688;39160;39367;40112;40219;40220;40221;42596;43521;43857;43911;43912;46358;49220;49221;51282;51490;51883;52221;52222;53181;53640;53641;53642;54209;54635;55360;56077;56318;57138;57265;59044;59059;59549;59910;59981;60341;61238;61666;61667;61668;61902;62913;62914;64700;64702;65105;65106;66904;69113;70158;70159;70306;70307;70308;70342;71552;72402;72946;73224;74022;74112;74113;74540;74658;75455;76200;76704;77802;78699;79218;79396;79608;80357;80358 | HL7: True;True;True;True;True;True;True;True;True;True;True;True;True;True;True;True;True;True;True;True;True;True;True;True;True;True;True;True;True;True;True;True;True;True;True;True;True;True;True;True;True;True;True;True;True;True;True;True;True;True;True;True;True;True;True;True;True;True;True;True;True;True;True;True;True;True;True;True;True;True;True;True;True;True;True;True;True;True;True;True;True;True;True;True;True;True;True;True;True;True;True;True;True;True;True;True;True;True;True;True;True;True;True;True;True;True;True;True;True;True;True;True;True;True;True;True;True;True;True;True;True;True;True;True;True;True;True;True;True;True;True;True;True;True;True;True;True;True;True;True;True;True;True;True;True | HM7: 372;2381;2382;2383;2384;3509;3510;3514;5738;5808;5809;7842;10342;11998;11999;12125;12126;12138;14707;14708;14709;17071;19963;20589;20590;21795;21796;22301;22653;22654;22655;22656;24461;24462;24529;24612;24613;24618;24619;24620;24621;24622;24717;24718;24719;24762;26434;26774;26775;26776;27791;27792;27796;29061;29566;29567;29571;29870;30388;30389;30395;30396;30836;30914;32646;32647;32648;32649;33285;35510;35972;37466;37467;38571;38572;39325;39326;39327;39770;39985;41079;41096;41494;41495;41496;41497;41623;41646;42037;42038;42464;42668;42669;42854;42862;42986;43496;43725;44551;44663;44664;44665;44666;44667;47290;48300;48301;48670;48727;48728;48729;48730;51472;51473;54777;54778;54779;54780;54781;54782;57657;57892;57893;58368;58369;58370;58748;58749;58750;59882;60399;60400;60401;60402;61045;61507;62286;63071;63337;64234;64235;64236;64237;64373;66336;66354;66355;66884;67270;67347;67348;67744;68728;69192;69193;69194;69195;69445;70562;70563;70564;70565;72580;72582;73029;73030;74987;77442;78617;78618;78778;78779;78780;78781;78815;78816;80145;81094;81095;81706;82029;82030;82031;82903;83010;83011;83012;83481;83611;84525;84526;85355;85908;85909;85910;87117;87118;88108;88672;88876;88877;89103;89948;89949 | HU7: 1.109126667e+11 | HV7: 9.182283333e+11 | HW7: 9.308283333e+10 | HX7: 817635000000 | HY7: -0.2528371059 | HZ7: -0.1673959951
A8: P62806 | B8: P62806 | C8: 20 | D8: 20 | E8: 20 | F8: Histone H4 | G8: Hist1h4a | H8: sp|P62806|H4_MOUSE Histone H4 OS=Mus musculus GN=Hist1h4a PE=1 SV=2 | I8: 1 | J8: 20 | K8: 20 | L8: 20 | M8: 12 | N8: 12 | O8: 12 | P8: 11 | Q8: 12 | R8: 13 | S8: 18 | T8: 19 | U8: 19 | V8: 19 | W8: 16 | X8: 17 | Y8: 14 | Z8: 13 | AA8: 14 | AB8: 14 | AC8: 14 | AD8: 15 | AE8: 13 | AF8: 13 | AG8: 13 | AH8: 11 | AI8: 12 | AJ8: 11 | AK8: 12 | AL8: 12 | AM8: 12 | AN8: 11 | AO8: 12 | AP8: 13 | AQ8: 18 | AR8: 19 | AS8: 19 | AT8: 19 | AU8: 16 | AV8: 17 | AW8: 14 | AX8: 13 | AY8: 14 | AZ8: 14 | BA8: 14 | BB8: 15 | BC8: 13 | BD8: 13 | BE8: 13 | BF8: 11 | BG8: 12 | BH8: 11 | BI8: 12 | BJ8: 12 | BK8: 12 | BL8: 11 | BM8: 12 | BN8: 13 | BO8: 18 | BP8: 19 | BQ8: 19 | BR8: 19 | BS8: 16 | BT8: 17 | BU8: 14 | BV8: 13 | BW8: 14 | BX8: 14 | BY8: 14 | BZ8: 15 | CA8: 13 | CB8: 13 | CC8: 13 | CD8: 11 | CE8: 12 | CF8: 11 | CG8: 68.9 | CH8: 68.9 | CI8: 68.9 | CJ8: 11.367 | CK8: 103 | CL8: 103 | CM8: 0 | CN8: 157.66 | CO8: By MS/MS | CP8: By MS/MS | CQ8: By MS/MS | CR8: By MS/MS | CS8: By MS/MS | CT8: By MS/MS | CU8: By MS/MS | CV8: By MS/MS | CW8: By MS/MS | CX8: By MS/MS | CY8: By MS/MS | CZ8: By MS/MS | DA8: By MS/MS | DB8: By MS/MS | DC8: By MS/MS | DD8: By MS/MS | DE8: By MS/MS | DF8: By MS/MS | DG8: By MS/MS | DH8: By MS/MS | DI8: By MS/MS | DJ8: By MS/MS | DK8: By MS/MS | DL8: By MS/MS | DM8: 67 | DN8: 67 | DO8: 67 | DP8: 57.3 | DQ8: 67 | DR8: 58.3 | DS8: 68.9 | DT8: 68.9 | DU8: 68.9 | DV8: 68.9 | DW8: 68.9 | DX8: 68.9 | DY8: 68.9 | DZ8: 68 | EA8: 68.9 | EB8: 68.9 | EC8: 68.9 | ED8: 68.9 | EE8: 68 | EF8: 68 | EG8: 68 | EH8: 57.3 | EI8: 58.3 | EJ8: 57.3 | EK8: 2121800000000 | EL8: 39445000000 | EM8: 40365000000 | EN8: 37588000000 | EO8: 39671000000 | EP8: 35878000000 | EQ8: 39122000000 | ER8: 169200000000 | ES8: 187060000000 | ET8: 193710000000 | EU8: 197960000000 | EV8: 77777000000 | EW8: 102770000000 | EX8: 51551000000 | EY8: 51707000000 | EZ8: 49791000000 | FA8: 49930000000 | FB8: 45615000000 | FC8: 45481000000 | FD8: 108210000000 | FE8: 110820000000 | FF8: 100350000000 | FG8: 100140000000 | FH8: 123430000000 | FI8: 124250000000 | FJ8: 815850000000 | FK8: 805610000000 | FL8: 643110000000 | FM8: 632960000000 | FN8: 652370000000 | FO8: 775900000000 | FP8: 218750000000 | FQ8: 222340000000 | FR8: 160240000000 | FS8: 163620000000 | FT8: 133570000000 | FU8: 151090000000 | FV8: 636950000000 | FW8: 638360000000 | FX8: 763330000000 | FY8: 722300000000 | FZ8: 656390000000 | GA8: 596700000000 | GB8: 106810000000 | GC8: 106390000000 | GD8: 117760000000 | GE8: 119780000000 | GF8: 132570000000 | GG8: 138420000000 | GH8: 61 | GI8: 52 | GJ8: 52 | GK8: 52 | GL8: 38 | GM8: 39 | GN8: 40 | GO8: 43 | GP8: 46 | GQ8: 52 | GR8: 32 | GS8: 35 | GT8: 115 | GU8: 129 | GV8: 105 | GW8: 105 | GX8: 81 | GY8: 82 | GZ8: 42 | HA8: 39 | HB8: 45 | HC8: 46 | HD8: 50 | HE8: 58 | HF8: 1439 | HJ8: 1532 | HK8: 8930;8931;8932;12062;12063;12064;36303;36304;36305;38990;38991;56841;59887;59888;69673;71453;71454;71455;73218;73219 | HL8: True;True;True;True;True;True;True;True;True;True;True;True;True;True;True;True;True;True;True;True | HM8: 9904;9905;9906;13452;13453;13454;40373;40374;40375;43316;43317;43318;63907;67247;67248;78047;80035;80036;80037;80038;80039;82021;82022;82023;82024 | HN8: 132315;132316;132317;132318;132319;132320;132321;132322;132323;132324;132325;132326;132327;132328;132329;132330;132331;132332;132333;132334;132335;132336;132337;132338;132339;132340;132341;132342;132343;132344;132345;132346;132347;132348;132349;132350;132351;132352;132353;132354;132355;132356;132357;132358;132359;132360;132361;132362;132363;132364;132365;132366;132367;132368;132369;132370;132371;132372;132373;132374;132375;132376;132377;132378;132379;132380;132381;132382;132383;132384;132385;132386;132387;132388;132389;132390;132391;132392;132393;132394;132395;132396;132397;132398;132399;132400;132401;132402;132403;132404;132405;132406;132407;132408;132409;132410;132411;132412;132413;132414;132415;132416;132417;132418;132419;132420;132421;132422;132423;132424;132425;132426;132427;132428;132429;132430;132431;132432;132433;132434;132435;132436;132437;132438;132439;132440;132441;132442;132443;132444;132445;132446;132447;132448;132449;132450;132451;132452;132453;132454;132455;132456;132457;132458;132459;132460;132461;132462;132463;132464;132465;132466;132467;132468;132469;132470;132471;132472;132473;132474;132475;132476;132477;132478;132479;132480;132481;132482;132483;132484;132485;132486;182117;182118;182119;182120;182121;182122;182123;182124;182125;182126;182127;182128;182129;182130;182131;182132;182133;182134;182135;182136;182137;182138;182139;182140;182141;182142;182143;182144;182145;182146;182147;182148;182149;182150;182151;182152;182153;182154;182155;182156;182157;182158;182159;182160;182161;182162;182163;182164;182165;182166;182167;182168;182169;182170;182171;182172;182173;182174;182175;182176;182177;182178;182179;182180;182181;182182;182183;182184;182185;182186;182187;182188;182189;182190;182191;182192;182193;182194;182195;182196;182197;182198;182199;182200;182201;182202;182203;182204;182205;182206;182207;182208;182209;182210;182211;182212;182213;182214;182215;182216;182217;182218;182219;182220;182221;182222;182223;182224;182225;182226;182227;182228;182229;182230;182231;182232;182233;182234;182235;182236;182237;182238;182239;182240;182241;182242;182243;182244;182245;182246;182247;182248;182249;182250;182251;182252;182253;182254;182255;182256;182257;182258;182259;182260;182261;182262;182263;182264;182265;182266;182267;182268;182269;182270;182271;182272;182273;182274;182275;182276;182277;182278;182279;182280;182281;182282;182283;182284;182285;182286;182287;182288;182289;182290;182291;182292;182293;182294;182295;182296;182297;182298;182299;182300;182301;182302;182303;182304;182305;182306;182307;182308;182309;182310;182311;182312;182313;182314;182315;182316;182317;182318;182319;182320;182321;182322;182323;182324;182325;182326;182327;182328;182329;182330;182331;182332;182333;182334;182335;182336;182337;182338;182339;182340;182341;182342;182343;182344;182345;182346;182347;182348;182349;182350;182351;182352;182353;182354;182355;182356;182357;182358;182359;182360;182361;182362;182363;182364;182365;182366;182367;553366;553367;553368;553369;553370;553371;553372;553373;553374;553375;553376;553377;553378;553379;553380;553381;553382;553383;553384;553385;553386;553387;553388;553389;553390;553391;553392;553393;553394;553395;553396;553397;553398;553399;553400;553401;553402;553403;553404;553405;553406;553407;553408;553409;553410;553411;553412;553413;553414;553415;553416;553417;553418;553419;553420;553421;553422;553423;553424;553425;553426;553427;553428;553429;553430;553431;553432;553433;553434;553435;553436;553437;553438;553439;553440;553441;553442;553443;553444;553445;553446;553447;553448;553449;553450;553451;553452;553453;553454;553455;553456;553457;553458;553459;553460;553461;553462;553463;553464;553465;553466;553467;553468;553469;553470;553471;553472;553473;553474;553475;553476;553477;553478;553479;553480;553481;553482;553483;553484;553485;553486;553487;553488;553489;553490;553491;553492;553493;553494;553495;553496;553497;553498;553499;553500;553501;553502;553503;553504;553505;553506;553507;553508;553509;553510;553511;553512;553513;553514;553515;553516;553517;553518;553519;553520;553521;553522;553523;553524;553525;553526;553527;553528;553529;553530;553531;553532;553533;553534;553535;553536;553537;553538;553539;553540;553541;553542;553543;553544;553545;553546;553547;553548;553549;553550;553551;553552;553553;553554;553555;553556;553557;553558;553559;553560;553561;553562;553563;553564;553565;553566;553567;553568;553569;553570;553571;553572;553573;553574;553575;553576;553577;553578;553579;553580;553581;553582;553583;553584;553585;553586;553587;553588;553589;553590;553591;553592;553593;553594;553595;553596;553597;553598;553599;553600;553601;553602;553603;553604;553605;553606;553607;553608;553609;553610;553611;553612;553613;553614;553615;553616;553617;553618;595067;595068;595069;595070;595071;595072;595073;595074;595075;595076;595077;595078;595079;595080;595081;595082;595083;595084;595085;595086;595087;595088;595089;595090;595091;595092;595093;595094;595095;595096;595097;595098;595099;595100;595101;595102;595103;595104;595105;595106;595107;595108;595109;595110;595111;595112;595113;595114;595115;595116;595117;595118;595119;595120;595121;595122;595123;595124;595125;595126;595127;595128;595129;595130;595131;595132;595133;595134;595135;595136;595137;595138;595139;595140;595141;595142;595143;595144;595145;595146;595147;595148;595149;595150;595151;595152;595153;595154;595155;595156;595157;595158;595159;595160;595161;595162;595163;595164;595165;595166;595167;595168;595169;595170;595171;595172;595173;867100;867101;867102;867103;867104;867105;867106;867107;867108;867109;867110;867111;867112;867113;867114;867115;867116;867117;867118;909208;909209;909210;909211;909212;909213;909214;909215;909216;909217;909218;909219;909220;909221;909222;909223;909224;909225;909226;909227;909228;909229;909230;909231;909232;909233;909234;909235;909236;909237;909238;909239;909240;909241;1053991;1080573;1080574;1080575;1080576;1080577;1080578;1080579;1080580;1080581;1080582;1080583;1080584;1080585;1080586;1080587;1080588;1080589;1080590;1080591;1080592;1080593;1080594;1080595;1080596;1080597;1080598;1080599;1080600;1080601;1080602;1080603;1080604;1080605;1080606;1080607;1080608;1080609;1080610;1080611;1080612;1080613;1080614;1080615;1080616;1080617;1080618;1080619;1080620;1080621;1080622;1080623;1080624;1080625;1080626;1080627;1080628;1080629;1080630;1080631;1080632;1080633;1080634;1080635;1080636;1080637;1080638;1080639;1080640;1080641;1080642;1080643;1080644;1080645;1080646;1080647;1080648;1080649;1080650;1080651;1080652;1080653;1080654;1080655;1080656;1080657;1080658;1080659;1080660;1080661;1080662;1080663;1080664;1080665;1080666;1080667;1080668;1080669;1080670;1080671;1080672;1080673;1080674;1080675;1080676;1080677;1080678;1080679;1080680;1080681;1080682;1080683;1080684;1080685;1080686;1080687;1080688;1080689;1080690;1080691;1080692;1080693;1080694;1080695;1080696;1080697;1080698;1080699;1080700;1080701;1080702;1080703;1080704;1080705;1080706;1080707;1080708;1080709;1080710;1080711;1080712;1080713;1080714;1080715;1080716;1080717;1080718;1080719;1080720;1080721;1080722;1080723;1080724;1080725;1080726;1080727;1080728;1080729;1080730;1080731;1080732;1080733;1080734;1080735;1080736;1080737;1080738;1080739;1080740;1080741;1080742;1080743;1080744;1080745;1080746;1080747;1080748;1080749;1080750;1080751;1080752;1080753;1080754;1080755;1080756;1080757;1080758;1080759;1080760;1080761;1080762;1080763;1080764;1080765;1080766;1080767;1080768;1080769;1080770;1080771;1080772;1080773;1080774;1080775;1080776;1080777;1080778;1080779;1080780;1080781;1080782;1080783;1080784;1080785;1080786;1080787;1080788;1080789;1080790;1080791;1080792;1080793;1080794;1080795;1080796;1080797;1080798;1080799;1080800;1080801;1080802;1080803;1080804;1080805;1080806;1080807;1080808;1080809;1080810;1080811;1080812;1080813;1080814;1080815;1080816;1080817;1080818;1080819;1080820;1080821;1080822;1080823;1080824;1080825;1080826;1080827;1080828;1080829;1080830;1080831;1080832;1080833;1080834;1080835;1080836;1080837;1080838;1080839;1080840;1080841;1080842;1080843;1080844;1080845;1080846;1080847;1080848;1080849;1080850;1080851;1080852;1080853;1080854;1080855;1080856;1080857;1080858;1080859;1080860;1080861;1080862;1080863;1080864;1080865;1080866;1080867;1080868;1080869;1080870;1080871;1080872;1080873;1080874;1080875;1080876;1080877;1080878;1080879;1080880;1080881;1080882;1080883;1080884;1080885;1080886;1080887;1080888;1080889;1080890;1080891;1080892;1080893;1080894;1080895;1080896;1080897;1080898;1080899;1080900;1080901;1080902;1080903;1080904;1080905;1080906;1080907;1080908;1080909;1080910;1080911;1080912;1080913;1080914;1080915;1080916;1080917;1080918;1080919;1080920;1080921;1080922;1080923;1080924;1080925;1080926;1080927;1080928;1080929;1080930;1080931;1080932;1080933;1080934;1080935;1080936;1080937;1080938;1080939;1080940;1080941;1080942;1080943;1080944;1080945;1080946;1080947;1080948;1080949;1080950;1080951;1080952;1080953;1080954;1080955;1080956;1080957;1080958;1080959;1080960;1080961;1080962;1080963;1080964;1080965;1080966;1080967;1080968;1080969;1080970;1080971;1080972;1080973;1080974;1080975;1080976;1080977;1080978;1080979;1080980;1080981;1080982;1080983;1080984;1080985;1080986;1109574;1109575;1109576;1109577;1109578;1109579;1109580;1109581;1109582;1109583;1109584;1109585;1109586;1109587;1109588;1109589;1109590;1109591;1109592;1109593;1109594;1109595;1109596;1109597;1109598;1109599;1109600;1109601;1109602;1109603;1109604;1109605;1109606;1109607;1109608;1109609;1109610;1109611;1109612;1109613;1109614;1109615;1109616;1109617;1109618;1109619;1109620;1109621;1109622;1109623;1109624;1109625;1109626;1109627;1109628;1109629;1109630;1109631;1109632;1109633;1109634;1109635;1109636;1109637;1109638;1109639;1109640;1109641;1109642;1109643;1109644;1109645;1109646;1109647;1109648;1109649;1109650;1109651;1109652;1109653;1109654;1109655;1109656;1109657;1109658;1109659;1109660;1109661;1109662;1109663;1109664;1109665;1109666;1109667;1109668;1109669;1109670;1109671;1109672;1109673;1109674;1109675;1109676;1109677;1109678;1109679;1109680;1109681;1109682;1109683;1109684;1109685;1109686;1109687;1109688;1109689;1109690;1109691;1109692;1109693;1109694;1109695;1109696;1109697;1109698;1109699;1109700;1109701;1109702;1109703;1109704;1109705;1109706;1109707;1109708;1109709;1109710;1109711;1109712;1109713;1109714;1109715;1109716;1109717;1109718;1109719;1109720;1109721;1109722;1109723;1109724;1109725;1109726;1109727;1109728;1109729;1109730;1109731;1109732;1109733;1109734;1109735;1109736;1109737;1109738;1109739;1109740;1109741;1109742;1109743;1109744;1109745;1109746;1109747;1109748;1109749;1109750;1109751;1109752;1109753;1109754;1109755;1109756;1109757;1109758;1109759;1109760;1109761;1109762;1109763;1109764;1109765;1109766;1109767;1109768;1109769;1109770;1109771;1109772;1109773;1109774;1109775;1109776;1109777;1109778;1109779;1109780;1109781;1109782;1109783;1109784;1109785;1109786;1109787;1109788;1109789;1109790;1109791;1109792;1109793;1109794;1109795;1109796;1109797;1109798;1109799;1109800;1109801;1109802;1109803;1109804;1109805;1109806;1109807;1109808;1109809;1109810;1109811;1109812;1109813;1109814;1109815;1109816;1109817;1109818;1109819;1109820;1109821;1109822;1109823;1109824;1109825;1109826;1109827;1109828;1109829;1109830;1109831;1109832;1109833;1109834;1109835;1109836;1109837;1109838;1109839;1109840;1109841;1109842;1109843;1109844;1109845;1109846;1109847;1109848;1109849;1109850;1109851;1109852;1109853;1109854;1109855;1109856;1109857;1109858;1109859;1109860;1109861;1109862;1109863;1109864;1109865;1109866;1109867;1109868;1109869;1109870;1109871;1109872;1109873;1109874;1109875;1109876;1109877;1109878;1109879;1109880;1109881;1109882;1109883;1109884;1109885;1109886;1109887;1109888;1109889;1109890;1109891;1109892;1109893;1109894;1109895;1109896;1109897;1109898;1109899;1109900;1109901;1109902 | HO8: 80755;80756;80757;80758;80759;80760;80761;80762;80763;80764;80765;80766;80767;80768;80769;80770;80771;80772;80773;80774;80775;80776;80777;80778;80779;80780;80781;80782;80783;80784;80785;80786;80787;80788;80789;80790;80791;80792;80793;80794;80795;80796;80797;80798;80799;80800;80801;80802;80803;80804;80805;80806;80807;80808;80809;80810;80811;80812;80813;80814;80815;80816;80817;80818;80819;80820;80821;80822;80823;80824;80825;80826;80827;80828;80829;80830;80831;80832;80833;80834;80835;80836;80837;80838;80839;80840;80841;80842;80843;80844;80845;80846;80847;80848;80849;80850;80851;80852;80853;80854;80855;80856;80857;80858;80859;80860;80861;80862;80863;80864;80865;80866;80867;80868;80869;80870;80871;80872;80873;80874;80875;80876;80877;80878;80879;80880;80881;80882;80883;80884;80885;80886;80887;80888;80889;80890;80891;80892;80893;80894;80895;80896;80897;80898;80899;80900;80901;80902;80903;80904;80905;80906;80907;80908;80909;80910;80911;80912;80913;80914;80915;80916;80917;80918;80919;80920;80921;80922;80923;80924;80925;80926;80927;80928;80929;80930;80931;80932;80933;80934;80935;80936;80937;80938;80939;112751;112752;112753;112754;112755;112756;112757;112758;112759;112760;112761;112762;112763;112764;112765;112766;112767;112768;112769;112770;112771;112772;112773;112774;112775;112776;112777;112778;112779;112780;112781;112782;112783;112784;112785;112786;112787;112788;112789;112790;112791;112792;112793;112794;112795;112796;112797;112798;112799;112800;112801;112802;112803;112804;112805;112806;112807;112808;112809;112810;112811;112812;112813;112814;112815;112816;112817;112818;112819;112820;112821;112822;112823;112824;112825;112826;112827;112828;112829;112830;112831;112832;112833;112834;112835;112836;112837;112838;112839;112840;112841;112842;112843;112844;112845;112846;112847;112848;112849;112850;112851;112852;112853;112854;112855;112856;112857;112858;112859;112860;112861;112862;112863;112864;112865;112866;112867;112868;112869;112870;112871;112872;112873;112874;112875;112876;112877;112878;112879;112880;112881;112882;112883;112884;112885;112886;112887;112888;112889;112890;112891;112892;112893;112894;112895;112896;112897;112898;112899;112900;112901;112902;112903;112904;112905;112906;112907;112908;112909;112910;112911;112912;112913;112914;112915;112916;112917;112918;112919;112920;112921;112922;112923;112924;112925;112926;112927;112928;112929;112930;112931;112932;112933;112934;112935;112936;112937;112938;112939;112940;112941;112942;112943;112944;112945;112946;112947;112948;112949;112950;112951;112952;112953;112954;112955;112956;112957;112958;112959;112960;112961;112962;112963;112964;112965;112966;112967;112968;112969;112970;112971;112972;112973;112974;112975;112976;112977;112978;112979;112980;112981;112982;112983;112984;112985;112986;112987;112988;112989;112990;112991;112992;112993;112994;112995;112996;112997;112998;112999;113000;113001;113002;113003;113004;113005;113006;113007;113008;113009;113010;113011;113012;113013;113014;113015;113016;113017;113018;113019;113020;113021;113022;113023;113024;113025;113026;113027;113028;113029;113030;113031;113032;113033;113034;113035;113036;113037;113038;113039;113040;113041;113042;113043;113044;113045;113046;113047;113048;113049;113050;113051;113052;113053;113054;113055;113056;113057;113058;113059;113060;113061;113062;113063;113064;113065;113066;113067;113068;113069;113070;113071;113072;113073;113074;113075;113076;113077;113078;113079;113080;113081;113082;113083;113084;113085;113086;113087;113088;113089;113090;113091;343398;343399;343400;343401;343402;343403;343404;343405;343406;343407;343408;343409;343410;343411;343412;343413;343414;343415;343416;343417;343418;343419;343420;343421;343422;343423;343424;343425;343426;343427;343428;343429;343430;343431;343432;343433;343434;343435;343436;343437;343438;343439;343440;343441;343442;343443;343444;343445;343446;343447;343448;343449;343450;343451;343452;343453;343454;343455;343456;343457;343458;343459;343460;343461;343462;343463;343464;343465;343466;343467;343468;343469;343470;343471;343472;343473;343474;343475;343476;343477;343478;343479;343480;343481;343482;343483;343484;343485;343486;343487;343488;343489;343490;343491;343492;343493;343494;343495;343496;343497;343498;343499;343500;343501;343502;343503;343504;343505;343506;343507;343508;343509;343510;343511;343512;343513;343514;343515;343516;343517;343518;343519;343520;343521;343522;343523;343524;343525;343526;343527;343528;343529;343530;343531;343532;343533;343534;343535;343536;343537;343538;343539;343540;343541;343542;343543;343544;343545;343546;343547;343548;343549;343550;343551;343552;343553;343554;343555;343556;343557;343558;343559;343560;343561;343562;343563;343564;343565;343566;343567;343568;343569;343570;343571;343572;343573;343574;343575;343576;343577;343578;343579;343580;343581;343582;343583;343584;343585;343586;343587;343588;343589;343590;343591;343592;343593;343594;343595;343596;343597;343598;343599;343600;343601;343602;343603;343604;343605;343606;343607;343608;343609;343610;343611;343612;343613;343614;343615;343616;343617;343618;343619;343620;343621;343622;343623;343624;343625;343626;343627;343628;343629;343630;343631;343632;343633;343634;343635;343636;343637;343638;343639;343640;343641;343642;343643;343644;343645;343646;343647;343648;343649;343650;343651;343652;343653;343654;343655;343656;343657;343658;343659;343660;343661;343662;343663;343664;343665;343666;343667;343668;343669;343670;343671;343672;343673;343674;343675;343676;343677;343678;343679;343680;367281;367282;367283;367284;367285;367286;367287;367288;367289;367290;367291;367292;367293;367294;367295;367296;367297;367298;367299;367300;367301;367302;367303;367304;367305;367306;367307;367308;367309;367310;367311;367312;367313;367314;367315;367316;367317;367318;367319;367320;367321;367322;367323;367324;367325;367326;367327;367328;367329;367330;367331;367332;367333;367334;367335;534384;534385;534386;534387;534388;534389;534390;534391;534392;534393;558111;558112;558113;558114;558115;558116;558117;558118;558119;558120;558121;558122;558123;558124;558125;558126;558127;646931;663376;663377;663378;663379;663380;663381;663382;663383;663384;663385;663386;663387;663388;663389;663390;663391;663392;663393;663394;663395;663396;663397;663398;663399;663400;663401;663402;663403;663404;663405;663406;663407;663408;663409;663410;663411;663412;663413;663414;663415;663416;663417;663418;663419;663420;663421;663422;663423;663424;663425;663426;663427;663428;663429;663430;663431;663432;663433;663434;663435;663436;663437;663438;663439;663440;663441;663442;663443;663444;663445;663446;663447;663448;663449;663450;663451;663452;663453;663454;663455;663456;663457;663458;663459;663460;663461;663462;663463;663464;663465;663466;663467;663468;663469;663470;663471;663472;663473;663474;663475;663476;663477;663478;663479;663480;663481;663482;663483;663484;663485;663486;663487;663488;663489;663490;663491;663492;663493;663494;663495;663496;663497;663498;663499;663500;663501;663502;663503;663504;663505;663506;663507;663508;663509;663510;663511;663512;663513;663514;663515;663516;663517;663518;663519;663520;663521;663522;663523;663524;663525;663526;663527;663528;663529;663530;663531;663532;663533;663534;663535;663536;663537;663538;663539;663540;663541;663542;663543;663544;663545;663546;663547;663548;663549;663550;663551;663552;663553;663554;663555;663556;663557;663558;663559;663560;663561;663562;663563;663564;663565;663566;663567;663568;663569;663570;663571;663572;663573;663574;663575;663576;663577;663578;663579;663580;663581;663582;663583;663584;663585;663586;663587;663588;663589;663590;663591;663592;663593;663594;663595;663596;663597;663598;663599;663600;663601;663602;663603;663604;663605;663606;663607;663608;663609;663610;663611;663612;663613;663614;663615;663616;663617;663618;663619;663620;663621;663622;663623;663624;663625;663626;663627;663628;663629;663630;663631;663632;663633;663634;663635;663636;663637;663638;663639;663640;663641;663642;663643;663644;663645;663646;663647;663648;663649;663650;663651;663652;663653;663654;663655;663656;663657;663658;663659;663660;663661;663662;663663;663664;663665;663666;663667;663668;663669;663670;663671;663672;663673;663674;663675;663676;663677;663678;663679;663680;663681;663682;663683;663684;663685;663686;663687;663688;663689;663690;663691;663692;663693;663694;663695;663696;663697;663698;663699;663700;663701;663702;663703;663704;663705;663706;663707;663708;663709;663710;663711;663712;663713;663714;663715;663716;663717;663718;663719;663720;663721;663722;663723;663724;663725;663726;663727;663728;663729;663730;663731;663732;663733;663734;663735;663736;663737;663738;663739;663740;663741;663742;663743;663744;663745;663746;663747;663748;663749;663750;663751;663752;663753;663754;663755;663756;663757;663758;663759;663760;663761;663762;663763;663764;663765;663766;663767;663768;663769;663770;663771;663772;663773;663774;663775;663776;663777;663778;663779;663780;663781;663782;663783;663784;663785;663786;663787;663788;663789;663790;663791;663792;663793;663794;663795;663796;663797;663798;663799;663800;663801;663802;663803;663804;663805;663806;663807;663808;663809;663810;663811;663812;663813;663814;663815;663816;663817;663818;663819;663820;663821;663822;663823;663824;663825;663826;663827;663828;663829;663830;681851;681852;681853;681854;681855;681856;681857;681858;681859;681860;681861;681862;681863;681864;681865;681866;681867;681868;681869;681870;681871;681872;681873;681874;681875;681876;681877;681878;681879;681880;681881;681882;681883;681884;681885;681886;681887;681888;681889;681890;681891;681892;681893;681894;681895;681896;681897;681898;681899;681900;681901;681902;681903;681904;681905;681906;681907;681908;681909;681910;681911;681912;681913;681914;681915;681916;681917;681918;681919;681920;681921;681922;681923;681924;681925;681926;681927;681928;681929;681930;681931;681932;681933;681934;681935;681936;681937;681938;681939;681940;681941;681942;681943;681944;681945;681946;681947;681948;681949;681950;681951;681952;681953;681954;681955;681956;681957;681958;681959;681960;681961;681962;681963;681964;681965;681966;681967;681968;681969;681970;681971;681972;681973;681974;681975;681976;681977;681978;681979;681980;681981;681982;681983;681984;681985;681986;681987;681988;681989;681990;681991;681992;681993;681994;681995;681996;681997;681998;681999;682000;682001;682002;682003;682004;682005;682006;682007;682008;682009;682010;682011;682012;682013;682014;682015;682016;682017;682018;682019;682020;682021;682022;682023;682024;682025;682026;682027;682028;682029;682030;682031;682032;682033;682034;682035;682036;682037;682038;682039;682040;682041;682042;682043;682044;682045;682046;682047;682048;682049;682050;682051;682052;682053;682054;682055;682056;682057;682058;682059;682060;682061;682062;682063;682064;682065;682066;682067;682068;682069;682070;682071;682072;682073;682074;682075;682076;682077;682078;682079;682080;682081;682082;682083;682084;682085;682086;682087;682088;682089;682090;682091;682092;682093;682094;682095;682096;682097;682098;682099;682100;682101;682102;682103;682104;682105;682106;682107;682108;682109;682110;682111;682112;682113;682114;682115;682116;682117;682118;682119;682120;682121;682122;682123;682124;682125;682126;682127;682128;682129;682130;682131;682132;682133;682134;682135 | HP8: 80798;80915;80935;112937;113042;113089;343398;343607;343679;367315;367334;534387;558119;558127;646931;663631;663740;663820;682051;682123 | HQ8: 697 | HR8: 3565 | HS8: 65 | HT8: 85 | HU8: 1.202883333e+11 | HV8: 669005000000 | HW8: 174935000000 | HX8: 7.209666667e+11 | HY8: 0.5403222409 | HZ8: 0.1079155658
A9: P68372 | B9: P68372 | C9: 30 | D9: 30 | E9: 2 | F9: Tubulin beta-4B chain | G9: Tubb4b | H9: sp|P68372|TBB4B_MOUSE Tubulin beta-4B chain OS=Mus musculus GN=Tubb4b PE=1 SV=1 | I9: 1 | J9: 30 | K9: 30 | L9: 2 | M9: 24 | N9: 23 | O9: 22 | P9: 23 | Q9: 22 | R9: 23 | S9: 24 | T9: 27 | U9: 25 | V9: 25 | W9: 25 | X9: 26 | Y9: 24 | Z9: 21 | AA9: 24 | AB9: 24 | AC9: 24 | AD9: 23 | AE9: 27 | AF9: 27 | AG9: 27 | AH9: 27 | AI9: 27 | AJ9: 26 | AK9: 24 | AL9: 23 | AM9: 22 | AN9: 23 | AO9: 22 | AP9: 23 | AQ9: 24 | AR9: 27 | AS9: 25 | AT9: 25 | AU9: 25 | AV9: 26 | AW9: 24 | AX9: 21 | AY9: 24 | AZ9: 24 | BA9: 24 | BB9: 23 | BC9: 27 | BD9: 27 | BE9: 27 | BF9: 27 | BG9: 27 | BH9: 26 | BI9: 1 | BJ9: 1 | BK9: 1 | BL9: 1 | BM9: 1 | BN9: 1 | BO9: 1 | BP9: 2 | BQ9: 1 | BR9: 1 | BS9: 1 | BT9: 1 | BU9: 2 | BV9: 1 | BW9: 2 | BX9: 2 | BY9: 2 | BZ9: 2 | CA9: 2 | CB9: 2 | CC9: 2 | CD9: 2 | CE9: 2 | CF9: 2 | CG9: 83.6 | CH9: 83.6 | CI9: 3.6 | CJ9: 49.83 | CK9: 445 | CL9: 445 | CM9: 0 | CN9: 323.31 | CO9: By MS/MS | CP9: By MS/MS | CQ9: By MS/MS | CR9: By MS/MS | CS9: By MS/MS | CT9: By MS/MS | CU9: By MS/MS | CV9: By MS/MS | CW9: By MS/MS | CX9: By MS/MS | CY9: By MS/MS | CZ9: By MS/MS | DA9: By MS/MS | DB9: By MS/MS | DC9: By MS/MS | DD9: By MS/MS | DE9: By MS/MS | DF9: By MS/MS | DG9: By MS/MS | DH9: By MS/MS | DI9: By MS/MS | DJ9: By MS/MS | DK9: By MS/MS | DL9: By MS/MS | DM9: 75.5 | DN9: 75.5 | DO9: 75.3 | DP9: 75.3 | DQ9: 73.5 | DR9: 72.1 | DS9: 67.2 | DT9: 82.7 | DU9: 81.3 | DV9: 81.3 | DW9: 79.8 | DX9: 81.8 | DY9: 74.6 | DZ9: 73.5 | EA9: 74.6 | EB9: 74.6 | EC9: 74.6 | ED9: 70.8 | EE9: 73.5 | EF9: 77.3 | EG9: 76.4 | EH9: 76.4 | EI9: 76.4 | EJ9: 72.6 | EK9: 1819300000000 | EL9: 3198400000 | EM9: 3901600000 | EN9: 3612900000 | EO9: 3239000000 | EP9: 2457800000 | EQ9: 2075800000 | ER9: 89147000000 | ES9: 123250000000 | ET9: 178680000000 | EU9: 153940000000 | EV9: 81465000000 | EW9: 125130000000 | EX9: 5747200000 | EY9: 5823400000 | EZ9: 4539600000 | FA9: 4803300000 | FB9: 5607600000 | FC9: 4640400000 | FD9: 189120000000 | FE9: 190470000000 | FF9: 160740000000 | FG9: 144870000000 | FH9: 161590000000 | FI9: 171230000000 | FJ9: 70559000000 | FK9: 83973000000 | FL9: 75604000000 | FM9: 71710000000 | FN9: 60212000000 | FO9: 59460000000 | FP9: 96400000000 | FQ9: 94633000000 | FR9: 91877000000 | FS9: 89004000000 | FT9: 91345000000 | FU9: 91691000000 | FV9: 71832000000 | FW9: 79403000000 | FX9: 72178000000 | FY9: 71492000000 | FZ9: 66590000000 | GA9: 65837000000 | GB9: 99988000000 | GC9: 95840000000 | GD9: 103710000000 | GE9: 108050000000 | GF9: 96752000000 | GG9: 96951000000 | GH9: 45 | GI9: 51 | GJ9: 48 | GK9: 42 | GL9: 36 | GM9: 27 | GN9: 66 | GO9: 93 | GP9: 96 | GQ9: 90 | GR9: 65 | GS9: 80 | GT9: 61 | GU9: 59 | GV9: 60 | GW9: 54 | GX9: 48 | GY9: 42 | GZ9: 108 | HA9: 101 | HB9: 108 | HC9: 105 | HD9: 99 | HE9: 101 | HF9: 1685 | HJ9: 1605 | HK9: 4169;6745;14528;17823;21579;21580;24354;24355;25235;27163;27164;35399;35615;35616;36144;36264;37616;39967;42579;47751;47752;50237;50254;50316;52798;53635;62308;67278;76181;79841 | HL9: True;True;True;True;True;True;True;True;True;True;True;True;True;True;True;True;True;True;True;True;True;True;True;True;True;True;True;True;True;True | HM9: 4595;4596;7479;7480;16157;16158;19785;23968;23969;23970;23971;23972;23973;27076;27077;28061;30179;30180;39352;39353;39354;39615;39616;39617;40188;40327;40328;41823;41824;44388;44389;44390;44391;47269;47270;52993;52994;52995;52996;52997;52998;56334;56359;56360;56361;56451;59408;59409;59410;60391;60392;60393;69892;75407;85333;85334;85335;89356 | HN9: 61182;61183;61184;61185;61186;61187;61188;61189;61190;61191;61192;61193;61194;61195;61196;61197;61198;61199;61200;61201;61202;61203;61204;61205;61206;61207;61208;61209;61210;61211;61212;61213;61214;61215;61216;61217;61218;61219;61220;61221;61222;61223;61224;101461;101462;101463;101464;101465;101466;101467;101468;101469;101470;101471;101472;101473;101474;101475;101476;101477;101478;101479;101480;101481;101482;101483;101484;101485;101486;101487;101488;101489;101490;101491;101492;101493;101494;101495;101496;101497;101498;101499;101500;101501;101502;101503;101504;101505;101506;101507;101508;101509;101510;101511;219650;219651;219652;219653;219654;219655;219656;219657;219658;219659;219660;219661;219662;219663;219664;219665;219666;219667;219668;219669;219670;219671;219672;219673;219674;219675;219676;219677;219678;219679;219680;219681;219682;219683;219684;219685;219686;219687;219688;219689;219690;219691;219692;219693;219694;219695;219696;219697;219698;219699;219700;219701;219702;219703;219704;219705;219706;219707;219708;219709;219710;219711;219712;219713;219714;219715;219716;219717;219718;219719;219720;219721;219722;219723;219724;219725;219726;219727;219728;219729;219730;219731;219732;219733;219734;271159;271160;271161;271162;271163;271164;271165;271166;271167;271168;271169;271170;271171;271172;271173;271174;271175;271176;271177;271178;271179;271180;271181;271182;271183;271184;271185;271186;271187;271188;271189;271190;271191;271192;271193;271194;271195;271196;271197;271198;271199;271200;271201;271202;271203;271204;271205;271206;271207;271208;271209;271210;271211;271212;271213;271214;271215;271216;271217;271218;271219;271220;271221;271222;271223;271224;271225;271226;271227;271228;271229;271230;271231;271232;271233;271234;271235;271236;271237;271238;271239;327159;327160;327161;327162;327163;327164;327165;327166;327167;327168;327169;327170;327171;327172;327173;327174;327175;327176;327177;327178;327179;327180;327181;327182;327183;327184;327185;327186;327187;327188;327189;327190;327191;327192;327193;327194;327195;327196;327197;327198;327199;327200;327201;327202;327203;327204;327205;327206;327207;327208;327209;327210;327211;327212;327213;327214;327215;327216;327217;327218;327219;327220;327221;327222;327223;327224;327225;327226;327227;327228;327229;327230;327231;327232;327233;327234;327235;327236;327237;327238;327239;327240;327241;327242;327243;327244;327245;327246;327247;327248;327249;327250;327251;327252;327253;327254;327255;327256;327257;327258;327259;327260;327261;327262;327263;327264;327265;327266;327267;327268;327269;327270;327271;327272;327273;327274;327275;327276;327277;327278;327279;327280;327281;327282;327283;327284;327285;327286;327287;327288;327289;327290;327291;327292;327293;327294;327295;327296;327297;327298;327299;327300;327301;327302;327303;327304;327305;327306;327307;327308;327309;327310;327311;327312;369023;369024;369025;369026;369027;369028;369029;369030;369031;369032;369033;369034;369035;369036;369037;369038;369039;369040;369041;369042;369043;369044;369045;369046;369047;369048;369049;369050;369051;369052;369053;369054;369055;369056;369057;369058;369059;369060;369061;369062;369063;369064;369065;369066;369067;369068;369069;369070;369071;369072;369073;369074;369075;369076;369077;369078;382849;382850;382851;382852;382853;382854;382855;382856;382857;382858;382859;382860;382861;382862;382863;382864;382865;382866;382867;382868;382869;382870;382871;382872;382873;382874;382875;382876;382877;382878;382879;382880;382881;382882;382883;382884;382885;382886;382887;382888;382889;382890;382891;382892;382893;382894;382895;382896;382897;382898;382899;382900;382901;382902;382903;382904;382905;382906;382907;382908;382909;382910;382911;382912;382913;382914;382915;382916;382917;382918;382919;411566;411567;411568;411569;411570;411571;411572;411573;411574;411575;411576;411577;411578;411579;411580;411581;411582;411583;411584;411585;411586;411587;411588;411589;411590;411591;411592;411593;411594;411595;411596;411597;411598;411599;411600;411601;411602;411603;411604;411605;411606;411607;411608;411609;411610;411611;411612;411613;411614;411615;411616;411617;411618;411619;411620;411621;411622;411623;411624;411625;411626;411627;411628;411629;411630;411631;411632;411633;411634;411635;411636;411637;411638;411639;411640;411641;411642;411643;411644;411645;411646;411647;411648;411649;411650;411651;411652;411653;411654;411655;411656;411657;411658;411659;411660;411661;411662;411663;411664;411665;411666;411667;411668;411669;411670;411671;411672;411673;411674;411675;411676;411677;411678;411679;411680;411681;411682;411683;411684;411685;411686;411687;411688;411689;411690;411691;411692;411693;411694;411695;411696;411697;411698;411699;411700;411701;411702;411703;411704;411705;411706;411707;411708;411709;411710;411711;411712;411713;411714;411715;411716;411717;411718;411719;411720;411721;411722;411723;411724;411725;411726;411727;411728;411729;411730;411731;411732;411733;411734;411735;411736;411737;411738;411739;411740;411741;411742;411743;411744;411745;411746;411747;411748;411749;411750;411751;411752;411753;411754;411755;411756;411757;411758;411759;411760;411761;411762;411763;411764;411765;411766;411767;411768;411769;411770;411771;411772;411773;411774;411775;411776;411777;411778;411779;411780;411781;411782;411783;411784;411785;411786;411787;411788;411789;411790;411791;540233;540234;540235;540236;540237;540238;540239;540240;540241;540242;540243;540244;540245;540246;540247;540248;540249;540250;540251;540252;540253;540254;540255;540256;540257;540258;540259;540260;540261;540262;540263;540264;540265;540266;540267;540268;540269;540270;540271;540272;540273;540274;540275;540276;540277;540278;540279;540280;540281;540282;540283;540284;540285;540286;540287;540288;540289;540290;540291;540292;540293;540294;540295;540296;540297;540298;540299;540300;540301;540302;540303;540304;540305;540306;540307;540308;540309;540310;540311;540312;540313;540314;540315;540316;540317;540318;540319;540320;540321;540322;540323;540324;540325;540326;540327;540328;540329;543566;543567;543568;543569;543570;543571;543572;543573;543574;543575;543576;543577;543578;543579;543580;543581;543582;543583;543584;543585;543586;543587;543588;543589;543590;543591;543592;543593;543594;543595;543596;543597;543598;543599;543600;543601;543602;543603;543604;543605;543606;543607;543608;543609;543610;543611;543612;543613;543614;543615;543616;543617;543618;543619;543620;543621;543622;543623;543624;543625;543626;543627;543628;543629;543630;543631;543632;550815;550816;550817;550818;550819;550820;550821;550822;550823;550824;550825;550826;550827;550828;550829;550830;550831;550832;550833;550834;550835;550836;550837;550838;550839;550840;550841;550842;550843;550844;550845;550846;550847;550848;550849;550850;550851;550852;550853;550854;550855;552768;552769;552770;552771;552772;552773;552774;552775;552776;552777;552778;552779;552780;552781;552782;552783;552784;552785;552786;552787;552788;552789;552790;552791;552792;552793;552794;552795;552796;552797;552798;552799;552800;552801;552802;552803;552804;552805;552806;552807;552808;552809;552810;552811;552812;552813;552814;552815;552816;552817;552818;552819;552820;573803;573804;573805;573806;573807;573808;573809;573810;573811;573812;573813;573814;573815;573816;573817;573818;573819;573820;573821;573822;573823;573824;573825;573826;573827;573828;573829;573830;573831;573832;573833;573834;573835;573836;573837;573838;573839;573840;610529;610530;610531;610532;610533;610534;610535;610536;610537;610538;610539;610540;610541;610542;610543;610544;610545;610546;610547;610548;610549;610550;610551;610552;610553;610554;610555;610556;610557;610558;610559;610560;610561;610562;610563;610564;610565;610566;610567;610568;610569;610570;610571;610572;610573;610574;610575;610576;610577;610578;610579;610580;610581;610582;610583;610584;610585;610586;610587;610588;610589;610590;610591;610592;610593;610594;610595;610596;610597;610598;610599;610600;610601;610602;610603;610604;610605;610606;610607;610608;610609;610610;610611;610612;610613;610614;610615;610616;610617;610618;610619;610620;610621;610622;610623;610624;610625;610626;610627;610628;610629;610630;610631;610632;610633;610634;610635;610636;610637;610638;610639;610640;610641;610642;610643;610644;610645;610646;610647;610648;610649;610650;610651;610652;648101;648102;648103;648104;648105;648106;648107;648108;648109;648110;648111;648112;648113;648114;648115;648116;648117;648118;648119;648120;648121;648122;648123;648124;648125;648126;648127;648128;648129;648130;648131;648132;648133;648134;648135;648136;648137;648138;648139;648140;648141;648142;648143;648144;648145;648146;648147;648148;648149;648150;648151;648152;648153;724329;724330;724331;724332;724333;724334;724335;724336;724337;724338;724339;724340;724341;724342;724343;724344;724345;724346;724347;724348;724349;724350;724351;724352;724353;724354;724355;724356;724357;724358;724359;724360;724361;724362;724363;724364;724365;724366;724367;724368;724369;724370;724371;724372;724373;724374;724375;724376;724377;724378;724379;724380;724381;724382;724383;724384;724385;724386;724387;724388;724389;724390;724391;724392;724393;724394;724395;724396;724397;724398;724399;724400;724401;724402;724403;724404;724405;724406;724407;724408;724409;724410;724411;724412;724413;724414;724415;724416;724417;724418;724419;724420;724421;724422;724423;724424;724425;724426;724427;724428;724429;724430;724431;724432;724433;724434;724435;724436;724437;724438;724439;724440;724441;724442;724443;724444;724445;724446;724447;724448;724449;724450;724451;724452;724453;724454;724455;724456;724457;724458;724459;724460;724461;724462;724463;724464;724465;724466;724467;724468;724469;724470;724471;724472;724473;724474;724475;724476;724477;724478;724479;724480;724481;724482;724483;724484;724485;724486;724487;724488;724489;724490;724491;724492;724493;724494;724495;724496;724497;724498;724499;724500;724501;724502;724503;724504;724505;724506;724507;724508;724509;724510;724511;724512;724513;724514;724515;724516;724517;724518;724519;724520;724521;724522;724523;724524;724525;724526;724527;724528;724529;724530;724531;724532;724533;724534;724535;724536;724537;724538;766399;766400;766401;766402;766582;766583;766584;766585;766586;766587;766588;766589;766590;766591;766592;766593;766594;766595;766596;766597;766598;766599;766600;766601;766602;766603;766604;766605;766606;766607;766608;766609;766610;766611;766612;766613;766614;766615;766616;766617;766618;766619;767733;767734;807539;807540;807541;807542;807543;807544;807545;807546;807547;807548;807549;807550;807551;807552;807553;807554;807555;807556;807557;807558;807559;807560;807561;807562;807563;807564;807565;807566;807567;807568;807569;807570;807571;807572;807573;807574;807575;807576;807577;807578;807579;807580;807581;807582;807583;807584;807585;807586;807587;807588;807589;807590;807591;807592;807593;807594;807595;807596;807597;807598;807599;807600;807601;807602;807603;807604;807605;807606;807607;807608;807609;807610;807611;807612;807613;807614;807615;807616;807617;807618;807619;807620;807621;807622;807623;807624;807625;807626;807627;807628;807629;807630;807631;821621;821622;821623;821624;821625;821626;821627;821628;821629;821630;821631;821632;821633;821634;821635;821636;821637;821638;821639;821640;821641;821642;821643;821644;821645;821646;821647;821648;821649;821650;821651;821652;821653;821654;821655;821656;821657;821658;821659;821660;821661;821662;821663;821664;821665;821666;821667;821668;821669;821670;821671;821672;821673;821674;821675;821676;821677;821678;821679;821680;821681;821682;821683;821684;821685;821686;821687;821688;821689;821690;821691;821692;821693;821694;821695;821696;821697;821698;821699;821700;821701;821702;821703;821704;821705;821706;821707;821708;821709;821710;821711;821712;821713;821714;821715;821716;821717;821718;821719;821720;821721;821722;821723;821724;821725;821726;821727;821728;821729;821730;821731;821732;821733;821734;821735;821736;821737;821738;821739;821740;821741;821742;821743;821744;821745;821746;821747;821748;821749;821750;821751;821752;821753;821754;821755;821756;821757;821758;821759;821760;821761;821762;821763;821764;944415;944416;944417;944418;944419;1017705;1017706;1017707;1017708;1017709;1017710;1017711;1017712;1017713;1017714;1017715;1017716;1017717;1017718;1017719;1017720;1017721;1017722;1017723;1017724;1017725;1017726;1017727;1017728;1017729;1017730;1017731;1017732;1017733;1017734;1017735;1017736;1017737;1017738;1017739;1017740;1017741;1017742;1017743;1017744;1017745;1017746;1017747;1154947;1154948;1154949;1154950;1154951;1154952;1154953;1154954;1154955;1154956;1154957;1154958;1154959;1154960;1154961;1154962;1154963;1154964;1154965;1154966;1154967;1154968;1154969;1154970;1154971;1154972;1154973;1154974;1154975;1154976;1154977;1154978;1154979;1154980;1154981;1154982;1154983;1154984;1154985;1154986;1154987;1154988;1154989;1154990;1154991;1154992;1154993;1154994;1154995;1154996;1154997;1154998;1154999;1155000;1155001;1155002;1155003;1155004;1155005;1155006;1155007;1155008;1155009;1155010;1155011;1155012;1155013;1155014;1155015;1155016;1155017;1155018;1155019;1155020;1155021;1155022;1155023;1155024;1155025;1155026;1155027;1155028;1155029;1155030;1155031;1155032;1155033;1155034;1155035;1155036;1155037;1155038;1155039;1155040;1155041;1155042;1155043;1155044;1211528;1211529;1211530;1211531;1211532;1211533;1211534;1211535;1211536;1211537;1211538;1211539;1211540;1211541;1211542;1211543;1211544;1211545;1211546;1211547;1211548;1211549;1211550;1211551;1211552;1211553;1211554;1211555;1211556;1211557;1211558;1211559;1211560 | HO9: 36935;36936;36937;36938;36939;36940;36941;36942;36943;36944;36945;36946;36947;36948;36949;36950;36951;36952;36953;36954;36955;36956;36957;36958;36959;36960;36961;36962;36963;36964;36965;36966;36967;36968;36969;36970;36971;36972;36973;36974;36975;36976;61784;61785;61786;61787;61788;61789;61790;61791;61792;61793;61794;61795;61796;61797;61798;61799;61800;61801;61802;61803;61804;61805;61806;61807;61808;61809;61810;61811;61812;61813;61814;61815;61816;61817;61818;61819;61820;61821;61822;61823;61824;61825;61826;61827;61828;61829;61830;61831;61832;61833;61834;61835;61836;61837;61838;136617;136618;136619;136620;136621;136622;136623;136624;136625;136626;136627;136628;136629;136630;136631;136632;136633;136634;136635;136636;136637;136638;136639;136640;136641;136642;136643;136644;136645;136646;136647;136648;136649;136650;136651;136652;136653;136654;136655;136656;136657;136658;136659;136660;136661;136662;136663;136664;136665;136666;136667;136668;136669;136670;136671;136672;136673;136674;136675;136676;136677;167978;167979;167980;167981;167982;167983;167984;167985;167986;167987;167988;167989;167990;167991;167992;167993;167994;167995;167996;167997;167998;167999;168000;168001;168002;168003;168004;168005;168006;168007;168008;168009;168010;168011;168012;168013;168014;168015;168016;168017;168018;168019;168020;168021;168022;168023;168024;168025;168026;168027;168028;168029;168030;168031;168032;168033;168034;168035;168036;168037;168038;168039;168040;168041;168042;168043;168044;168045;168046;168047;168048;168049;168050;168051;168052;168053;168054;168055;168056;168057;168058;201985;201986;201987;201988;201989;201990;201991;201992;201993;201994;201995;201996;201997;201998;201999;202000;202001;202002;202003;202004;202005;202006;202007;202008;202009;202010;202011;202012;202013;202014;202015;202016;202017;202018;202019;202020;202021;202022;202023;202024;202025;202026;202027;202028;202029;202030;202031;202032;202033;202034;202035;202036;202037;202038;202039;202040;202041;202042;202043;202044;202045;202046;202047;202048;202049;202050;202051;202052;202053;202054;202055;202056;202057;202058;202059;202060;202061;202062;202063;202064;202065;202066;202067;202068;202069;202070;202071;202072;202073;202074;202075;202076;202077;202078;202079;202080;202081;202082;202083;202084;202085;202086;202087;202088;202089;202090;202091;202092;202093;202094;202095;202096;202097;202098;202099;202100;202101;202102;202103;202104;202105;202106;202107;202108;202109;202110;202111;202112;202113;202114;202115;202116;202117;202118;202119;227969;227970;227971;227972;227973;227974;227975;227976;227977;227978;227979;227980;227981;227982;227983;227984;227985;227986;227987;227988;227989;227990;227991;227992;227993;227994;227995;227996;227997;227998;227999;228000;228001;228002;228003;228004;228005;228006;228007;228008;228009;228010;228011;228012;228013;228014;228015;228016;228017;228018;228019;228020;228021;228022;228023;228024;228025;228026;228027;228028;228029;228030;228031;228032;228033;228034;228035;228036;228037;228038;228039;228040;228041;228042;228043;228044;228045;228046;228047;228048;228049;228050;228051;228052;228053;228054;228055;228056;228057;228058;228059;228060;228061;228062;228063;228064;228065;228066;228067;228068;228069;228070;228071;228072;228073;228074;228075;228076;228077;228078;228079;228080;236566;236567;236568;236569;236570;236571;236572;236573;236574;236575;236576;236577;236578;236579;236580;236581;236582;236583;236584;236585;236586;236587;236588;236589;236590;236591;236592;236593;236594;236595;236596;236597;236598;236599;236600;236601;236602;236603;236604;236605;236606;236607;236608;236609;236610;236611;236612;236613;236614;236615;236616;236617;236618;236619;236620;236621;236622;236623;236624;236625;236626;236627;236628;236629;236630;236631;236632;254225;254226;254227;254228;254229;254230;254231;254232;254233;254234;254235;254236;254237;254238;254239;254240;254241;254242;254243;254244;254245;254246;254247;254248;254249;254250;254251;254252;254253;254254;254255;254256;254257;254258;254259;254260;254261;254262;254263;254264;254265;254266;254267;254268;254269;254270;254271;254272;254273;254274;254275;254276;254277;254278;254279;254280;254281;254282;254283;254284;254285;254286;254287;254288;254289;254290;254291;254292;254293;254294;254295;254296;254297;254298;254299;254300;254301;254302;254303;254304;254305;254306;254307;254308;254309;254310;254311;254312;254313;254314;254315;254316;254317;254318;254319;254320;254321;254322;254323;254324;254325;254326;254327;254328;254329;254330;254331;254332;254333;254334;254335;254336;254337;254338;254339;254340;254341;254342;254343;254344;254345;254346;254347;254348;254349;254350;254351;254352;254353;254354;254355;254356;254357;254358;254359;254360;254361;254362;254363;254364;254365;254366;254367;254368;254369;254370;254371;254372;254373;254374;254375;254376;254377;254378;254379;254380;254381;254382;254383;254384;254385;254386;254387;254388;254389;254390;254391;254392;254393;254394;254395;254396;254397;254398;254399;254400;254401;335520;335521;335522;335523;335524;335525;335526;335527;335528;335529;335530;335531;335532;335533;335534;335535;335536;335537;335538;335539;335540;335541;335542;335543;335544;335545;335546;335547;335548;335549;335550;335551;335552;335553;335554;335555;335556;335557;335558;335559;335560;335561;335562;335563;335564;335565;335566;335567;335568;335569;335570;335571;335572;335573;335574;335575;335576;335577;335578;335579;335580;335581;335582;335583;335584;335585;335586;335587;335588;335589;335590;335591;335592;335593;335594;335595;335596;335597;335598;335599;335600;335601;335602;335603;335604;335605;335606;335607;335608;335609;335610;335611;335612;335613;335614;335615;335616;335617;335618;335619;335620;335621;335622;335623;335624;335625;335626;335627;335628;335629;335630;335631;335632;335633;335634;335635;335636;335637;335638;335639;335640;337610;337611;337612;337613;337614;337615;337616;337617;337618;337619;337620;337621;337622;337623;337624;337625;337626;337627;337628;337629;337630;337631;337632;337633;337634;337635;337636;337637;337638;337639;337640;337641;337642;337643;337644;337645;337646;337647;337648;337649;337650;337651;337652;337653;337654;337655;337656;337657;337658;337659;341947;341948;341949;341950;341951;341952;341953;341954;341955;341956;341957;341958;341959;341960;341961;341962;341963;341964;341965;341966;341967;341968;343072;343073;343074;343075;343076;343077;343078;343079;343080;343081;343082;343083;343084;343085;343086;343087;343088;343089;343090;343091;343092;343093;343094;343095;343096;343097;343098;343099;343100;343101;343102;343103;343104;343105;343106;343107;343108;343109;343110;343111;343112;343113;343114;343115;343116;343117;343118;343119;343120;343121;343122;343123;343124;343125;343126;343127;355622;355623;355624;355625;355626;355627;355628;355629;355630;355631;355632;355633;355634;355635;355636;355637;355638;355639;355640;355641;355642;355643;355644;355645;376824;376825;376826;376827;376828;376829;376830;376831;376832;376833;376834;376835;376836;376837;376838;376839;376840;376841;376842;376843;376844;376845;376846;376847;376848;376849;376850;376851;376852;376853;376854;376855;376856;376857;376858;376859;376860;376861;376862;376863;376864;376865;376866;376867;376868;376869;376870;376871;376872;376873;376874;376875;376876;376877;376878;376879;376880;376881;376882;376883;376884;376885;376886;376887;376888;376889;376890;376891;376892;376893;376894;376895;376896;376897;376898;376899;376900;376901;376902;376903;376904;376905;376906;376907;376908;376909;376910;376911;376912;376913;376914;376915;376916;376917;376918;376919;376920;376921;376922;376923;376924;376925;376926;376927;376928;376929;376930;376931;376932;376933;376934;376935;376936;376937;376938;376939;399963;399964;399965;399966;399967;399968;399969;399970;399971;399972;399973;399974;399975;399976;399977;399978;399979;399980;399981;399982;399983;399984;399985;399986;399987;399988;399989;399990;399991;399992;399993;399994;399995;399996;399997;399998;399999;400000;400001;400002;400003;400004;400005;400006;400007;446352;446353;446354;446355;446356;446357;446358;446359;446360;446361;446362;446363;446364;446365;446366;446367;446368;446369;446370;446371;446372;446373;446374;446375;446376;446377;446378;446379;446380;446381;446382;446383;446384;446385;446386;446387;446388;446389;446390;446391;446392;446393;446394;446395;446396;446397;446398;446399;446400;446401;446402;446403;446404;446405;446406;446407;446408;446409;446410;446411;446412;446413;446414;446415;446416;446417;446418;446419;446420;446421;446422;446423;446424;446425;446426;446427;446428;446429;446430;446431;446432;446433;446434;446435;446436;446437;446438;446439;446440;446441;446442;446443;446444;446445;446446;446447;446448;446449;446450;446451;446452;446453;446454;446455;446456;446457;446458;446459;446460;446461;446462;446463;446464;446465;446466;446467;446468;446469;446470;446471;446472;446473;446474;446475;446476;446477;446478;446479;446480;446481;446482;446483;446484;446485;472243;472341;472342;472343;472344;472345;472346;472347;472348;472349;472350;472351;472352;472353;472354;472355;472356;472357;472358;473068;473069;497897;497898;497899;497900;497901;497902;497903;497904;497905;497906;497907;497908;497909;497910;497911;497912;497913;497914;497915;497916;497917;497918;497919;497920;497921;497922;497923;497924;497925;497926;497927;497928;497929;497930;497931;497932;497933;497934;497935;497936;497937;497938;497939;497940;497941;497942;497943;497944;497945;497946;497947;497948;497949;497950;497951;497952;497953;497954;497955;497956;497957;497958;497959;497960;497961;497962;497963;497964;497965;497966;497967;497968;497969;497970;497971;497972;507117;507118;507119;507120;507121;507122;507123;507124;507125;507126;507127;507128;507129;507130;507131;507132;507133;507134;507135;507136;507137;507138;507139;507140;507141;507142;507143;507144;507145;507146;507147;507148;507149;507150;507151;507152;507153;507154;507155;507156;507157;507158;507159;507160;507161;507162;507163;507164;507165;507166;507167;507168;507169;507170;507171;507172;507173;507174;507175;507176;507177;507178;507179;507180;507181;507182;507183;507184;507185;507186;507187;507188;507189;507190;507191;507192;507193;507194;507195;507196;507197;507198;507199;507200;507201;507202;507203;507204;507205;507206;507207;507208;579237;579238;579239;579240;579241;579242;623498;623499;623500;623501;623502;623503;623504;623505;623506;623507;623508;623509;623510;623511;623512;623513;623514;623515;623516;623517;623518;623519;623520;623521;623522;623523;623524;623525;623526;623527;623528;623529;623530;623531;623532;623533;623534;623535;623536;623537;623538;623539;623540;623541;623542;623543;623544;623545;623546;623547;623548;623549;623550;623551;623552;623553;623554;623555;623556;623557;623558;623559;623560;623561;623562;623563;623564;623565;623566;623567;623568;623569;623570;623571;623572;623573;623574;623575;623576;623577;623578;623579;623580;623581;623582;623583;623584;623585;623586;623587;623588;623589;623590;623591;623592;623593;623594;623595;623596;623597;623598;623599;623600;623601;623602;623603;623604;623605;623606;623607;623608;623609;623610;623611;623612;623613;623614;623615;623616;623617;623618;623619;623620;623621;623622;623623;623624;623625;623626;623627;623628;623629;623630;623631;623632;623633;623634;623635;623636;623637;623638;623639;623640;623641;623642;623643;623644;623645;623646;623647;623648;623649;623650;623651;623652;623653;623654;623655;623656;623657;623658;623659;623660;623661;623662;623663;623664;623665;623666;623667;623668;623669;623670;623671;623672;623673;623674;623675;623676;623677;623678;623679;623680;623681;623682;623683;623684;623685;623686;623687;623688;623689;623690;623691;623692;623693;623694;623695;623696;623697;623698;623699;623700;623701;623702;623703;623704;623705;623706;623707;623708;710050;710051;710052;710053;710054;710055;710056;710057;710058;710059;710060;710061;710062;710063;710064;710065;710066;710067;710068;710069;710070;710071;710072;710073;710074;710075;710076;710077;710078;710079;710080;710081;710082;710083;710084;710085;710086;710087;710088;710089;710090;710091;710092;710093;710094;710095;710096;710097;710098;710099;710100;710101;710102;710103;710104;710105;710106;710107;710108;710109;710110;710111;710112;710113;710114;710115;710116;710117;710118;710119;710120;710121;710122;710123;710124;710125;710126;710127;710128;710129;710130;710131;710132;710133;710134;710135;710136;710137;710138;710139;710140;710141;710142;710143;710144;710145;710146;743701;743702;743703;743704;743705;743706;743707;743708;743709;743710;743711;743712;743713;743714;743715;743716;743717;743718;743719;743720;743721;743722;743723;743724;743725;743726;743727;743728;743729;743730;743731;743732;743733;743734;743735;743736;743737;743738;743739;743740;743741;743742;743743;743744;743745;743746;743747;743748;743749;743750;743751;743752;743753;743754;743755 | HP9: 36972;61832;136647;168036;202082;202116;228017;228074;236612;254282;254373;335573;337636;337651;341959;343074;355631;376924;400002;446428;446480;472243;472354;473069;497972;507132;579238;623618;710086;743748 | HQ9: 32;766;767;768;769;770;771;772;773;774;775;776;777;778 | HR9: 342;3715;3716;3717;3718;3719;3720;3721;3722;3723;3724;3725;3726;3727 | HS9: 52;165;184;195;204;226;247;256;332;335;337;347;348;370 | HT9: 73;147;164;233;257;267;293;299;300;321;323;330;363;388 | HU9: 1.002151667e+11 | HV9: 71222000000 | HW9: 9.249166667e+10 | HX9: 70253000000 | HY9: -0.1157055717 | HZ9: -0.01976311512
A10: P11499;REV__Q8BL66 | B10: P11499 | C10: 72;1 | D10: 72;1 | E10: 51;0 | F10: Heat shock protein HSP 90-beta | G10: Hsp90ab1 | H10: sp|P11499|HS90B_MOUSE Heat shock protein HSP 90-beta OS=Mus musculus GN=Hsp90ab1 PE=1 SV=3 | I10: 2 | J10: 72 | K10: 72 | L10: 51 | M10: 40 | N10: 34 | O10: 39 | P10: 37 | Q10: 31 | R10: 31 | S10: 48 | T10: 58 | U10: 56 | V10: 55 | W10: 58 | X10: 57 | Y10: 44 | Z10: 46 | AA10: 39 | AB10: 38 | AC10: 47 | AD10: 39 | AE10: 63 | AF10: 66 | AG10: 65 | AH10: 67 | AI10: 64 | AJ10: 64 | AK10: 40 | AL10: 34 | AM10: 39 | AN10: 37 | AO10: 31 | AP10: 31 | AQ10: 48 | AR10: 58 | AS10: 56 | AT10: 55 | AU10: 58 | AV10: 57 | AW10: 44 | AX10: 46 | AY10: 39 | AZ10: 38 | BA10: 47 | BB10: 39 | BC10: 63 | BD10: 66 | BE10: 65 | BF10: 67 | BG10: 64 | BH10: 64 | BI10: 26 | BJ10: 22 | BK10: 26 | BL10: 24 | BM10: 18 | BN10: 20 | BO10: 33 | BP10: 42 | BQ10: 40 | BR10: 39 | BS10: 42 | BT10: 42 | BU10: 29 | BV10: 30 | BW10: 25 | BX10: 25 | BY10: 31 | BZ10: 25 | CA10: 42 | CB10: 45 | CC10: 45 | CD10: 47 | CE10: 44 | CF10: 44 | CG10: 80.2 | CH10: 80.2 | CI10: 63.4 | CJ10: 83.28 | CK10: 724 | CL10: 724;1411 | CM10: 0 | CN10: 323.31 | CO10: By MS/MS | CP10: By MS/MS | CQ10: By MS/MS | CR10: By MS/MS | CS10: By MS/MS | CT10: By MS/MS | CU10: By MS/MS | CV10: By MS/MS | CW10: By MS/MS | CX10: By MS/MS | CY10: By MS/MS | CZ10: By MS/MS | DA10: By MS/MS | DB10: By MS/MS | DC10: By MS/MS | DD10: By MS/MS | DE10: By MS/MS | DF10: By MS/MS | DG10: By MS/MS | DH10: By MS/MS | DI10: By MS/MS | DJ10: By MS/MS | DK10: By MS/MS | DL10: By MS/MS | DM10: 55.4 | DN10: 51.4 | DO10: 64 | DP10: 56.6 | DQ10: 50.4 | DR10: 47.1 | DS10: 58 | DT10: 76.2 | DU10: 67.3 | DV10: 75.7 | DW10: 70.2 | DX10: 75.7 | DY10: 58 | DZ10: 64.2 | EA10: 60.8 | EB10: 59.7 | EC10: 65.2 | ED10: 55.8 | EE10: 70.4 | EF10: 74.4 | EG10: 76.4 | EH10: 79 | EI10: 77.8 | EJ10: 78.9 | EK10: 1751300000000 | EL10: 1422400000 | EM10: 1337100000 | EN10: 1737900000 | EO10: 1752100000 | EP10: 1183600000 | EQ10: 1063900000 | ER10: 124850000000 | ES10: 139300000000 | ET10: 166120000000 | EU10: 167280000000 | EV10: 113160000000 | EW10: 151090000000 | EX10: 3695500000 | EY10: 3379200000 | EZ10: 1871800000 | FA10: 1745500000 | FB10: 2629500000 | FC10: 2385200000 | FD10: 179210000000 | FE10: 172030000000 | FF10: 135280000000 | FG10: 127810000000 | FH10: 125160000000 | FI10: 125770000000 | FJ10: 33644000000 | FK10: 37005000000 | FL10: 36728000000 | FM10: 38570000000 | FN10: 33602000000 | FO10: 30968000000 | FP10: 121590000000 | FQ10: 114430000000 | FR10: 107940000000 | FS10: 112350000000 | FT10: 149360000000 | FU10: 148140000000 | FV10: 55287000000 | FW10: 56004000000 | FX10: 35264000000 | FY10: 33366000000 | FZ10: 37281000000 | GA10: 38035000000 | GB10: 115700000000 | GC10: 115870000000 | GD10: 120620000000 | GE10: 130050000000 | GF10: 100710000000 | GG10: 103010000000 | GH10: 18 | GI10: 27 | GJ10: 30 | GK10: 31 | GL10: 19 | GM10: 15 | GN10: 105 | GO10: 116 | GP10: 111 | GQ10: 115 | GR10: 113 | GS10: 106 | GT10: 57 | GU10: 58 | GV10: 36 | GW10: 38 | GX10: 42 | GY10: 47 | GZ10: 145 | HA10: 141 | HB10: 131 | HC10: 123 | HD10: 122 | HE10: 132 | HF10: 1878 | HJ10: 825 | HK10: 985;986;1049;1218;3182;3812;4714;4715;7832;11818;12157;15233;15458;15459;15693;15694;16851;16852;17520;17756;17897;18005;18569;18574;19312;20351;25270;26247;26483;29846;29847;30721;31283;31284;31604;32141;33197;33409;33410;36171;36172;38061;38079;38834;42153;42154;42203;42204;46700;48293;53002;54559;54879;54887;59532;59533;59787;60337;63027;63947;64002;64003;69041;69603;69604;73207;74055;74056;78858;78859;79323;79372 | HL10: True;True;True;True;True;True;True;True;True;True;True;True;True;True;True;True;True;True;True;True;True;True;True;True;True;True;True;True;True;True;True;True;True;True;True;True;True;True;True;True;True;True;True;True;True;True;True;True;True;True;True;True;True;True;True;True;True;True;True;True;True;True;True;True;True;True;True;True;True;True;True;True | HM10: 1075;1076;1150;1151;1339;3508;4194;5249;5250;8674;13112;13560;13561;13562;13563;13564;16930;17180;17181;17425;17426;18695;18696;19439;19710;19866;19988;20614;20615;20621;21475;21476;22636;22637;28097;29157;29420;29421;33158;33159;33160;34112;34720;34721;35091;35684;36867;37099;37100;40217;40218;42308;42327;43147;43148;46790;46791;46842;46843;46844;51834;53593;53594;53595;59675;59676;61426;61767;61775;66867;66868;67141;67142;67737;67738;70690;71689;71690;71748;71749;77361;77972;77973;82004;82005;82006;82945;82946;88277;88278;88794;88795;88851;88852 | HO10: 8664;8665;8666;8667;8668;8669;8670;8671;8672;8673;8674;8675;8676;8677;8678;8679;8680;8681;8682;8683;8684;8685;8686;8687;8688;8689;8690;8691;8692;8693;8694;8695;8696;8697;8698;8699;8700;8701;8702;8703;8704;8705;8706;8707;8708;8709;8710;8711;8712;8713;8714;8715;8716;8717;9220;9221;9222;9223;9224;9225;9226;9227;9228;9229;9230;9231;9232;9233;9234;9235;9236;9237;9238;9239;9240;9241;9242;9243;9244;9245;9246;9247;9248;9249;9250;9251;9252;9253;9254;9255;9256;9257;9258;9259;9260;9261;9262;9263;9264;9265;9266;9267;9268;10900;28357;28358;28359;28360;28361;33970;33971;33972;33973;33974;33975;33976;33977;33978;33979;33980;33981;33982;33983;33984;33985;33986;33987;33988;33989;33990;33991;33992;33993;33994;33995;33996;33997;33998;33999;34000;42904;42905;42906;42907;42908;42909;42910;42911;42912;42913;42914;42915;42916;42917;42918;42919;42920;42921;42922;42923;42924;42925;42926;42927;42928;70778;70779;70780;70781;70782;70783;70784;70785;70786;70787;70788;70789;70790;70791;70792;70793;70794;70795;70796;70797;70798;70799;70800;109630;109631;109632;109633;109634;109635;109636;109637;113925;113926;113927;113928;113929;113930;113931;113932;113933;113934;113935;113936;113937;113938;113939;113940;113941;113942;113943;113944;113945;113946;113947;113948;113949;113950;113951;113952;113953;113954;113955;113956;113957;113958;113959;113960;113961;113962;113963;113964;113965;113966;113967;113968;113969;113970;113971;113972;113973;113974;113975;113976;113977;113978;113979;113980;113981;113982;113983;113984;113985;113986;113987;113988;113989;113990;113991;113992;113993;113994;113995;113996;113997;113998;113999;114000;114001;114002;114003;114004;114005;114006;114007;114008;114009;114010;114011;143679;143680;143681;143682;143683;143684;143685;143686;145708;145709;145710;145711;145712;145713;145714;145715;145716;145717;145718;145719;145720;145721;145722;145723;145724;145725;145726;145727;145728;145729;145730;145731;145732;145733;145734;145735;145736;145737;145738;145739;145740;145741;145742;145743;145744;145745;145746;145747;145748;145749;145750;145751;145752;145753;145754;145755;145756;145757;145758;145759;145760;145761;145762;145763;145764;145765;145766;145767;145768;145769;145770;145771;145772;145773;145774;145775;147720;147721;147722;147723;147724;147725;147726;147727;147728;147729;147730;147731;147732;147733;147734;147735;147736;147737;147738;147739;147740;147741;147742;147743;147744;147745;147746;147747;147748;147749;147750;147751;147752;147753;147754;158185;158186;158187;158188;158189;158190;158191;158192;158193;158194;158195;158196;158197;158198;158199;158200;158201;158202;158203;158204;158205;158206;158207;158208;158209;158210;158211;158212;158213;158214;158215;158216;158217;158218;158219;158220;158221;158222;158223;158224;158225;158226;158227;158228;158229;158230;158231;158232;158233;158234;158235;158236;158237;158238;158239;158240;158241;158242;158243;158244;158245;158246;158247;158248;158249;158250;158251;158252;158253;164826;164827;164828;164829;164830;167181;167182;167183;167184;167185;167186;167187;167188;167189;167190;167191;167192;167193;167194;167195;167196;167197;167198;167199;167200;167201;168819;168820;168821;169566;169567;169568;169569;169570;169571;175318;175319;175320;175321;175322;175323;175324;175325;175326;175327;175328;175329;175330;175331;175332;175333;175334;175335;175336;175337;175338;175339;175340;175341;175342;175343;175344;175345;175346;175347;175348;175349;175350;175351;175352;175353;175354;175355;175356;175357;175358;175359;175360;175361;175362;175363;175364;175365;175366;175367;175368;175369;175370;175371;175372;175373;175374;175375;175455;175456;175457;175458;175459;175460;175461;175462;175463;175464;175465;175466;175467;175468;175469;175470;175471;175472;175473;182213;182214;182215;182216;182217;182218;182219;182220;182221;182222;182223;182224;182225;182226;182227;182228;182229;182230;182231;182232;182233;182234;182235;182236;182237;182238;182239;182240;182241;182242;182243;182244;182245;182246;182247;182248;182249;182250;182251;182252;182253;182254;182255;182256;182257;182258;182259;182260;182261;182262;182263;182264;182265;182266;182267;182268;182269;182270;182271;182272;182273;182274;182275;182276;182277;182278;182279;182280;182281;182282;191291;191292;191293;191294;191295;191296;191297;191298;191299;191300;191301;191302;191303;191304;191305;191306;191307;191308;191309;191310;191311;191312;191313;191314;191315;191316;191317;191318;191319;191320;191321;191322;236862;236863;236864;236865;236866;236867;236868;236869;236870;236871;236872;236873;236874;236875;236876;236877;236878;236879;236880;236881;236882;236883;236884;236885;236886;236887;236888;236889;245336;245337;245338;245339;245340;245341;245342;245343;245344;245345;245346;245347;245348;245349;245350;245351;247541;247542;247543;247544;247545;247546;247547;247548;247549;247550;247551;247552;247553;247554;247555;247556;247557;247558;247559;247560;247561;247562;247563;247564;247565;247566;247567;247568;247569;247570;247571;247572;247573;247574;247575;247576;247577;247578;247579;247580;247581;247582;247583;247584;247585;278327;278328;278329;278330;278331;278332;278333;278334;278335;278336;278337;278338;278339;278340;278341;278342;278343;278344;278345;278346;278347;278348;278349;278350;278351;278352;278353;278354;278355;278356;278357;278358;278359;278360;278361;278362;278363;278364;278365;278366;278367;278368;278369;278370;278371;278372;278373;278374;278375;278376;278377;278378;278379;278380;278381;278382;278383;278384;278385;278386;278387;278388;278389;278390;278391;278392;278393;278394;278395;278396;278397;278398;278399;278400;287081;287082;287083;287084;287085;287086;287087;287088;287089;287090;287091;287092;287093;287094;287095;287096;287097;287098;287099;287100;287101;287102;287103;287104;287105;287106;287107;287108;287109;287110;287111;287112;287113;287114;287115;287116;287117;287118;287119;287120;287121;287122;287123;287124;287125;287126;287127;287128;287129;287130;287131;287132;287133;287134;287135;287136;287137;287138;287139;287140;287141;287142;287143;287144;287145;287146;287147;287148;287149;287150;287151;287152;287153;287154;287155;287156;287157;287158;287159;287160;287161;287162;287163;287164;287165;287166;287167;287168;287169;287170;287171;287172;287173;287174;287175;287176;287177;287178;287179;287180;292786;292787;292788;292789;292790;292791;292792;292793;292794;292795;292796;292797;292798;292799;292800;292801;292802;292803;292804;292805;292806;292807;292808;292809;292810;292811;292812;292813;292814;292815;292816;292817;292818;292819;292820;292821;292822;292823;292824;292825;292826;292827;292828;292829;292830;292831;292832;292833;292834;292835;292836;292837;292838;292839;292840;292841;292842;292843;292844;292845;292846;292847;292848;292849;292850;292851;292852;292853;292854;292855;292856;292857;292858;292859;292860;292861;292862;292863;292864;292865;292866;292867;292868;292869;292870;292871;292872;292873;292874;292875;292876;292877;292878;292879;292880;292881;292882;292883;292884;292885;292886;292887;292888;292889;292890;292891;292892;292893;292894;292895;292896;292897;292898;292899;292900;292901;292902;292903;292904;292905;292906;292907;292908;292909;292910;292911;292912;292913;292914;292915;292916;292917;292918;292919;292920;297123;297124;297125;297126;297127;297128;297129;297130;297131;297132;297133;297134;297135;297136;297137;297138;297139;297140;297141;297142;297143;297144;297145;297146;297147;297148;297149;297150;297151;297152;297153;297154;297155;297156;297157;297158;297159;297160;297161;297162;297163;297164;297165;297166;297167;297168;297169;297170;297171;297172;297173;297174;297175;297176;297177;297178;297179;297180;297181;297182;297183;297184;297185;297186;297187;297188;297189;297190;297191;297192;297193;297194;297195;297196;297197;297198;297199;297200;297201;297202;297203;297204;297205;297206;297207;297208;297209;297210;297211;297212;297213;297214;297215;297216;297217;297218;297219;297220;297221;297222;297223;297224;297225;297226;297227;297228;297229;297230;297231;297232;297233;297234;297235;297236;297237;297238;297239;297240;297241;297242;297243;297244;297245;297246;297247;297248;297249;297250;297251;297252;297253;297254;297255;297256;297257;297258;297259;297260;297261;297262;297263;297264;297265;303022;303023;303024;303025;303026;303027;303028;303029;303030;303031;303032;303033;303034;303035;303036;303037;303038;303039;303040;303041;303042;303043;303044;303045;303046;303047;303048;303049;303050;303051;303052;303053;303054;303055;303056;303057;303058;303059;303060;303061;303062;303063;303064;303065;303066;303067;303068;303069;303070;303071;303072;303073;313666;313667;313668;313669;313670;313671;313672;313673;313674;313675;313676;313677;313678;313679;313680;313681;313682;313683;313684;313685;313686;313687;313688;313689;313690;313691;313692;313693;313694;313695;313696;313697;313698;313699;313700;313701;313702;313703;313704;313705;313706;313707;313708;313709;315714;315715;315716;315717;315718;315719;315720;315721;315722;315723;315724;315725;315726;315727;315728;315729;315730;315731;315732;315733;315734;315735;315736;315737;315738;315739;315740;315741;315742;315743;315744;315745;315746;315747;315748;342230;342231;342232;342233;342234;342235;342236;342237;342238;342239;342240;342241;342242;342243;342244;342245;342246;342247;342248;342249;342250;342251;342252;342253;342254;342255;342256;342257;342258;342259;342260;342261;342262;342263;342264;342265;342266;342267;342268;342269;342270;342271;342272;342273;342274;342275;342276;342277;342278;342279;342280;342281;342282;342283;342284;342285;342286;342287;342288;342289;342290;342291;342292;342293;342294;342295;342296;342297;342298;342299;342300;359700;359701;359702;359703;359704;359705;359706;359707;359708;359709;359710;359711;359712;359713;359714;359882;366234;366235;366236;366237;366238;366239;366240;366241;396324;396325;396326;396327;396328;396329;396330;396331;396332;396333;396334;396335;396336;396337;396338;396339;396340;396341;396342;396343;396344;396345;396346;396347;396348;396349;396350;396351;396352;396353;396354;396355;396356;396357;396358;396359;396360;396361;396362;396363;396364;396365;396366;396367;396368;396369;396370;396371;396372;396373;396374;396375;396376;396377;396378;396379;396722;396723;396724;396725;396726;396727;396728;396729;396730;396731;396732;396733;396734;396735;396736;396737;396738;396739;396740;396741;396742;396743;396744;396745;396746;437654;451426;451427;451428;451429;451430;451431;451432;451433;451434;451435;451436;451437;451438;451439;451440;451441;451442;451443;451444;451445;451446;451447;451448;451449;451450;451451;451452;451453;451454;451455;451456;451457;451458;451459;451460;451461;451462;451463;451464;500858;500859;500860;500861;500862;500863;500864;500865;500866;500867;500868;500869;500870;500871;500872;500873;500874;500875;500876;500877;500878;500879;500880;500881;500882;500883;500884;500885;500886;500887;500888;500889;500890;500891;500892;500893;500894;500895;500896;500897;500898;500899;500900;500901;500902;500903;500904;500905;500906;500907;500908;516163;516164;516165;518543;518544;518545;518546;518547;518548;518549;518550;518584;518585;518586;518587;518588;518589;518590;518591;555420;555421;555422;555423;555424;555425;555426;555427;555428;555429;555430;555431;557417;557418;557419;557420;557421;557422;557423;557424;557425;557426;557427;557428;557429;557430;557431;557432;557433;557434;557435;557436;557437;557438;557439;557440;557441;557442;557443;557444;557445;557446;561627;561628;561629;561630;585565;585566;585567;585568;585569;585570;585571;585572;585573;585574;585575;585576;585577;585578;585579;585580;585581;585582;585583;585584;585585;585586;585587;585588;585589;585590;585591;585592;585593;585594;585595;585596;585597;585598;585599;585600;585601;585602;585603;585604;585605;593489;593490;593491;593492;593493;593494;593495;593496;593497;593498;593499;593500;593501;593502;593503;593504;593505;593506;593507;593508;593509;593510;593511;593512;593513;593514;593515;593516;593517;593518;593519;593520;593521;593522;594005;594006;594007;594008;594009;594010;594011;594012;594013;594014;594015;594016;594017;594018;594019;594020;594021;594022;594023;640878;640879;640880;640881;640882;640883;640884;640885;640886;640887;640888;640889;640890;640891;640892;640893;640894;646162;646163;646164;646165;646166;646167;646168;646169;646170;646171;646172;646173;646174;646175;646176;646177;646178;646179;646180;646181;646182;646183;646184;646185;646186;646187;646188;646189;646190;646191;646192;646193;646194;646195;646196;646197;646198;646199;646200;646201;646202;646203;646204;646205;646206;646207;646208;646209;646210;646211;646212;646213;646214;646215;646216;646217;646218;646219;646220;646221;646222;646223;646224;646225;646226;646227;646228;646229;646230;646231;646232;646233;646234;646235;646236;646237;646238;646239;646240;646241;646242;646243;646244;681684;681685;681686;681687;681688;681689;681690;681691;681692;681693;681694;681695;681696;681697;681698;681699;681700;681701;681702;681703;681704;681705;681706;681707;681708;681709;681710;681711;681712;681713;681714;681715;681716;681717;690097;690098;690099;690100;690101;690102;690103;690104;690105;690106;690107;690108;690109;690110;690111;690112;690113;690114;690115;690116;734442;734443;734444;734445;734446;734447;734448;734449;734450;734451;734452;734453;734454;734455;734456;734457;734458;734459;734460;734461;734462;734463;734464;734465;734466;734467;734468;734469;734470;734471;734472;734473;734474;734475;734476;734477;734478;734479;734480;738823;738824;738825;738826;738827;738828;738829;738830;738831;738832;738833;738834;738835;738836;738837;738838;738839;738840;738841;738842;738843;738844;738845;738846;738847;738848;738849;738850;738851;738852;738853;738854;738855;738856;738857;738858;738859;738860;738861;738862;738863;738864;738865;738866;738867;738868;738869;738870;738871;738872;738873;738874;738875;738876;738877;738878;738879;738880;738881;738882;738883;738884;738885;738886;738887;738888;738889;738890;738891;738892;738893;738894;738895;738896;738897;738898;738899;738900;738901;738902;738903;738904;738905;738906;738907;738908;738909;738910;738911;738912;738913;738914;738915;738916;738917;738918;738919;738920;738921;738922;738923;738924;738925;738926;738927;739533;739534;739535;739536;739537;739538;739539;739540;739541;739542;739543;739544;739545;739546;739547;739548;739549;739550;739551;739552;739553;739554;739555;739556;739557;739558;739559;739560;739561;739562;739563;739564;739565;739566;739567;739568;739569;739570;739571;739572;739573;739574;739575;739576;739577;739578;739579;739580;739581;739582;739583;739584;739585;739586;739587;739588;739589;739590;739591;739592;739593;739594;739595;739596;739597;739598;739599;739600;739601 | HP10: 8697;8707;9244;10900;28357;33970;42904;42928;70794;109636;113946;143682;145749;145766;147725;147752;158227;158240;164830;167195;168821;169567;175345;175458;182219;191309;236886;245344;247545;278389;278399;287086;292791;292918;297151;303070;313709;315714;315742;342232;342284;359710;359882;366234;396358;396375;396725;396743;437654;451454;500876;516164;518549;518587;555421;555430;557440;561628;585589;593507;594005;594018;640893;646195;646242;681691;690105;690111;734470;734478;738844;739540 | HQ10: 286;287;296;339;340;341;342;343;344 | HR10: 1601;1802;1803;1804;1805;1806;1807;1808;1809;1810 | HS10: 46;100;101;292;310;375;496;601;614 | HT10: 25;363;394;466;513;602;617;620;621;720 | HU10: 1.143266667e+11 | HV10: 42539500000 | HW10: 125635000000 | HX10: 3.508616667e+10 | HY10: 0.1360764821 | HZ10: -0.2779007413
A11: P63017 | B11: P63017 | C11: 55 | D11: 55 | E11: 42 | F11: Heat shock cognate 71 kDa protein | G11: Hspa8 | H11: sp|P63017|HSP7C_MOUSE Heat shock cognate 71 kDa protein OS=Mus musculus GN=Hspa8 PE=1 SV=1 | I11: 1 | J11: 55 | K11: 55 | L11: 42 | M11: 32 | N11: 31 | O11: 32 | P11: 33 | Q11: 29 | R11: 29 | S11: 36 | T11: 41 | U11: 42 | V11: 44 | W11: 45 | X11: 46 | Y11: 36 | Z11: 32 | AA11: 34 | AB11: 35 | AC11: 34 | AD11: 30 | AE11: 46 | AF11: 48 | AG11: 45 | AH11: 46 | AI11: 46 | AJ11: 46 | AK11: 32 | AL11: 31 | AM11: 32 | AN11: 33 | AO11: 29 | AP11: 29 | AQ11: 36 | AR11: 41 | AS11: 42 | AT11: 44 | AU11: 45 | AV11: 46 | AW11: 36 | AX11: 32 | AY11: 34 | AZ11: 35 | BA11: 34 | BB11: 30 | BC11: 46 | BD11: 48 | BE11: 45 | BF11: 46 | BG11: 46 | BH11: 46 | BI11: 21 | BJ11: 19 | BK11: 23 | BL11: 23 | BM11: 19 | BN11: 21 | BO11: 25 | BP11: 29 | BQ11: 30 | BR11: 32 | BS11: 33 | BT11: 33 | BU11: 26 | BV11: 23 | BW11: 24 | BX11: 24 | BY11: 25 | BZ11: 21 | CA11: 34 | CB11: 36 | CC11: 33 | CD11: 34 | CE11: 34 | CF11: 34 | CG11: 76 | CH11: 76 | CI11: 69.3 | CJ11: 70.87 | CK11: 646 | CL11: 646 | CM11: 0 | CN11: 323.31 | CO11: By MS/MS | CP11: By MS/MS | CQ11: By MS/MS | CR11: By MS/MS | CS11: By MS/MS | CT11: By MS/MS | CU11: By MS/MS | CV11: By MS/MS | CW11: By MS/MS | CX11: By MS/MS | CY11: By MS/MS | CZ11: By MS/MS | DA11: By MS/MS | DB11: By MS/MS | DC11: By MS/MS | DD11: By MS/MS | DE11: By MS/MS | DF11: By MS/MS | DG11: By MS/MS | DH11: By MS/MS | DI11: By MS/MS | DJ11: By MS/MS | DK11: By MS/MS | DL11: By MS/MS | DM11: 53.3 | DN11: 56.2 | DO11: 52.3 | DP11: 54 | DQ11: 51.7 | DR11: 56.7 | DS11: 50.3 | DT11: 62.4 | DU11: 62.4 | DV11: 66.6 | DW11: 66.6 | DX11: 71.8 | DY11: 60.7 | DZ11: 59.1 | EA11: 59.4 | EB11: 61.3 | EC11: 60.5 | ED11: 57 | EE11: 67 | EF11: 67.3 | EG11: 65.2 | EH11: 67 | EI11: 66.3 | EJ11: 66.9 | EK11: 1743400000000 | EL11: 750780000 | EM11: 807780000 | EN11: 876630000 | EO11: 879690000 | EP11: 721110000 | EQ11: 631890000 | ER11: 121680000000 | ES11: 128240000000 | ET11: 152610000000 | EU11: 157610000000 | EV11: 125540000000 | EW11: 156600000000 | EX11: 1624900000 | EY11: 1469800000 | EZ11: 1012500000 | FA11: 896580000 | FB11: 1313400000 | FC11: 1093800000 | FD11: 191810000000 | FE11: 192010000000 | FF11: 133370000000 | FG11: 123340000000 | FH11: 125010000000 | FI11: 123530000000 | FJ11: 16981000000 | FK11: 19036000000 | FL11: 22725000000 | FM11: 23038000000 | FN11: 19208000000 | FO11: 19943000000 | FP11: 115000000000 | FQ11: 104850000000 | FR11: 98937000000 | FS11: 97412000000 | FT11: 162680000000 | FU11: 152210000000 | FV11: 24790000000 | FW11: 24616000000 | FX11: 18738000000 | FY11: 17608000000 | FZ11: 18841000000 | GA11: 18161000000 | GB11: 115480000000 | GC11: 116650000000 | GD11: 114130000000 | GE11: 119300000000 | GF11: 98647000000 | GG11: 102390000000 | GH11: 21 | GI11: 21 | GJ11: 24 | GK11: 20 | GL11: 18 | GM11: 13 | GN11: 64 | GO11: 83 | GP11: 85 | GQ11: 84 | GR11: 93 | GS11: 91 | GT11: 38 | GU11: 34 | GV11: 29 | GW11: 28 | GX11: 32 | GY11: 37 | GZ11: 126 | HA11: 132 | HB11: 126 | HC11: 117 | HD11: 103 | HE11: 108 | HF11: 1527 | HJ11: 1567 | HK11: 5432;5433;6343;7961;8660;8661;8662;10745;12107;12108;15779;17387;18765;19535;22739;22985;22986;23053;28378;29417;29752;32569;32570;34535;34536;34815;36660;42969;44311;46868;49655;50569;50587;53335;53344;53345;53531;59026;59027;59723;61670;62039;62040;62882;64967;65878;65879;69569;71044;71045;71476;72301;72854;76030;76430 | HL11: True;True;True;True;True;True;True;True;True;True;True;True;True;True;True;True;True;True;True;True;True;True;True;True;True;True;True;True;True;True;True;True;True;True;True;True;True;True;True;True;True;True;True;True;True;True;True;True;True;True;True;True;True;True;True | HM11: 6033;6034;6035;7041;8822;8823;9602;9603;9604;9605;11926;13503;13504;17523;19293;20838;21744;25262;25263;25538;25539;25540;25612;31549;32680;33057;36162;36163;36164;38370;38371;38686;40765;40766;47697;49159;49160;52018;55422;55423;56826;56827;56828;56829;56855;56856;60061;60070;60071;60072;60073;60074;60273;60274;60275;60276;66317;66318;66319;67069;67070;69197;69593;69594;69595;69596;70526;72869;73864;73865;77938;79589;79590;80060;80061;80980;81596;81597;85165;85607;85608 | HN11: 81654;81655;81656;81657;81658;81659;81660;81661;81662;81663;81664;81665;81666;81667;81668;81669;81670;81671;81672;81673;81674;81675;81676;81677;81678;81679;81680;81681;81682;81683;81684;81685;81686;81687;81688;81689;81690;81691;81692;81693;81694;81695;81696;81697;81698;81699;81700;81701;81702;81703;81704;81705;81706;81707;81708;81709;81710;81711;81712;81713;81714;81715;81716;81717;81718;81719;81720;81721;81722;81723;81724;81725;81726;81727;81728;81729;81730;81731;81732;81733;95121;95122;95123;95124;95125;95126;95127;95128;95129;118126;118127;118128;118129;118130;118131;118132;118133;118134;118135;118136;118137;118138;118139;118140;118141;118142;118143;118144;118145;118146;118147;118148;118149;118150;118151;118152;118153;118154;118155;118156;118157;118158;118159;118160;118161;118162;118163;118164;118165;118166;118167;118168;118169;118170;118171;118172;118173;118174;118175;118176;118177;118178;118179;118180;118181;118182;118183;118184;118185;118186;118187;118188;118189;118190;118191;128169;128170;128171;128172;128173;128174;128175;128176;128177;128178;128179;128180;128181;128182;128183;128184;128185;128186;128187;128188;128189;128190;128191;128192;128193;128194;128195;128196;128197;128198;128199;128200;128201;128202;128203;128204;128205;128206;128207;128208;128209;128210;128211;128212;128213;128214;128215;128216;128217;128218;128219;128220;128221;128222;128223;128224;128225;128226;128227;128228;128229;128230;128231;128232;128233;128234;128235;128236;128237;128238;128239;128240;128241;128242;128243;128244;160859;160860;160861;160862;160863;160864;160865;183033;183034;183035;183036;183037;183038;183039;183040;183041;183042;239279;239280;239281;239282;239283;239284;239285;239286;239287;239288;239289;239290;239291;239292;239293;239294;239295;239296;239297;239298;239299;239300;239301;239302;239303;239304;239305;239306;239307;239308;239309;239310;239311;239312;239313;239314;263989;263990;263991;263992;263993;263994;263995;263996;263997;263998;263999;264000;264001;264002;264003;264004;264005;264006;264007;264008;264009;264010;264011;264012;264013;264014;264015;264016;264017;264018;264019;264020;264021;264022;264023;264024;264025;264026;264027;264028;285592;285593;296873;296874;296875;296876;296877;296878;296879;344674;344675;344676;344677;344678;344679;344680;344681;344682;344683;344684;344685;344686;344687;344688;344689;344690;344691;344692;344693;344694;344695;344696;344697;344698;344699;344700;344701;344702;344703;344704;344705;344706;344707;348474;348475;348476;348477;348478;348479;348480;348481;348482;348483;348484;348485;348486;348487;348488;348489;348490;348491;348492;348493;348494;348495;348496;348497;348498;348499;348500;348501;348502;348503;348504;348505;348506;348507;348508;348509;348510;348511;348512;348513;348514;348515;348516;348517;348518;348519;348520;349390;349391;349392;349393;349394;349395;349396;349397;349398;349399;349400;349401;349402;349403;349404;349405;349406;349407;349408;349409;349410;349411;349412;349413;349414;349415;349416;349417;349418;349419;349420;349421;349422;349423;349424;349425;349426;349427;349428;430085;430086;430087;430088;430089;430090;430091;430092;430093;430094;430095;430096;430097;430098;430099;430100;430101;430102;430103;430104;430105;430106;430107;430108;430109;430110;430111;430112;430113;430114;430115;430116;430117;430118;430119;430120;430121;430122;430123;430124;430125;430126;430127;430128;430129;430130;430131;430132;430133;430134;430135;430136;430137;430138;430139;430140;430141;430142;430143;430144;430145;430146;430147;430148;430149;430150;430151;430152;430153;430154;430155;430156;430157;430158;430159;430160;430161;430162;430163;430164;430165;430166;430167;430168;430169;430170;430171;430172;430173;430174;430175;430176;430177;430178;430179;430180;430181;430182;430183;430184;430185;430186;430187;430188;444904;444905;444906;444907;444908;444909;444910;444911;444912;444913;444914;444915;444916;444917;444918;444919;444920;444921;444922;444923;444924;444925;444926;444927;444928;444929;444930;444931;444932;444933;444934;450015;450016;450017;450018;450019;450020;450021;450022;450023;450024;450025;450026;450027;450028;450029;450030;450031;450032;450033;450034;450035;450036;450037;450038;450039;450040;450041;450042;450043;450044;450045;450046;450047;450048;450049;450050;450051;450052;450053;450054;450055;450056;450057;450058;450059;450060;450061;450062;496270;496271;496272;496273;496274;496275;496276;496277;496278;496279;496280;496281;496282;496283;496284;496285;496286;496287;496288;496289;496290;496291;496292;496293;496294;496295;496296;496297;526669;526670;526671;526672;526673;526674;526675;526676;526677;526678;526679;526680;526681;526682;526683;526684;526685;526686;526687;526688;526689;526690;526691;526692;526693;526694;526695;526696;526697;526698;526699;526700;526701;526702;526703;526704;526705;526706;526707;526708;526709;526710;526711;526712;526713;526714;526715;526716;526717;526718;526719;526720;526721;526722;526723;526724;526725;526726;526727;526728;526729;526730;526731;526732;526733;526734;526735;526736;526737;526738;526739;526740;526741;526742;526743;526744;526745;526746;526747;526748;526749;526750;526751;526752;526753;526754;526755;526756;526757;526758;526759;526760;526761;526762;526763;526764;526765;526766;526767;526768;526769;526770;526771;526772;526773;526774;526775;526776;526777;531216;531217;531218;531219;531220;558876;558877;558878;558879;558880;558881;558882;558883;558884;558885;558886;558887;558888;558889;558890;558891;558892;558893;558894;558895;558896;558897;558898;558899;558900;558901;558902;558903;558904;558905;558906;558907;558908;558909;558910;558911;558912;558913;558914;558915;558916;558917;654298;654299;654300;654301;654302;654303;673931;673932;673933;673934;673935;673936;673937;673938;673939;673940;673941;673942;673943;673944;673945;673946;673947;673948;673949;673950;673951;673952;673953;673954;673955;673956;673957;673958;673959;673960;673961;673962;673963;673964;673965;673966;673967;673968;673969;673970;673971;673972;673973;673974;673975;673976;673977;673978;673979;673980;673981;673982;673983;673984;673985;673986;673987;673988;673989;673990;673991;673992;673993;673994;673995;673996;673997;673998;673999;674000;674001;674002;674003;674004;674005;674006;674007;674008;674009;674010;674011;674012;674013;674014;674015;674016;674017;674018;674019;674020;674021;674022;674023;674024;674025;674026;674027;674028;674029;674030;674031;674032;674033;674034;674035;674036;674037;674038;674039;674040;674041;674042;674043;674044;674045;674046;674047;674048;674049;674050;674051;674052;674053;674054;674055;674056;674057;674058;711577;711578;711579;711580;711581;711582;755214;755215;755216;755217;755218;755219;755220;755221;755222;755223;755224;755225;755226;755227;755228;755229;755230;755231;755232;755233;755234;755235;755236;755237;755238;755239;755240;755241;755242;755243;755244;755245;755246;755247;755248;755249;755250;755251;771912;771913;771914;771915;771916;771917;771918;771919;771920;771921;771922;771923;771924;771925;771926;771927;771928;771929;771930;771931;771932;771933;771934;771935;771936;771937;771938;771939;771940;771941;771942;771943;771944;771945;771946;771947;771948;771949;771950;771951;771952;771953;771954;771955;771956;771957;771958;771959;771960;771961;771962;771963;771964;771965;771966;771967;771968;771969;771970;771971;771972;771973;771974;771975;771976;771977;771978;771979;771980;771981;771982;771983;771984;771985;771986;771987;771988;771989;771990;771991;771992;771993;771994;771995;771996;771997;771998;771999;772000;772001;772002;772003;772004;772005;772006;772007;772296;772297;772298;772299;772300;772301;772302;772303;772304;772305;772306;772307;772308;772309;772310;772311;772312;772313;772314;772315;772316;772317;772318;772319;772320;772321;772322;772323;772324;772325;772326;772327;772328;772329;772330;772331;772332;772333;772334;772335;772336;772337;817325;817326;817327;817328;817329;817330;817331;817332;817333;817334;817335;817336;817337;817338;817339;817340;817341;817342;817343;817344;817345;817346;817347;817348;817349;817350;817351;817352;817353;817354;817355;817356;817445;817446;817447;817448;817449;817450;817451;817452;817453;817454;817455;817456;817457;817458;817459;817460;817461;817462;817463;817464;817465;817466;817467;817468;817469;817470;817471;817472;817473;817474;817475;817476;817477;817478;817479;817480;817481;817482;817483;817484;817485;817486;817487;817488;817489;817490;817491;817492;817493;817494;817495;817496;817497;817498;817499;817500;817501;817502;817503;817504;817505;817506;817507;817508;817509;817510;817511;817512;817513;817514;817515;817516;817517;817518;817519;817520;817521;817522;817523;817524;817525;817526;817527;817528;817529;817530;817531;817532;817533;817534;817535;817536;817537;817538;817539;817540;817541;817542;817543;817544;817545;817546;817547;817548;817549;817550;817551;817552;817553;817554;817555;817556;817557;817558;817559;819973;819974;819975;819976;819977;819978;819979;819980;819981;819982;819983;819984;819985;819986;819987;819988;819989;819990;819991;819992;819993;819994;819995;819996;819997;819998;819999;820000;820001;820002;820003;820004;820005;820006;820007;820008;820009;820010;820011;820012;820013;820014;820015;820016;820017;820018;820019;820020;820021;820022;820023;820024;820025;820026;820027;820028;820029;820030;820031;820032;820033;820034;820035;820036;820037;820038;820039;820040;820041;820042;820043;820044;820045;820046;820047;820048;820049;820050;820051;820052;820053;820054;820055;820056;820057;820058;820059;820060;820061;820062;820063;820064;820065;820066;897473;897474;897475;897476;897477;897478;897479;897480;897481;897482;897483;897484;897485;897486;897487;897488;897489;897490;897491;897492;897493;897494;897495;897496;897497;897498;897499;897500;897501;897502;897503;897504;897505;897506;897507;897508;897509;897510;897511;897512;897513;897514;897515;897516;897517;897518;897519;897520;897521;897522;897523;897524;897525;897526;897527;897528;907007;907008;907009;907010;907011;907012;907013;907014;907015;907016;907017;907018;907019;907020;907021;907022;907023;907024;907025;907026;907027;907028;907029;907030;907031;907032;907033;907034;907035;907036;907037;907038;907039;907040;907041;907042;907043;907044;907045;907046;907047;907048;907049;907050;907051;907052;907053;907054;907055;907056;907057;907058;907059;907060;907061;907062;907063;907064;907065;907066;907067;907068;907069;907070;907071;907072;907073;907074;907075;907076;907077;907078;907079;907080;935624;940575;940576;940577;940578;940579;940580;940581;940582;940583;940584;940585;940586;940587;940588;940589;940590;940591;940592;940593;940594;940595;940596;940597;940598;940599;940600;940601;940602;940603;940604;940605;940606;940607;940608;940609;940610;940611;940612;940613;940614;940615;940616;940617;940618;940619;940620;940621;940622;940623;940624;940625;940626;940627;940628;940629;940630;940631;940632;940633;940634;940635;940636;940637;940638;940639;940640;940641;940642;940643;940644;940645;952717;952718;952719;952720;952721;952722;952723;952724;952725;952726;952727;952728;952729;952730;952731;952732;952733;952734;952735;952736;952737;952738;952739;952740;952741;952742;952743;952744;952745;952746;952747;952748;952749;952750;952751;952752;952753;952754;952755;952756;983956;983957;983958;983959;983960;983961;983962;983963;983964;983965;983966;983967;983968;983969;983970;983971;983972;983973;983974;983975;983976;983977;983978;983979;983980;983981;983982;983983;983984;983985;983986;983987;983988;983989;983990;983991;983992;983993;983994;983995;983996;983997;983998;983999;984000;984001;984002;984003;984004;984005;984006;984007;984008;984009;984010;984011;984012;984013;984014;984015;984016;984017;984018;984019;984020;984021;996712;996713;996714;996715;996716;996717;996718;996719;996720;996721;996722;996723;996724;996725;996726;996727;996728;996729;996730;996731;996732;996733;996734;996735;996736;996737;996738;996739;996740;996741;996742;996743;996744;996745;996746;996747;996748;996749;996750;996751;996752;996753;996754;996755;996756;996757;996758;996759;996760;996761;996762;996763;996764;996765;996766;996767;996768;996769;996770;996771;996772;996773;996774;996775;996776;996777;996778;996779;996780;996781;996782;996783;996784;996785;996786;996787;996788;996789;996790;996791;996792;996793;996794;996795;996796;996797;996798;996799;996800;996801;996802;996803;996804;996805;996806;996807;996808;1052364;1052365;1052366;1052367;1052368;1052369;1052370;1052371;1052372;1052373;1052374;1052375;1052376;1052377;1052378;1052379;1052380;1052381;1052382;1052383;1052384;1052385;1052386;1074545;1074546;1074547;1074548;1074549;1074550;1074551;1074552;1074553;1074554;1074555;1074556;1074557;1074558;1074559;1074560;1074561;1074562;1074563;1074564;1074565;1074566;1074567;1074568;1074569;1074570;1074571;1074572;1074573;1074574;1074575;1074576;1074577;1074578;1074579;1074580;1074581;1074582;1074583;1074584;1074585;1074586;1074587;1074588;1074589;1074590;1074591;1074592;1074593;1074594;1074595;1074596;1074597;1074598;1074599;1081262;1081263;1081264;1081265;1081266;1081267;1081268;1081269;1081270;1081271;1081272;1081273;1081274;1081275;1081276;1081277;1081278;1081279;1081280;1081281;1081282;1081283;1081284;1081285;1081286;1081287;1081288;1081289;1081290;1081291;1081292;1081293;1081294;1081295;1081296;1081297;1081298;1081299;1081300;1081301;1081302;1081303;1081304;1081305;1081306;1081307;1081308;1081309;1081310;1081311;1081312;1081313;1081314;1081315;1081316;1081317;1081318;1081319;1081320;1081321;1081322;1081323;1081324;1081325;1081326;1081327;1081328;1081329;1081330;1081331;1081332;1081333;1081334;1081335;1081336;1081337;1081338;1081339;1081340;1081341;1081342;1081343;1081344;1081345;1081346;1081347;1081348;1081349;1081350;1081351;1081352;1081353;1081354;1081355;1081356;1081357;1081358;1081359;1081360;1081361;1081362;1081363;1081364;1081365;1081366;1081367;1094373;1094374;1094375;1094376;1094377;1094378;1094379;1094380;1094381;1094382;1094383;1094384;1094385;1094386;1094387;1094388;1094389;1094390;1094391;1094392;1094393;1094394;1094395;1094396;1094397;1094398;1094399;1094400;1094401;1094402;1094403;1103437;1103438;1103439;1103440;1103441;1103442;1103443;1103444;1103445;1103446;1103447;1103448;1103449;1103450;1103451;1103452;1103453;1103454;1103455;1103456;1103457;1103458;1103459;1103460;1103461;1103462;1103463;1103464;1103465;1103466;1103467;1103468;1103469;1103470;1103471;1103472;1103473;1103474;1103475;1103476;1103477;1103478;1103479;1103480;1103481;1103482;1103483;1103484;1103485;1103486;1103487;1103488;1103489;1103490;1103491;1103492;1103493;1103494;1103495;1103496;1103497;1103498;1103499;1103500;1103501;1103502;1103503;1103504;1103505;1103506;1103507;1103508;1103509;1103510;1103511;1103512;1103513;1103514;1103515;1103516;1103517;1103518;1152726;1152727;1152728;1152729;1152730;1152731;1152732;1152733;1152734;1152735;1152736;1152737;1152738;1152739;1152740;1152741;1152742;1152743;1152744;1152745;1152746;1152747;1152748;1152749;1152750;1152751;1152752;1152753;1158995;1158996;1158997;1158998;1158999;1159000;1159001;1159002;1159003;1159004;1159005;1159006;1159007;1159008;1159009;1159010;1159011;1159012;1159013;1159014;1159015;1159016;1159017 | HO11: 49926;49927;49928;49929;49930;49931;49932;49933;49934;49935;49936;49937;49938;49939;49940;49941;49942;49943;49944;49945;49946;49947;49948;49949;49950;49951;49952;49953;49954;49955;49956;49957;49958;49959;49960;49961;49962;49963;49964;49965;49966;49967;49968;49969;49970;49971;49972;49973;49974;57907;57908;57909;57910;57911;71874;71875;71876;71877;71878;71879;71880;71881;71882;71883;71884;71885;71886;71887;71888;71889;71890;71891;71892;71893;71894;71895;71896;71897;71898;71899;71900;71901;71902;71903;71904;71905;71906;71907;71908;71909;71910;71911;71912;71913;71914;71915;71916;71917;71918;71919;71920;71921;71922;71923;71924;71925;71926;71927;71928;71929;71930;78165;78166;78167;78168;78169;78170;78171;78172;78173;78174;78175;78176;78177;78178;78179;78180;78181;78182;78183;78184;78185;78186;78187;78188;78189;78190;78191;78192;78193;78194;78195;78196;78197;78198;78199;78200;78201;78202;78203;78204;78205;78206;78207;78208;78209;78210;78211;78212;78213;78214;78215;78216;78217;78218;78219;78220;78221;78222;78223;78224;78225;78226;78227;78228;78229;78230;78231;78232;78233;78234;78235;98902;113539;113540;113541;113542;113543;113544;113545;113546;113547;113548;148445;148446;148447;148448;148449;148450;148451;148452;148453;148454;148455;148456;148457;148458;148459;148460;148461;148462;148463;148464;148465;148466;148467;148468;148469;148470;148471;148472;148473;148474;148475;148476;148477;148478;148479;163491;163492;163493;163494;163495;163496;163497;163498;163499;163500;163501;163502;163503;163504;163505;163506;163507;163508;163509;163510;163511;163512;163513;163514;163515;163516;163517;163518;163519;163520;163521;163522;177370;184185;184186;184187;184188;184189;212708;212709;212710;212711;212712;212713;212714;212715;212716;212717;212718;212719;212720;212721;212722;212723;212724;212725;212726;212727;212728;212729;212730;212731;212732;212733;212734;212735;212736;212737;212738;212739;212740;215084;215085;215086;215087;215088;215089;215090;215091;215092;215093;215094;215095;215096;215097;215098;215099;215100;215101;215102;215103;215104;215105;215106;215107;215108;215109;215110;215111;215112;215113;215114;215115;215116;215117;215118;215622;215623;215624;215625;215626;215627;215628;215629;215630;215631;215632;215633;215634;215635;215636;215637;215638;215639;215640;215641;215642;215643;215644;215645;215646;215647;215648;215649;215650;215651;215652;215653;215654;215655;215656;215657;215658;215659;215660;215661;215662;215663;215664;215665;215666;215667;215668;215669;215670;215671;215672;215673;215674;215675;215676;265424;265425;265426;265427;265428;265429;265430;265431;265432;265433;265434;265435;265436;265437;265438;265439;265440;265441;265442;265443;265444;265445;265446;265447;265448;265449;265450;265451;265452;265453;265454;265455;265456;265457;265458;265459;265460;265461;265462;265463;265464;265465;265466;265467;265468;265469;265470;265471;265472;265473;265474;265475;265476;265477;265478;265479;265480;265481;265482;265483;265484;265485;265486;265487;265488;265489;265490;265491;265492;265493;265494;265495;265496;265497;265498;265499;274335;274336;274337;274338;274339;274340;274341;274342;274343;274344;274345;274346;274347;274348;274349;274350;274351;274352;274353;274354;274355;274356;274357;277328;277329;277330;277331;277332;277333;277334;277335;277336;277337;277338;277339;277340;277341;277342;277343;277344;277345;277346;277347;277348;277349;277350;277351;277352;277353;277354;277355;277356;277357;277358;277359;277360;277361;277362;277363;277364;277365;277366;277367;277368;277369;277370;277371;277372;277373;277374;277375;277376;277377;277378;277379;277380;277381;307686;307687;307688;307689;307690;307691;307692;307693;307694;307695;307696;307697;307698;307699;307700;307701;307702;307703;307704;307705;307706;307707;326879;326880;326881;326882;326883;326884;326885;326886;326887;326888;326889;326890;326891;326892;326893;326894;326895;326896;326897;326898;326899;326900;326901;326902;326903;326904;326905;326906;326907;326908;326909;326910;326911;326912;326913;326914;326915;326916;326917;326918;326919;326920;326921;326922;326923;326924;326925;326926;326927;326928;326929;326930;326931;326932;326933;326934;326935;326936;326937;326938;326939;326940;326941;326942;326943;326944;326945;326946;326947;326948;326949;326950;326951;326952;326953;326954;326955;329778;329779;346702;346703;346704;346705;346706;346707;346708;346709;346710;346711;346712;346713;346714;346715;346716;346717;346718;403744;403745;416659;416660;416661;416662;416663;416664;416665;416666;416667;416668;416669;416670;416671;416672;416673;416674;416675;416676;416677;416678;416679;416680;416681;416682;416683;416684;416685;416686;416687;416688;416689;416690;416691;416692;416693;416694;416695;416696;416697;416698;416699;416700;416701;416702;416703;416704;416705;416706;416707;416708;416709;416710;416711;416712;416713;416714;416715;416716;416717;416718;416719;416720;416721;416722;416723;416724;416725;416726;416727;416728;416729;416730;416731;416732;416733;416734;416735;416736;416737;416738;416739;416740;416741;416742;416743;416744;416745;416746;416747;416748;416749;416750;416751;416752;416753;416754;416755;416756;416757;416758;416759;416760;416761;416762;416763;416764;416765;416766;416767;416768;416769;416770;416771;416772;416773;416774;416775;416776;438990;438991;438992;438993;438994;465258;465259;465260;465261;465262;465263;465264;465265;465266;465267;465268;465269;465270;465271;475630;475631;475632;475633;475634;475635;475636;475637;475638;475639;475640;475641;475642;475643;475644;475645;475646;475647;475648;475649;475650;475651;475652;475653;475654;475655;475656;475657;475658;475659;475660;475661;475662;475663;475664;475665;475666;475667;475668;475669;475670;475671;475672;475673;475674;475675;475676;475677;475678;475679;475680;475681;475682;475683;475684;475685;475686;475687;475688;475689;475690;475691;475692;475693;475694;475695;475696;475697;475698;475699;475700;475701;475702;475703;475704;475894;475895;475896;475897;475898;475899;475900;475901;475902;475903;475904;475905;475906;475907;475908;475909;475910;475911;475912;475913;475914;475915;475916;475917;504344;504345;504346;504347;504348;504349;504350;504351;504352;504353;504354;504355;504356;504357;504358;504359;504360;504361;504362;504363;504364;504365;504366;504367;504418;504419;504420;504421;504422;504423;504424;504425;504426;504427;504428;504429;504430;504431;504432;504433;504434;504435;504436;504437;504438;504439;504440;504441;504442;504443;504444;504445;504446;504447;504448;504449;504450;504451;504452;504453;504454;504455;504456;504457;504458;504459;504460;504461;504462;504463;504464;504465;504466;504467;504468;504469;504470;504471;504472;504473;504474;504475;504476;504477;504478;504479;504480;504481;504482;504483;504484;504485;504486;504487;504488;504489;504490;504491;504492;504493;504494;504495;504496;504497;504498;504499;504500;504501;504502;504503;504504;504505;504506;504507;504508;504509;504510;504511;504512;504513;504514;504515;504516;504517;504518;504519;504520;504521;506034;506035;506036;506037;506038;506039;506040;506041;506042;506043;506044;506045;506046;506047;506048;506049;506050;506051;506052;506053;506054;506055;506056;506057;506058;506059;506060;506061;506062;506063;506064;506065;506066;506067;506068;506069;506070;506071;506072;506073;506074;506075;506076;506077;506078;506079;506080;506081;506082;506083;506084;506085;506086;506087;506088;506089;506090;506091;506092;506093;506094;506095;506096;506097;506098;506099;506100;506101;506102;506103;506104;506105;506106;506107;506108;506109;506110;506111;506112;506113;506114;506115;506116;506117;506118;506119;551498;551499;551500;551501;551502;551503;551504;551505;551506;551507;551508;551509;551510;551511;551512;551513;551514;551515;551516;551517;551518;551519;551520;551521;551522;551523;551524;551525;551526;551527;551528;551529;551530;551531;551532;551533;551534;551535;556876;556877;556878;556879;556880;556881;556882;556883;556884;556885;556886;556887;556888;556889;556890;556891;556892;556893;556894;556895;556896;556897;556898;556899;556900;556901;556902;556903;556904;556905;556906;556907;556908;556909;556910;556911;556912;556913;556914;556915;556916;556917;556918;556919;556920;556921;556922;556923;556924;556925;556926;556927;556928;556929;556930;556931;556932;556933;556934;556935;556936;556937;556938;556939;573884;576962;576963;576964;576965;576966;576967;576968;576969;576970;576971;576972;576973;576974;576975;576976;576977;576978;576979;576980;576981;576982;576983;576984;576985;576986;576987;576988;576989;576990;576991;576992;576993;576994;576995;576996;576997;576998;576999;577000;577001;577002;577003;577004;577005;577006;577007;577008;577009;577010;577011;577012;577013;577014;577015;577016;577017;577018;577019;577020;577021;577022;577023;577024;577025;577026;577027;577028;577029;577030;577031;577032;577033;577034;584196;584197;584198;584199;584200;584201;584202;584203;584204;584205;584206;584207;584208;584209;584210;584211;584212;584213;584214;584215;584216;584217;584218;584219;584220;584221;603140;603141;603142;603143;603144;603145;603146;603147;603148;603149;603150;603151;603152;603153;603154;603155;603156;603157;603158;603159;603160;603161;603162;603163;603164;603165;603166;603167;603168;603169;603170;603171;603172;603173;603174;603175;603176;603177;603178;603179;603180;603181;603182;603183;603184;603185;603186;603187;603188;603189;603190;603191;603192;603193;603194;603195;603196;603197;603198;603199;603200;603201;603202;603203;603204;603205;603206;603207;610625;610626;610627;610628;610629;610630;610631;610632;610633;610634;610635;610636;610637;610638;610639;610640;610641;610642;610643;610644;610645;610646;610647;610648;610649;610650;610651;610652;610653;610654;610655;610656;610657;610658;610659;610660;610661;610662;610663;610664;610665;610666;610667;610668;610669;610670;610671;610672;610673;610674;610675;610676;610677;610678;610679;610680;610681;610682;610683;610684;610685;610686;610687;610688;610689;610690;610691;610692;610693;610694;610695;610696;610697;610698;610699;610700;610701;610702;610703;610704;610705;610706;610707;610708;610709;610710;610711;610712;610713;610714;610715;645709;645710;645711;645712;645713;645714;645715;645716;645717;645718;645719;645720;645721;645722;645723;645724;645725;645726;645727;645728;645729;645730;645731;659369;659370;659371;659372;659373;659374;659375;659376;659377;659378;659379;659380;659381;659382;659383;659384;659385;659386;659387;659388;659389;659390;659391;659392;659393;659394;659395;659396;659397;659398;659399;659400;659401;659402;659403;659404;659405;659406;659407;659408;659409;659410;659411;659412;659413;659414;659415;659416;659417;659418;659419;659420;659421;659422;659423;659424;659425;659426;659427;659428;663990;663991;663992;663993;663994;663995;663996;663997;663998;663999;664000;664001;664002;664003;664004;664005;664006;664007;664008;664009;664010;664011;664012;664013;664014;664015;664016;664017;664018;664019;664020;664021;664022;664023;664024;664025;664026;664027;664028;664029;664030;664031;664032;664033;664034;664035;664036;664037;664038;664039;664040;664041;664042;664043;664044;664045;664046;664047;664048;664049;664050;664051;664052;664053;664054;664055;664056;664057;664058;664059;664060;664061;664062;664063;664064;664065;664066;664067;664068;664069;664070;664071;664072;664073;664074;672306;672307;672308;672309;672310;672311;672312;672313;672314;672315;672316;672317;672318;672319;672320;672321;672322;672323;672324;672325;678040;678041;678042;678043;678044;678045;678046;678047;678048;678049;678050;678051;678052;678053;678054;678055;678056;678057;678058;678059;678060;678061;678062;678063;678064;678065;678066;678067;678068;678069;678070;678071;678072;678073;678074;678075;678076;678077;678078;678079;678080;678081;678082;678083;678084;678085;678086;678087;678088;678089;678090;678091;678092;678093;678094;678095;678096;678097;678098;708824;708825;708826;708827;708828;708829;708830;708831;708832;708833;708834;708835;708836;708837;708838;708839;708840;708841;708842;708843;708844;708845;712377;712378;712379;712380;712381 | HP11: 49947;49962;57908;71881;78193;78231;78235;98902;113543;113547;148462;163509;177370;184187;212733;215102;215118;215644;265424;274348;277328;307688;307694;326893;326944;329779;346703;403745;416722;438993;465263;475684;475909;504358;504446;504510;506054;551498;551531;556937;573884;577006;577028;584217;603178;610687;610713;645709;659401;659424;664024;672319;678072;708843;712378 | HQ11: 378;379;380;395;396;418;720;721;722;723;724;725;726;727;728;729;730 | HR11: 3624;3625;3626;3627;3628;3629;3630;3631;3632 | HS11: 31;35;57;62;65;141;151;168;306;355;360;387;434;505;540;548;575 | HT11: 61;87;93;122;127;237;449;518;549 | HU11: 111099500000 | HV11: 20459000000 | HW11: 1.218481667e+11 | HX11: 2.015516667e+10 | HY11: 0.1332322204 | HZ11: -0.02158591727
A12: Q61937 | B12: Q61937 | C12: 27 | D12: 27 | E12: 27 | F12: Nucleophosmin | G12: Npm1 | H12: sp|Q61937|NPM_MOUSE Nucleophosmin OS=Mus musculus GN=Npm1 PE=1 SV=1 | I12: 1 | J12: 27 | K12: 27 | L12: 27 | M12: 15 | N12: 13 | O12: 14 | P12: 17 | Q12: 14 | R12: 13 | S12: 15 | T12: 17 | U12: 18 | V12: 17 | W12: 18 | X12: 20 | Y12: 13 | Z12: 12 | AA12: 13 | AB12: 12 | AC12: 14 | AD12: 13 | AE12: 25 | AF12: 24 | AG12: 23 | AH12: 20 | AI12: 24 | AJ12: 24 | AK12: 15 | AL12: 13 | AM12: 14 | AN12: 17 | AO12: 14 | AP12: 13 | AQ12: 15 | AR12: 17 | AS12: 18 | AT12: 17 | AU12: 18 | AV12: 20 | AW12: 13 | AX12: 12 | AY12: 13 | AZ12: 12 | BA12: 14 | BB12: 13 | BC12: 25 | BD12: 24 | BE12: 23 | BF12: 20 | BG12: 24 | BH12: 24 | BI12: 15 | BJ12: 13 | BK12: 14 | BL12: 17 | BM12: 14 | BN12: 13 | BO12: 15 | BP12: 17 | BQ12: 18 | BR12: 17 | BS12: 18 | BT12: 20 | BU12: 13 | BV12: 12 | BW12: 13 | BX12: 12 | BY12: 14 | BZ12: 13 | CA12: 25 | CB12: 24 | CC12: 23 | CD12: 20 | CE12: 24 | CF12: 24 | CG12: 75.3 | CH12: 75.3 | CI12: 75.3 | CJ12: 32.56 | CK12: 292 | CL12: 292 | CM12: 0 | CN12: 323.31 | CO12: By MS/MS | CP12: By MS/MS | CQ12: By MS/MS | CR12: By MS/MS | CS12: By MS/MS | CT12: By MS/MS | CU12: By MS/MS | CV12: By MS/MS | CW12: By MS/MS | CX12: By MS/MS | CY12: By MS/MS | CZ12: By MS/MS | DA12: By MS/MS | DB12: By MS/MS | DC12: By MS/MS | DD12: By MS/MS | DE12: By MS/MS | DF12: By MS/MS | DG12: By MS/MS | DH12: By MS/MS | DI12: By MS/MS | DJ12: By MS/MS | DK12: By MS/MS | DL12: By MS/MS | DM12: 61 | DN12: 56.8 | DO12: 57.2 | DP12: 62.3 | DQ12: 50 | DR12: 49 | DS12: 54.5 | DT12: 64 | DU12: 64 | DV12: 63.7 | DW12: 62.7 | DX12: 65.8 | DY12: 54.8 | DZ12: 52.4 | EA12: 54.8 | EB12: 52.4 | EC12: 55.8 | ED12: 54.8 | EE12: 75 | EF12: 74.3 | EG12: 71.9 | EH12: 70.2 | EI12: 74 | EJ12: 74.3 | EK12: 1601800000000 | EL12: 4417700000 | EM12: 3727900000 | EN12: 2715500000 | EO12: 3518100000 | EP12: 3124300000 | EQ12: 2280800000 | ER12: 121930000000 | ES12: 143250000000 | ET12: 192630000000 | EU12: 167410000000 | EV12: 132360000000 | EW12: 142410000000 | EX12: 2580500000 | EY12: 2661300000 | EZ12: 3058500000 | FA12: 3077700000 | FB12: 3033100000 | FC12: 3260900000 | FD12: 118860000000 | FE12: 118450000000 | FF12: 65318000000 | FG12: 63527000000 | FH12: 150420000000 | FI12: 147830000000 | FJ12: 75066000000 | FK12: 77959000000 | FL12: 58347000000 | FM12: 50593000000 | FN12: 55442000000 | FO12: 52040000000 | FP12: 85042000000 | FQ12: 100950000000 | FR12: 90678000000 | FS12: 82894000000 | FT12: 148500000000 | FU12: 140200000000 | FV12: 29323000000 | FW12: 32804000000 | FX12: 45732000000 | FY12: 42752000000 | FZ12: 44045000000 | GA12: 43102000000 | GB12: 78738000000 | GC12: 76588000000 | GD12: 54922000000 | GE12: 59115000000 | GF12: 106470000000 | GG12: 100880000000 | GH12: 23 | GI12: 25 | GJ12: 17 | GK12: 18 | GL12: 12 | GM12: 7 | GN12: 41 | GO12: 59 | GP12: 62 | GQ12: 73 | GR12: 66 | GS12: 62 | GT12: 21 | GU12: 21 | GV12: 21 | GW12: 20 | GX12: 22 | GY12: 16 | GZ12: 47 | HA12: 53 | HB12: 48 | HC12: 44 | HD12: 61 | HE12: 61 | HF12: 900 | HJ12: 2531 | HK12: 1015;3208;7645;9429;11366;14154;26907;28562;28666;28667;43917;43918;49123;49124;50121;50373;50374;50399;50400;60715;63073;70046;71432;71433;71434;72511;76725 | HL12: True;True;True;True;True;True;True;True;True;True;True;True;True;True;True;True;True;True;True;True;True;True;True;True;True;True;True | HM12: 1109;3537;8475;10453;10454;10455;10456;12609;15743;15744;29895;31750;31868;31869;48736;48737;48738;54628;54629;54630;54631;54632;54633;54634;56160;56161;56527;56528;56529;56565;56566;56567;56568;68153;70737;78493;80011;80012;80013;80014;80015;81212;81213;85937 | HN12: 14602;14603;14604;14605;14606;47368;47369;47370;47371;47372;114188;114189;114190;114191;114192;114193;114194;114195;114196;114197;114198;114199;114200;114201;114202;114203;114204;114205;114206;114207;114208;114209;114210;114211;114212;114213;114214;114215;114216;114217;114218;114219;114220;114221;114222;114223;114224;114225;114226;114227;114228;114229;114230;114231;114232;114233;114234;114235;114236;114237;114238;114239;114240;114241;114242;114243;114244;114245;114246;114247;114248;114249;114250;114251;114252;114253;114254;114255;114256;114257;114258;114259;114260;114261;114262;114263;114264;114265;114266;114267;114268;114269;114270;114271;114272;114273;114274;114275;114276;114277;114278;114279;114280;114281;114282;114283;114284;114285;114286;114287;114288;114289;114290;114291;114292;114293;114294;114295;114296;114297;114298;114299;114300;114301;114302;114303;114304;114305;114306;114307;114308;114309;114310;114311;114312;114313;114314;114315;114316;114317;114318;114319;114320;114321;114322;114323;114324;114325;114326;114327;114328;114329;114330;114331;139422;139423;139424;139425;139426;139427;139428;139429;139430;139431;139432;139433;139434;139435;139436;139437;139438;139439;139440;139441;139442;139443;139444;139445;139446;139447;139448;139449;139450;139451;139452;139453;139454;139455;139456;139457;139458;139459;139460;139461;139462;139463;139464;139465;139466;139467;139468;139469;139470;139471;139472;139473;139474;139475;139476;139477;139478;139479;139480;139481;139482;139483;139484;139485;139486;139487;139488;139489;139490;139491;139492;139493;139494;139495;139496;139497;139498;139499;139500;139501;139502;139503;139504;139505;139506;139507;139508;139509;139510;139511;139512;139513;139514;139515;139516;139517;139518;139519;139520;139521;139522;139523;139524;139525;139526;139527;139528;139529;139530;139531;139532;139533;139534;139535;139536;139537;139538;139539;139540;139541;139542;139543;139544;139545;139546;139547;139548;139549;139550;139551;139552;139553;139554;139555;139556;139557;139558;139559;139560;139561;139562;139563;139564;139565;139566;139567;139568;139569;139570;139571;139572;139573;139574;139575;139576;139577;139578;139579;139580;139581;139582;139583;139584;139585;139586;139587;139588;139589;139590;139591;139592;139593;139594;139595;139596;139597;139598;139599;139600;139601;139602;139603;139604;139605;139606;139607;139608;139609;139610;139611;139612;139613;139614;139615;139616;139617;139618;139619;139620;139621;139622;139623;139624;139625;139626;139627;139628;139629;139630;139631;139632;139633;139634;139635;139636;139637;139638;139639;139640;170687;170688;170689;170690;170691;170692;214095;214096;214097;214098;214099;214100;214101;214102;214103;214104;214105;214106;214107;214108;214109;214110;214111;214112;214113;214114;214115;214116;214117;214118;214119;214120;214121;214122;214123;214124;214125;214126;214127;214128;214129;214130;214131;214132;214133;214134;214135;214136;214137;214138;214139;214140;214141;214142;214143;214144;214145;214146;214147;214148;214149;214150;214151;214152;214153;214154;214155;214156;214157;214158;214159;214160;214161;214162;214163;214164;214165;407497;407498;407499;407500;407501;407502;432699;432700;432701;432702;432703;432704;432705;432706;432707;432708;432709;432710;432711;432712;432713;432714;432715;432716;432717;432718;432719;432720;432721;432722;432723;432724;432725;432726;432727;432728;432729;432730;432731;432732;432733;432734;432735;432736;432737;432738;432739;432740;432741;432742;432743;432744;432745;432746;432747;432748;432749;432750;432751;432752;432753;432754;432755;432756;432757;432758;434207;434208;434209;434210;434211;434212;434213;434214;434215;434216;434217;434218;434219;434220;668060;668061;668062;668063;668064;668065;668066;668067;668068;668069;668070;668071;668072;668073;668074;668075;668076;668077;668078;668079;668080;668081;668082;668083;668084;668085;668086;668087;668088;668089;668090;668091;668092;668093;668094;668095;668096;668097;668098;668099;668100;668101;668102;668103;668104;668105;668106;668107;668108;668109;668110;745448;745449;745450;745451;745452;745453;745454;745455;745456;745457;745458;745459;745460;745461;745462;745463;745464;745465;745466;745467;745468;745469;745470;745471;745472;745473;745474;745475;745476;745477;745478;745479;745480;745481;745482;745483;745484;745485;745486;745487;745488;745489;745490;745491;745492;745493;745494;745495;745496;745497;745498;745499;745500;745501;745502;745503;745504;745505;745506;745507;745508;745509;745510;745511;745512;745513;745514;745515;745516;745517;745518;745519;745520;745521;745522;745523;745524;745525;745526;745527;745528;745529;745530;745531;745532;745533;745534;745535;745536;745537;745538;745539;745540;745541;745542;745543;745544;745545;745546;745547;745548;745549;745550;745551;745552;745553;745554;745555;745556;745557;745558;745559;745560;745561;745562;745563;745564;745565;745566;745567;745568;745569;745570;745571;745572;764113;764114;764115;764116;764117;764118;764119;764120;764121;764122;764123;764124;764125;764126;764127;764128;764129;764130;764131;764132;764133;764134;764135;764136;764137;764138;764139;764140;764141;764142;764143;764144;764145;764146;764147;764148;764149;764150;764151;764152;764153;764154;764155;764156;764157;764158;764159;764160;764161;764162;764163;764164;764165;764166;764167;764168;764169;764170;764171;764172;764173;764174;764175;764176;764177;764178;764179;764180;764181;764182;764183;764184;764185;764186;764187;764188;764189;764190;768506;768507;768508;768509;768510;768511;768512;768513;768514;768515;768516;768517;768518;768519;768520;768521;768522;768523;768524;768525;768526;768527;768528;768529;768530;768531;768532;768533;768534;768535;768536;768537;768538;768539;768540;768541;768542;768543;768544;768545;768546;768547;768548;768549;768550;768551;768552;768553;768554;768555;768556;768557;768558;768559;768560;768561;768562;768563;768564;768565;768566;768567;768568;768569;768570;768571;768572;768573;768574;768575;768576;768577;768578;768959;768960;768961;768962;768963;768964;768965;768966;768967;768968;768969;768970;768971;768972;768973;768974;768975;768976;768977;768978;768979;768980;768981;768982;768983;768984;768985;768986;768987;768988;768989;768990;768991;768992;768993;768994;768995;768996;768997;768998;768999;769000;769001;769002;769003;769004;769005;769006;769007;769008;769009;769010;769011;769012;769013;769014;769015;769016;769017;769018;769019;769020;769021;769022;769023;769024;769025;769026;769027;769028;769029;769030;769031;769032;769033;769034;769035;769036;769037;769038;769039;769040;769041;769042;769043;769044;769045;769046;769047;769048;769049;769050;769051;769052;769053;769054;769055;769056;769057;921090;921091;921092;921093;921094;921095;921096;921097;921098;921099;921100;921101;921102;921103;955548;955549;955550;955551;955552;955553;1059628;1059629;1059630;1059631;1059632;1059633;1059634;1059635;1059636;1059637;1080141;1080142;1080143;1080144;1080145;1080146;1080147;1080148;1080149;1080150;1080151;1080152;1080153;1080154;1080155;1080156;1080157;1080158;1080159;1080160;1080161;1080162;1080163;1080164;1080165;1080166;1080167;1080168;1080169;1080170;1080171;1080172;1080173;1080174;1080175;1080176;1080177;1080178;1080179;1080180;1080181;1080182;1080183;1080184;1080185;1080186;1080187;1080188;1080189;1080190;1080191;1080192;1080193;1080194;1080195;1080196;1080197;1080198;1080199;1080200;1080201;1080202;1080203;1080204;1080205;1080206;1080207;1080208;1080209;1080210;1080211;1080212;1080213;1080214;1080215;1080216;1080217;1080218;1080219;1080220;1080221;1080222;1080223;1080224;1080225;1080226;1080227;1080228;1080229;1080230;1080231;1080232;1080233;1080234;1080235;1080236;1080237;1080238;1080239;1080240;1080241;1080242;1080243;1080244;1080245;1080246;1080247;1080248;1080249;1080250;1080251;1080252;1080253;1080254;1080255;1080256;1080257;1080258;1080259;1080260;1080261;1080262;1080263;1080264;1080265;1080266;1080267;1080268;1080269;1080270;1080271;1080272;1080273;1080274;1080275;1080276;1080277;1080278;1080279;1080280;1080281;1080282;1080283;1080284;1080285;1080286;1080287;1080288;1080289;1080290;1080291;1080292;1097811;1097812;1097813;1097814;1097815;1097816;1097817;1097818;1097819;1097820;1097821;1097822;1097823;1097824;1097825;1097826;1097827;1097828;1097829;1097830;1097831;1097832;1097833;1097834;1097835;1097836;1097837;1097838;1097839;1097840;1097841;1097842;1097843;1097844;1097845;1097846;1097847;1097848;1097849;1097850;1097851;1097852;1097853;1097854;1097855;1097856;1097857;1097858;1097859;1097860;1097861;1097862;1097863;1097864;1097865;1097866;1097867;1097868;1097869;1097870;1097871;1097872;1097873;1097874;1097875;1097876;1097877;1097878;1097879;1097880;1097881;1097882;1097883;1097884;1097885;1097886;1097887;1097888;1097889;1097890;1097891;1097892;1097893;1097894;1097895;1097896;1097897;1097898;1097899;1097900;1097901;1097902;1097903;1097904;1097905;1097906;1097907;1097908;1097909;1097910;1097911;1097912;1097913;1097914;1097915;1097916;1097917;1097918;1097919;1097920;1097921;1097922;1097923;1097924;1097925;1097926;1097927;1097928;1097929;1097930;1097931;1097932;1097933;1097934;1097935;1097936;1097937;1097938;1097939;1097940;1097941;1097942;1097943;1097944;1097945;1097946;1097947;1097948;1097949;1097950;1097951;1097952;1097953;1097954;1097955;1097956;1097957;1097958;1097959;1097960;1097961;1097962;1097963;1097964;1097965;1097966;1097967;1097968;1097969;1097970;1097971;1097972;1097973;1097974;1097975;1097976;1097977;1097978;1097979;1097980;1097981;1097982;1097983;1097984;1097985;1097986;1097987;1097988;1097989;1097990;1097991;1097992;1097993;1097994;1097995;1097996;1097997;1097998;1097999;1098000;1098001;1098002;1098003;1098004;1098005;1098006;1098007;1098008;1098009;1098010;1098011;1098012;1098013;1098014;1098015;1098016;1098017;1098018;1098019;1098020;1098021;1098022;1098023;1098024;1098025;1098026;1098027;1098028;1098029;1098030;1098031;1098032;1098033;1098034;1098035;1098036;1098037;1098038;1098039;1098040;1098041;1098042;1098043;1098044;1098045;1098046;1098047;1098048;1098049;1098050;1098051;1098052;1098053;1098054;1098055;1098056;1098057;1098058;1098059;1098060;1098061;1164457;1164458;1164459;1164460;1164461;1164462;1164463;1164464;1164465;1164466;1164467 | HO12: 8921;8922;8923;8924;8925;28592;28593;69423;69424;69425;69426;69427;69428;69429;69430;69431;69432;69433;69434;69435;69436;69437;69438;69439;69440;69441;69442;69443;69444;69445;69446;69447;69448;69449;69450;69451;69452;69453;69454;69455;69456;69457;69458;69459;69460;69461;69462;69463;69464;69465;69466;69467;69468;69469;69470;69471;69472;69473;69474;69475;69476;69477;69478;69479;69480;69481;69482;69483;69484;69485;69486;69487;69488;69489;69490;69491;69492;69493;69494;69495;69496;69497;69498;69499;69500;69501;69502;69503;69504;69505;69506;69507;69508;69509;69510;69511;69512;69513;69514;69515;69516;69517;69518;69519;69520;69521;69522;69523;69524;69525;69526;69527;69528;69529;69530;69531;69532;69533;69534;69535;85271;85272;85273;85274;85275;85276;85277;85278;85279;85280;85281;85282;85283;85284;85285;85286;85287;85288;85289;85290;85291;85292;85293;85294;85295;85296;85297;85298;85299;85300;85301;85302;85303;85304;85305;85306;85307;85308;85309;85310;85311;85312;85313;85314;85315;85316;85317;85318;85319;85320;85321;85322;85323;85324;85325;85326;85327;85328;85329;85330;85331;85332;85333;85334;85335;85336;85337;85338;85339;85340;85341;85342;85343;85344;85345;85346;85347;85348;85349;85350;85351;85352;85353;85354;85355;85356;85357;85358;85359;85360;85361;85362;85363;85364;85365;85366;85367;85368;85369;85370;85371;85372;85373;85374;85375;85376;85377;85378;85379;85380;85381;85382;85383;85384;85385;85386;85387;85388;85389;85390;85391;85392;85393;85394;85395;85396;85397;85398;85399;85400;85401;85402;85403;85404;85405;85406;85407;85408;85409;85410;85411;85412;85413;85414;85415;85416;85417;85418;85419;85420;85421;85422;85423;85424;85425;85426;85427;85428;85429;85430;105176;133123;133124;133125;133126;133127;133128;133129;133130;133131;133132;133133;133134;133135;133136;133137;133138;133139;133140;133141;133142;133143;133144;133145;133146;133147;133148;133149;133150;133151;133152;133153;133154;133155;133156;133157;133158;133159;133160;133161;133162;133163;133164;133165;251710;251711;267115;267116;267117;267118;267119;267120;267121;267122;267123;267124;267125;267126;267127;267128;267129;267130;267131;267132;267133;267134;267135;267136;267137;267138;267139;267140;267141;267142;267143;267144;267145;267146;267147;267148;267149;267150;267151;267152;267153;267154;267155;267156;267157;267158;267159;267160;267161;267162;267163;267164;267165;267166;267167;267168;267169;267170;267171;267172;267173;268015;268016;268017;268018;412385;412386;412387;412388;412389;412390;412391;412392;412393;412394;412395;412396;412397;412398;412399;412400;412401;412402;412403;412404;412405;412406;412407;412408;412409;412410;459267;459268;459269;459270;459271;459272;459273;459274;459275;459276;459277;459278;459279;459280;459281;459282;459283;459284;459285;459286;459287;459288;459289;459290;459291;459292;459293;459294;459295;459296;459297;459298;459299;459300;459301;459302;459303;459304;459305;459306;459307;459308;459309;459310;459311;459312;459313;459314;459315;459316;459317;459318;459319;459320;459321;459322;459323;459324;459325;459326;459327;459328;459329;459330;459331;459332;459333;459334;459335;459336;459337;459338;459339;459340;459341;459342;459343;459344;459345;459346;459347;459348;459349;459350;459351;459352;459353;459354;459355;459356;459357;459358;459359;459360;459361;459362;459363;459364;459365;470824;470825;470826;470827;470828;470829;470830;470831;470832;470833;470834;470835;470836;470837;470838;470839;470840;470841;470842;470843;470844;470845;470846;470847;470848;470849;470850;470851;470852;470853;470854;470855;470856;470857;470858;470859;470860;470861;470862;470863;470864;470865;470866;470867;470868;470869;470870;470871;470872;470873;470874;470875;470876;470877;470878;470879;470880;470881;470882;470883;470884;470885;473571;473572;473573;473574;473575;473576;473577;473578;473579;473580;473581;473582;473583;473584;473585;473586;473587;473588;473589;473590;473591;473592;473593;473594;473595;473596;473597;473598;473599;473600;473601;473602;473603;473604;473605;473606;473607;473608;473609;473610;473611;473612;473613;473614;473615;473616;473617;473618;473619;473620;473621;473622;473623;473624;473625;473626;473627;473628;473629;473630;473631;473632;473633;473634;473635;473636;473637;473638;473639;473640;473641;473642;473643;473644;473645;473646;473647;473648;473649;473650;473854;473855;473856;473857;473858;473859;473860;473861;473862;473863;473864;473865;473866;473867;473868;473869;473870;473871;473872;473873;473874;473875;473876;473877;473878;473879;473880;473881;473882;473883;473884;473885;473886;473887;473888;473889;473890;473891;473892;473893;473894;473895;473896;473897;473898;473899;473900;473901;473902;473903;473904;473905;473906;473907;473908;473909;473910;473911;473912;473913;473914;473915;473916;473917;473918;473919;473920;473921;473922;473923;473924;473925;473926;473927;473928;473929;473930;473931;473932;473933;473934;473935;473936;473937;473938;564909;564910;564911;564912;585875;585876;650364;650365;650366;650367;650368;663103;663104;663105;663106;663107;663108;663109;663110;663111;663112;663113;663114;663115;663116;663117;663118;663119;663120;663121;663122;663123;663124;663125;663126;663127;663128;663129;663130;663131;663132;663133;663134;663135;663136;663137;663138;663139;663140;663141;663142;663143;663144;663145;663146;663147;663148;663149;663150;663151;663152;663153;663154;663155;663156;663157;663158;663159;663160;663161;663162;663163;663164;663165;663166;663167;663168;663169;663170;663171;663172;663173;663174;663175;663176;663177;663178;663179;663180;663181;663182;663183;663184;663185;663186;663187;663188;663189;663190;663191;663192;663193;663194;663195;663196;663197;663198;663199;663200;674559;674560;674561;674562;674563;674564;674565;674566;674567;674568;674569;674570;674571;674572;674573;674574;674575;674576;674577;674578;674579;674580;674581;674582;674583;674584;674585;674586;674587;674588;674589;674590;674591;674592;674593;674594;674595;674596;674597;674598;674599;674600;674601;674602;674603;674604;674605;674606;674607;674608;674609;674610;674611;674612;674613;674614;674615;674616;674617;674618;674619;674620;674621;674622;674623;674624;674625;674626;674627;674628;674629;674630;674631;674632;674633;674634;674635;674636;674637;674638;674639;674640;674641;674642;674643;674644;674645;674646;674647;674648;674649;674650;674651;674652;674653;674654;674655;674656;674657;674658;674659;674660;674661;674662;674663;674664;674665;674666;674667;674668;674669;674670;674671;674672;674673;674674;674675;674676;674677;674678;674679;674680;674681;674682;674683;674684;674685;674686;674687;674688;674689;674690;674691;674692;674693;674694;674695;674696;674697;674698;674699;674700;674701;674702;674703;674704;674705;674706;674707;674708;674709;674710;674711;674712;674713;674714;674715;674716;674717;674718;674719;674720;674721;674722;674723;674724;674725;674726;674727;674728;674729;674730;674731;674732;674733;674734;674735;674736;674737;674738;674739;715778;715779;715780;715781;715782;715783;715784;715785;715786;715787;715788;715789;715790;715791 | HP12: 8924;28593;69517;85301;105176;133139;251710;267165;268015;268016;412390;412410;459354;459365;470828;473589;473650;473888;473928;564912;585875;650367;663129;663188;663200;674650;715779 | HQ12: 1067;1068;1069;1070 | HR12: 5739;5740;5741;5742;5743;5744;5745;5746;5747 | HS12: 16;35;38;66 | HT12: 1;5;7;9;65;81;138;249;276 | HU12: 7.945216667e+10 | HV12: 3.962633333e+10 | HW12: 108044000000 | HX12: 61574500000 | HY12: 0.4434604897 | HZ12: 0.6358735284
A13: P10126 | B13: P10126 | C13: 35 | D13: 35 | E13: 22 | F13: Elongation factor 1-alpha 1 | G13: Eef1a1 | H13: sp|P10126|EF1A1_MOUSE Elongation factor 1-alpha 1 OS=Mus musculus GN=Eef1a1 PE=1 SV=3 | I13: 1 | J13: 35 | K13: 35 | L13: 22 | M13: 27 | N13: 23 | O13: 25 | P13: 26 | Q13: 22 | R13: 20 | S13: 26 | T13: 29 | U13: 28 | V13: 26 | W13: 27 | X13: 29 | Y13: 26 | Z13: 25 | AA13: 25 | AB13: 26 | AC13: 25 | AD13: 25 | AE13: 31 | AF13: 30 | AG13: 29 | AH13: 28 | AI13: 28 | AJ13: 29 | AK13: 27 | AL13: 23 | AM13: 25 | AN13: 26 | AO13: 22 | AP13: 20 | AQ13: 26 | AR13: 29 | AS13: 28 | AT13: 26 | AU13: 27 | AV13: 29 | AW13: 26 | AX13: 25 | AY13: 25 | AZ13: 26 | BA13: 25 | BB13: 25 | BC13: 31 | BD13: 30 | BE13: 29 | BF13: 28 | BG13: 28 | BH13: 29 | BI13: 18 | BJ13: 14 | BK13: 16 | BL13: 17 | BM13: 13 | BN13: 11 | BO13: 14 | BP13: 17 | BQ13: 17 | BR13: 15 | BS13: 16 | BT13: 18 | BU13: 16 | BV13: 15 | BW13: 16 | BX13: 15 | BY13: 15 | BZ13: 15 | CA13: 20 | CB13: 19 | CC13: 18 | CD13: 17 | CE13: 18 | CF13: 18 | CG13: 73.6 | CH13: 73.6 | CI13: 45.7 | CJ13: 50.113 | CK13: 462 | CL13: 462 | CM13: 0 | CN13: 323.31 | CO13: By MS/MS | CP13: By MS/MS | CQ13: By MS/MS | CR13: By MS/MS | CS13: By MS/MS | CT13: By MS/MS | CU13: By MS/MS | CV13: By MS/MS | CW13: By MS/MS | CX13: By MS/MS | CY13: By MS/MS | CZ13: By MS/MS | DA13: By MS/MS | DB13: By MS/MS | DC13: By MS/MS | DD13: By MS/MS | DE13: By MS/MS | DF13: By MS/MS | DG13: By MS/MS | DH13: By MS/MS | DI13: By MS/MS | DJ13: By MS/MS | DK13: By MS/MS | DL13: By MS/MS | DM13: 63.2 | DN13: 57.4 | DO13: 57.4 | DP13: 62.3 | DQ13: 46.1 | DR13: 47.6 | DS13: 53.2 | DT13: 65.8 | DU13: 64.3 | DV13: 64.3 | DW13: 64.3 | DX13: 65.8 | DY13: 68 | DZ13: 64.5 | EA13: 65.8 | EB13: 60.6 | EC13: 68 | ED13: 67.5 | EE13: 71 | EF13: 71 | EG13: 71 | EH13: 71 | EI13: 68.2 | EJ13: 69.7 | EK13: 1426700000000 | EL13: 1519700000 | EM13: 1393100000 | EN13: 1478700000 | EO13: 1743000000 | EP13: 1202800000 | EQ13: 942730000 | ER13: 104880000000 | ES13: 108270000000 | ET13: 126910000000 | EU13: 124750000000 | EV13: 83498000000 | EW13: 126510000000 | EX13: 3985700000 | EY13: 4545900000 | EZ13: 1669500000 | FA13: 1686400000 | FB13: 2521100000 | FC13: 2594100000 | FD13: 142430000000 | FE13: 159180000000 | FF13: 105450000000 | FG13: 107980000000 | FH13: 106190000000 | FI13: 105420000000 | FJ13: 33806000000 | FK13: 38044000000 | FL13: 34202000000 | FM13: 37840000000 | FN13: 30546000000 | FO13: 29843000000 | FP13: 104660000000 | FQ13: 91780000000 | FR13: 93763000000 | FS13: 90369000000 | FT13: 102370000000 | FU13: 110090000000 | FV13: 48574000000 | FW13: 54918000000 | FX13: 33523000000 | FY13: 30534000000 | FZ13: 35095000000 | GA13: 33700000000 | GB13: 69733000000 | GC13: 73191000000 | GD13: 68510000000 | GE13: 80684000000 | GF13: 62993000000 | GG13: 66190000000 | GH13: 21 | GI13: 22 | GJ13: 17 | GK13: 19 | GL13: 13 | GM13: 12 | GN13: 73 | GO13: 74 | GP13: 77 | GQ13: 81 | GR13: 77 | GS13: 83 | GT13: 41 | GU13: 46 | GV13: 38 | GW13: 34 | GX13: 26 | GY13: 36 | GZ13: 86 | HA13: 82 | HB13: 101 | HC13: 92 | HD13: 87 | HE13: 86 | HF13: 1324 | HJ13: 800 | HK13: 10134;10135;17075;17076;21997;21998;33996;34150;37551;37552;38140;38282;45468;49070;49071;51116;51733;52789;54720;55047;55105;57577;57578;59052;60381;62087;62088;66176;66324;68590;73029;73030;78487;80908;80909 | HL13: True;True;True;True;True;True;True;True;True;True;True;True;True;True;True;True;True;True;True;True;True;True;True;True;True;True;True;True;True;True;True;True;True;True;True | HM13: 11243;11244;18949;18950;24442;24443;37768;37943;37944;37945;37946;37947;41752;41753;42396;42397;42546;50499;54554;54555;54556;57477;57478;57479;57480;58184;59397;61599;61600;61943;62005;62006;64704;64705;66345;67785;69650;69651;69652;69653;69654;74189;74345;74346;76858;81797;81798;81799;81800;81801;87867;90543;90544 | HN13: 150979;150980;150981;150982;150983;150984;150985;150986;150987;150988;150989;150990;150991;150992;150993;150994;150995;150996;150997;150998;150999;151000;151001;151002;151003;151004;151005;151006;151007;151008;151009;151010;151011;151012;151013;151014;151015;151016;151017;151018;151019;151020;151021;151022;151023;151024;151025;151026;151027;151028;151029;151030;151031;151032;151033;151034;151035;151036;151037;151038;151039;151040;151041;151042;151043;151044;151045;151046;151047;151048;151049;151050;151051;151052;151053;151054;259098;259099;259100;259101;259102;259103;259104;259105;259106;259107;259108;259109;259110;259111;259112;259113;259114;259115;259116;259117;259118;259119;259120;259121;259122;259123;259124;259125;259126;259127;259128;259129;259130;259131;259132;259133;259134;259135;259136;259137;259138;259139;259140;259141;259142;259143;259144;259145;259146;259147;259148;259149;259150;259151;259152;259153;259154;259155;259156;259157;259158;259159;259160;259161;259162;259163;259164;259165;333509;333510;333511;333512;333513;333514;333515;333516;333517;333518;333519;333520;333521;333522;333523;333524;333525;333526;333527;333528;333529;333530;333531;333532;333533;333534;333535;333536;333537;333538;333539;333540;333541;333542;333543;333544;333545;333546;333547;333548;333549;333550;333551;333552;333553;333554;333555;333556;518225;518226;518227;518228;518229;518230;518231;518232;518233;518234;518235;518236;518237;518238;518239;518240;518241;518242;518243;518244;518245;518246;518247;518248;518249;518250;518251;518252;518253;518254;518255;518256;518257;520746;520747;520748;520749;520750;520751;520752;520753;520754;520755;520756;520757;520758;520759;520760;520761;520762;520763;520764;520765;520766;520767;520768;520769;520770;520771;520772;520773;520774;520775;520776;520777;520778;520779;520780;520781;520782;520783;520784;520785;520786;520787;520788;520789;520790;520791;520792;520793;520794;520795;520796;520797;520798;520799;520800;520801;520802;520803;520804;520805;520806;520807;520808;520809;520810;520811;520812;520813;520814;520815;520816;520817;520818;520819;520820;520821;572949;572950;572951;572952;572953;572954;572955;572956;572957;572958;572959;572960;572961;572962;572963;572964;572965;572966;572967;572968;572969;572970;572971;572972;572973;572974;572975;572976;572977;572978;572979;572980;572981;572982;572983;572984;572985;572986;572987;572988;572989;572990;572991;572992;572993;572994;572995;572996;572997;572998;572999;573000;573001;573002;573003;573004;573005;573006;573007;573008;573009;573010;582397;582398;582399;582400;582401;582402;582403;582404;582405;582406;582407;582408;582409;582410;582411;582412;582413;582414;582415;582416;582417;582418;582419;584548;584549;584550;584551;584552;691475;691476;691477;691478;691479;691480;691481;691482;691483;691484;691485;691486;691487;691488;691489;691490;691491;691492;691493;691494;691495;691496;691497;691498;691499;691500;691501;691502;691503;691504;691505;691506;691507;691508;691509;691510;691511;691512;691513;691514;691515;691516;691517;691518;744559;744560;744561;744562;744563;744564;744565;744566;744567;744568;744569;744570;744571;744572;744573;744574;744575;744576;744577;744578;744579;744580;744581;744582;744583;744584;744585;744586;744587;744588;744589;744590;744591;744592;744593;744594;744595;744596;744597;744598;744599;744600;744601;744602;744603;744604;744605;744606;744607;744608;744609;744610;744611;744612;744613;744614;744615;780829;780830;780831;780832;780833;780834;780835;780836;780837;780838;780839;780840;780841;780842;780843;780844;780845;780846;780847;780848;780849;780850;780851;780852;780853;780854;780855;780856;780857;780858;780859;780860;780861;780862;780863;780864;780865;780866;780867;780868;780869;780870;780871;780872;780873;780874;780875;780876;780877;780878;780879;780880;780881;780882;780883;780884;780885;780886;780887;780888;780889;780890;780891;780892;780893;780894;780895;780896;780897;780898;780899;780900;780901;780902;780903;790821;790822;790823;790824;790825;790826;807397;807398;807399;807400;807401;807402;807403;807404;807405;807406;807407;807408;807409;807410;807411;807412;807413;807414;807415;807416;807417;807418;807419;807420;807421;838392;838393;838394;838395;838396;838397;838398;838399;838400;838401;838402;838403;838404;838405;838406;838407;838408;838409;838410;838411;838412;838413;838414;838415;838416;838417;838418;838419;838420;838421;838422;838423;838424;838425;838426;838427;838428;838429;838430;838431;838432;838433;838434;838435;838436;838437;838438;838439;838440;838441;838442;838443;838444;838445;838446;842500;842501;842502;842503;842504;842505;842506;842507;842508;842509;842510;842511;842512;842513;842514;842515;842516;842517;842518;842519;842520;842521;842522;842523;842524;842525;842526;842527;842528;842529;842530;842531;842532;842533;842534;842535;842536;842537;842538;842539;842540;842541;842542;842543;842544;842545;842546;842547;842548;842549;842550;842551;842552;842553;842554;842555;842556;842557;842558;842559;842560;842561;842562;842563;842564;842565;842566;842567;842568;843258;843259;843260;843261;843262;843263;843264;843265;843266;843267;843268;843269;843270;843271;843272;843273;843274;843275;843276;843277;843278;843279;843280;843281;843282;843283;843284;843285;843286;843287;843288;843289;843290;843291;843292;843293;843294;843295;843296;843297;843298;843299;843300;843301;843302;843303;843304;843305;843306;843307;843308;843309;843310;843311;877465;877466;877467;877468;877469;877470;877471;877472;877473;877474;877475;877476;877477;877478;877479;877480;877481;877482;877483;877484;877485;877486;877487;877488;877489;877490;877491;877492;877493;877494;877495;877496;877497;877498;877499;877500;877501;877502;877503;877504;877505;897803;897804;897805;897806;897807;897808;897809;897810;897811;897812;897813;897814;897815;897816;897817;897818;897819;897820;897821;897822;897823;897824;897825;897826;897827;897828;897829;897830;897831;897832;897833;897834;897835;897836;897837;916118;916119;916120;916121;916122;916123;916124;941318;941319;941320;941321;941322;941323;941324;941325;941326;941327;941328;941329;941330;941331;941332;941333;941334;941335;941336;941337;941338;941339;941340;941341;941342;941343;941344;941345;941346;941347;941348;941349;941350;941351;941352;941353;941354;941355;941356;941357;941358;941359;941360;941361;941362;941363;941364;941365;941366;941367;941368;941369;941370;941371;941372;941373;941374;941375;941376;941377;941378;941379;941380;941381;941382;941383;941384;941385;941386;941387;941388;941389;941390;941391;941392;941393;941394;941395;941396;941397;941398;941399;941400;941401;941402;941403;941404;941405;941406;941407;941408;941409;941410;941411;941412;941413;941414;941415;941416;941417;941418;941419;941420;941421;941422;941423;941424;941425;941426;941427;941428;941429;941430;941431;941432;941433;941434;941435;941436;941437;941438;941439;941440;941441;941442;941443;941444;941445;941446;941447;941448;941449;941450;941451;941452;941453;941454;941455;941456;941457;941458;941459;941460;941461;941462;941463;941464;941465;941466;941467;941468;941469;941470;941471;941472;941473;941474;941475;941476;941477;941478;941479;941480;941481;941482;941483;941484;941485;941486;941487;941488;941489;941490;941491;941492;941493;941494;941495;941496;941497;941498;941499;941500;941501;941502;941503;941504;1001522;1001523;1001524;1001525;1001526;1001527;1001528;1001529;1001530;1001531;1001532;1001533;1001534;1001535;1001536;1001537;1001538;1001539;1001540;1001541;1001542;1001543;1001544;1001545;1001546;1001547;1001548;1001549;1001550;1001551;1001552;1001553;1001554;1001555;1001556;1001557;1001558;1001559;1001560;1003466;1003467;1003468;1003469;1003470;1003471;1003472;1003473;1003474;1003475;1003476;1003477;1003478;1003479;1003480;1003481;1003482;1003483;1003484;1003485;1003486;1003487;1003488;1003489;1003490;1003491;1003492;1003493;1003494;1003495;1003496;1003497;1003498;1003499;1003500;1003501;1003502;1003503;1003504;1003505;1003506;1003507;1003508;1003509;1003510;1003511;1003512;1003513;1003514;1037536;1037537;1037538;1037539;1037540;1037541;1037542;1037543;1037544;1037545;1037546;1037547;1037548;1037549;1037550;1037551;1037552;1037553;1037554;1037555;1037556;1037557;1037558;1037559;1037560;1037561;1037562;1037563;1037564;1037565;1037566;1037567;1037568;1037569;1037570;1037571;1037572;1037573;1037574;1037575;1037576;1037577;1037578;1037579;1037580;1037581;1037582;1037583;1037584;1037585;1037586;1037587;1037588;1037589;1037590;1037591;1037592;1037593;1037594;1037595;1037596;1037597;1037598;1037599;1037600;1037601;1037602;1037603;1037604;1037605;1037606;1037607;1037608;1037609;1037610;1037611;1037612;1037613;1037614;1037615;1037616;1037617;1037618;1037619;1037620;1037621;1037622;1037623;1037624;1037625;1037626;1037627;1037628;1037629;1037630;1037631;1037632;1037633;1037634;1037635;1037636;1037637;1037638;1037639;1037640;1037641;1037642;1037643;1037644;1037645;1037646;1037647;1037648;1037649;1037650;1037651;1037652;1037653;1037654;1037655;1037656;1037657;1037658;1037659;1037660;1037661;1037662;1037663;1037664;1037665;1037666;1037667;1037668;1037669;1037670;1037671;1037672;1037673;1037674;1037675;1037676;1037677;1037678;1037679;1037680;1037681;1037682;1037683;1037684;1037685;1037686;1037687;1037688;1037689;1037690;1037691;1037692;1037693;1037694;1037695;1037696;1037697;1037698;1037699;1037700;1037701;1037702;1037703;1037704;1037705;1037706;1037707;1037708;1037709;1037710;1037711;1037712;1037713;1037714;1037715;1037716;1037717;1037718;1037719;1037720;1037721;1037722;1037723;1037724;1037725;1037726;1037727;1037728;1037729;1037730;1037731;1037732;1037733;1037734;1037735;1037736;1037737;1037738;1037739;1037740;1037741;1037742;1037743;1037744;1037745;1037746;1037747;1037748;1037749;1037750;1037751;1037752;1037753;1037754;1037755;1037756;1037757;1037758;1037759;1037760;1037761;1037762;1037763;1037764;1037765;1037766;1037767;1037768;1037769;1037770;1037771;1037772;1037773;1037774;1037775;1037776;1037777;1037778;1037779;1037780;1037781;1037782;1037783;1037784;1037785;1037786;1037787;1037788;1037789;1037790;1037791;1037792;1037793;1037794;1037795;1037796;1037797;1037798;1037799;1037800;1037801;1037802;1037803;1037804;1037805;1037806;1037807;1037808;1037809;1037810;1037811;1037812;1037813;1037814;1037815;1037816;1037817;1037818;1037819;1037820;1037821;1037822;1037823;1037824;1037825;1037826;1037827;1037828;1037829;1037830;1037831;1037832;1037833;1037834;1037835;1037836;1037837;1037838;1037839;1037840;1037841;1037842;1037843;1037844;1037845;1037846;1037847;1037848;1037849;1037850;1037851;1037852;1037853;1037854;1037855;1037856;1037857;1037858;1037859;1037860;1037861;1037862;1037863;1037864;1037865;1037866;1037867;1037868;1037869;1037870;1037871;1037872;1037873;1037874;1037875;1037876;1037877;1037878;1037879;1037880;1037881;1037882;1037883;1037884;1037885;1037886;1037887;1037888;1037889;1037890;1037891;1037892;1037893;1037894;1037895;1037896;1037897;1037898;1037899;1037900;1037901;1037902;1037903;1037904;1037905;1037906;1037907;1037908;1037909;1037910;1037911;1037912;1037913;1037914;1037915;1037916;1037917;1037918;1037919;1037920;1037921;1037922;1037923;1037924;1037925;1037926;1037927;1037928;1037929;1037930;1037931;1037932;1037933;1037934;1037935;1037936;1037937;1037938;1037939;1037940;1037941;1037942;1037943;1037944;1037945;1037946;1037947;1037948;1037949;1037950;1037951;1037952;1037953;1037954;1037955;1037956;1037957;1037958;1106344;1106345;1106346;1106347;1106348;1106349;1106350;1106351;1106352;1106353;1106354;1106355;1106356;1106357;1106358;1106359;1106360;1106361;1106362;1106363;1106364;1106365;1106366;1106367;1106368;1106369;1106370;1106371;1106372;1106373;1106374;1106375;1106376;1106377;1106378;1106379;1106380;1106381;1106382;1106383;1106384;1106385;1106386;1106387;1106388;1106389;1106390;1106391;1106392;1106393;1106394;1106395;1106396;1106397;1106398;1106399;1106400;1106401;1106402;1106403;1106404;1106405;1106406;1106407;1106408;1106409;1106410;1106411;1106412;1106413;1106414;1106415;1106416;1106417;1106418;1106419;1106420;1106421;1106422;1106423;1106424;1106425;1106426;1106427;1106428;1106429;1106430;1106431;1106432;1106433;1106434;1106435;1106436;1106437;1106438;1106439;1106440;1106441;1106442;1106443;1106444;1106445;1106446;1106447;1106448;1106449;1106450;1106451;1106452;1106453;1106454;1106455;1106456;1106457;1106458;1190048;1190049;1190050;1190051;1190052;1190053;1190054;1190055;1190056;1190057;1190058;1190059;1190060;1190061;1190062;1190063;1228005;1228006;1228007;1228008;1228009;1228010;1228011;1228012;1228013;1228014;1228015;1228016;1228017;1228018;1228019;1228020;1228021;1228022;1228023;1228024;1228025;1228026;1228027;1228028;1228029;1228030;1228031;1228032;1228033;1228034;1228035;1228036;1228037;1228038;1228039;1228040;1228041;1228042;1228043;1228044;1228045;1228046;1228047;1228048;1228049;1228050;1228051;1228052;1228053;1228054;1228055;1228056;1228057;1228058;1228059;1228060;1228061;1228062;1228063;1228064;1228065;1228066;1228067;1228068;1228069;1228070;1228071;1228072;1228073;1228074;1228075;1228076;1228077;1228078;1228079;1228080;1228081;1228082;1228083;1228084;1228085;1228086;1228087;1228088;1228089;1228090;1228091;1228092;1228093;1228094;1228095 | HO13: 92396;92397;92398;92399;92400;92401;92402;92403;92404;92405;92406;92407;92408;92409;92410;92411;92412;92413;92414;92415;92416;92417;92418;92419;92420;92421;92422;92423;92424;92425;92426;92427;92428;92429;92430;92431;92432;92433;92434;92435;92436;92437;92438;92439;92440;92441;160375;160376;160377;160378;160379;160380;160381;160382;160383;160384;160385;160386;160387;160388;160389;160390;160391;160392;160393;160394;160395;160396;160397;160398;160399;160400;160401;160402;160403;160404;160405;160406;160407;160408;160409;160410;160411;160412;160413;160414;160415;160416;160417;160418;160419;160420;160421;160422;160423;160424;160425;160426;160427;160428;160429;160430;160431;160432;160433;160434;160435;160436;160437;160438;160439;160440;160441;160442;160443;160444;160445;160446;160447;160448;160449;160450;160451;205792;205793;205794;205795;205796;205797;205798;205799;205800;205801;205802;205803;205804;205805;205806;205807;205808;205809;205810;321573;321574;321575;321576;321577;321578;321579;321580;321581;321582;321583;321584;321585;321586;321587;321588;321589;321590;321591;321592;321593;321594;321595;321596;321597;321598;321599;321600;321601;321602;321603;321604;321605;321606;321607;321608;321609;321610;321611;321612;321613;321614;321615;321616;321617;321618;321619;321620;321621;321622;321623;321624;321625;323161;323162;323163;323164;323165;323166;323167;323168;323169;323170;323171;323172;323173;323174;323175;323176;323177;323178;323179;323180;323181;323182;323183;323184;323185;323186;323187;323188;323189;323190;323191;323192;323193;323194;323195;323196;323197;323198;323199;323200;355179;355180;355181;355182;355183;355184;355185;355186;355187;355188;355189;355190;355191;355192;355193;355194;355195;355196;355197;355198;355199;355200;355201;355202;355203;355204;355205;355206;355207;355208;355209;355210;360463;360464;360465;360466;360467;361582;361583;427426;427427;427428;427429;427430;427431;427432;427433;427434;427435;427436;427437;427438;427439;427440;427441;427442;427443;427444;427445;427446;427447;427448;427449;427450;427451;427452;427453;427454;427455;427456;427457;427458;427459;427460;427461;427462;427463;427464;427465;427466;427467;427468;427469;427470;427471;427472;427473;458743;458744;458745;458746;458747;458748;458749;458750;458751;458752;458753;458754;458755;458756;458757;458758;458759;458760;458761;458762;458763;458764;458765;458766;458767;458768;458769;458770;458771;458772;458773;458774;458775;458776;458777;458778;458779;458780;481120;481121;481122;481123;481124;481125;481126;481127;481128;481129;481130;481131;481132;481133;481134;481135;481136;481137;481138;481139;481140;481141;481142;481143;481144;481145;481146;481147;481148;481149;481150;481151;481152;481153;481154;481155;481156;481157;481158;481159;481160;481161;481162;481163;481164;481165;481166;481167;481168;481169;481170;481171;481172;481173;481174;481175;481176;481177;481178;481179;481180;481181;487405;487406;487407;487408;487409;487410;497793;497794;497795;497796;497797;497798;497799;497800;497801;497802;497803;497804;497805;497806;497807;497808;497809;497810;497811;497812;497813;497814;497815;517363;517364;517365;517366;517367;517368;517369;517370;517371;517372;517373;517374;517375;517376;517377;517378;517379;517380;517381;517382;517383;517384;517385;517386;517387;517388;517389;517390;517391;517392;517393;517394;517395;517396;517397;517398;517399;517400;517401;517402;517403;517404;517405;517406;517407;517408;517409;517410;517411;517412;517413;517414;517415;519730;519731;519732;519733;519734;519735;519736;519737;519738;519739;519740;519741;519742;519743;519744;519745;519746;519747;519748;519749;519750;519751;519752;519753;519754;519755;519756;519757;519758;519759;519760;519761;519762;519763;519764;519765;519766;519767;519768;519769;519770;519771;519772;519773;519774;519775;519776;519777;519778;519779;519780;519781;519782;519783;519784;519785;519786;519787;519788;519789;519790;519791;519792;519793;519794;519795;519796;519797;519798;519799;519800;519801;519802;519803;520196;520197;520198;520199;520200;520201;520202;520203;520204;520205;520206;520207;520208;520209;520210;520211;520212;520213;520214;520215;520216;520217;520218;520219;520220;520221;520222;520223;520224;520225;520226;520227;520228;520229;520230;520231;520232;520233;520234;520235;520236;520237;520238;520239;520240;520241;520242;520243;520244;520245;520246;520247;520248;520249;520250;520251;520252;520253;520254;520255;520256;540446;540447;540448;540449;540450;540451;540452;540453;540454;540455;540456;540457;540458;540459;540460;540461;540462;540463;540464;540465;540466;540467;540468;540469;540470;551713;551714;551715;551716;551717;551718;551719;551720;551721;551722;551723;551724;551725;551726;551727;551728;551729;551730;551731;551732;551733;551734;561958;561959;561960;561961;577437;577438;577439;577440;577441;577442;577443;577444;577445;577446;577447;577448;577449;577450;577451;577452;577453;577454;577455;577456;577457;577458;577459;577460;577461;577462;577463;577464;577465;577466;577467;577468;577469;577470;577471;577472;577473;577474;577475;577476;577477;577478;577479;577480;577481;577482;577483;577484;577485;577486;577487;577488;577489;577490;577491;577492;577493;577494;577495;577496;577497;577498;577499;577500;577501;577502;577503;577504;577505;577506;577507;577508;577509;577510;577511;577512;577513;577514;577515;577516;577517;577518;577519;577520;577521;577522;577523;577524;577525;577526;577527;577528;577529;577530;577531;577532;577533;577534;577535;577536;577537;577538;577539;577540;577541;577542;577543;577544;577545;577546;577547;577548;577549;577550;577551;577552;577553;577554;577555;577556;577557;577558;577559;577560;577561;577562;577563;577564;577565;577566;577567;577568;577569;577570;577571;577572;577573;577574;577575;577576;577577;577578;577579;577580;577581;577582;577583;577584;577585;577586;577587;577588;577589;577590;577591;577592;577593;577594;577595;577596;577597;577598;613592;613593;613594;613595;613596;613597;613598;613599;613600;613601;613602;613603;613604;613605;613606;613607;613608;613609;613610;613611;613612;613613;613614;613615;613616;613617;613618;613619;613620;613621;613622;613623;613624;613625;613626;613627;613628;614724;614725;614726;614727;614728;614729;614730;614731;614732;614733;614734;614735;614736;614737;614738;614739;614740;614741;614742;614743;614744;614745;614746;614747;614748;614749;614750;614751;614752;614753;636371;636372;636373;636374;636375;636376;636377;636378;636379;636380;636381;636382;636383;636384;636385;636386;636387;636388;636389;636390;636391;636392;636393;636394;636395;636396;636397;636398;636399;636400;636401;636402;636403;636404;636405;636406;636407;636408;636409;636410;636411;636412;636413;636414;636415;636416;636417;636418;636419;636420;636421;636422;636423;636424;636425;636426;636427;636428;636429;636430;636431;636432;636433;636434;636435;636436;636437;636438;636439;636440;636441;636442;636443;636444;636445;636446;636447;636448;636449;636450;636451;636452;636453;636454;636455;636456;636457;636458;636459;636460;636461;636462;636463;636464;636465;636466;636467;636468;636469;636470;636471;636472;636473;636474;636475;636476;636477;636478;636479;636480;636481;636482;636483;636484;636485;636486;636487;636488;636489;636490;636491;636492;636493;636494;636495;636496;636497;636498;636499;636500;636501;636502;636503;636504;636505;636506;636507;636508;636509;636510;636511;636512;636513;636514;636515;636516;636517;636518;636519;636520;636521;636522;636523;636524;636525;636526;636527;636528;636529;636530;636531;636532;636533;636534;636535;636536;636537;636538;636539;636540;636541;636542;636543;636544;636545;636546;636547;636548;636549;636550;636551;636552;636553;636554;636555;636556;636557;636558;636559;636560;636561;636562;636563;636564;636565;636566;636567;636568;636569;636570;636571;636572;636573;636574;636575;636576;636577;636578;636579;636580;636581;636582;636583;636584;636585;636586;636587;636588;636589;636590;636591;636592;636593;636594;636595;636596;636597;636598;636599;636600;636601;636602;636603;636604;636605;636606;636607;636608;636609;636610;636611;636612;636613;636614;636615;636616;636617;636618;636619;636620;636621;636622;636623;636624;636625;636626;636627;636628;636629;636630;636631;636632;636633;636634;636635;636636;636637;636638;636639;636640;636641;636642;636643;636644;636645;636646;636647;636648;636649;636650;636651;636652;636653;636654;636655;636656;636657;636658;636659;636660;636661;636662;636663;636664;636665;636666;636667;636668;636669;636670;636671;636672;636673;636674;636675;636676;636677;636678;636679;636680;636681;636682;636683;636684;636685;636686;636687;636688;636689;636690;636691;636692;636693;636694;636695;636696;636697;636698;636699;636700;636701;636702;636703;636704;636705;636706;636707;636708;636709;636710;636711;636712;636713;636714;636715;636716;636717;636718;636719;636720;636721;636722;636723;636724;636725;636726;636727;636728;636729;636730;636731;636732;636733;636734;636735;636736;636737;636738;636739;636740;636741;636742;636743;636744;636745;636746;636747;636748;636749;636750;636751;636752;636753;636754;636755;636756;636757;636758;636759;636760;636761;636762;636763;636764;636765;636766;636767;636768;636769;679842;679843;679844;679845;679846;679847;679848;679849;679850;679851;679852;679853;679854;679855;679856;679857;679858;679859;679860;679861;679862;679863;679864;679865;679866;679867;679868;679869;679870;679871;679872;679873;679874;679875;679876;679877;679878;679879;679880;679881;679882;679883;679884;679885;679886;679887;679888;679889;679890;679891;679892;679893;679894;679895;679896;679897;679898;679899;679900;679901;679902;679903;679904;679905;679906;679907;679908;679909;679910;679911;679912;679913;679914;679915;679916;679917;679918;679919;679920;679921;679922;679923;679924;679925;679926;679927;679928;679929;679930;679931;730649;730650;730651;754059;754060;754061;754062;754063;754064;754065;754066;754067;754068;754069;754070;754071;754072;754073;754074;754075;754076;754077;754078;754079;754080;754081;754082;754083;754084;754085;754086;754087;754088;754089;754090;754091;754092;754093;754094;754095;754096;754097;754098;754099;754100;754101;754102;754103;754104;754105;754106;754107;754108;754109;754110;754111;754112;754113;754114;754115;754116;754117;754118;754119;754120;754121;754122;754123;754124;754125;754126;754127;754128;754129;754130;754131;754132;754133;754134;754135;754136;754137;754138;754139;754140;754141;754142;754143 | HP13: 92401;92439;160445;160451;205795;205808;321601;323184;355179;355189;360465;361582;427456;458753;458777;481137;487405;497803;517374;519755;520247;540463;540470;551728;561958;577480;577578;613623;614730;636639;679846;679893;730651;754102;754128 | HQ13: 326;327;328;329 | HR13: 1723;1724;1725;1726;1727;1728;1729;1730;1731 | HS13: 197;200;284;348 | HT13: 102;155;201;208;276;294;335;404;410 | HU13: 7.021683333e+10 | HV13: 3.939066667e+10 | HW13: 9.883866667e+10 | HX13: 3.404683333e+10 | HY13: 0.4932586144 | HZ13: -0.2103332134
A14: Q587J6 | B14: Q587J6 | C14: 66 | D14: 66 | E14: 66 | F14: LINE-1 type transposase domain-containing protein 1 | G14: L1td1 | H14: sp|Q587J6|LITD1_MOUSE LINE-1 type transposase domain-containing protein 1 OS=Mus musculus GN=L1td1 PE=2 SV=1 | I14: 1 | J14: 66 | K14: 66 | L14: 66 | M14: 47 | N14: 44 | O14: 46 | P14: 47 | Q14: 47 | R14: 44 | S14: 46 | T14: 53 | U14: 53 | V14: 52 | W14: 54 | X14: 55 | Y14: 47 | Z14: 47 | AA14: 47 | AB14: 45 | AC14: 46 | AD14: 48 | AE14: 49 | AF14: 50 | AG14: 50 | AH14: 49 | AI14: 51 | AJ14: 50 | AK14: 47 | AL14: 44 | AM14: 46 | AN14: 47 | AO14: 47 | AP14: 44 | AQ14: 46 | AR14: 53 | AS14: 53 | AT14: 52 | AU14: 54 | AV14: 55 | AW14: 47 | AX14: 47 | AY14: 47 | AZ14: 45 | BA14: 46 | BB14: 48 | BC14: 49 | BD14: 50 | BE14: 50 | BF14: 49 | BG14: 51 | BH14: 50 | BI14: 47 | BJ14: 44 | BK14: 46 | BL14: 47 | BM14: 47 | BN14: 44 | BO14: 46 | BP14: 53 | BQ14: 53 | BR14: 52 | BS14: 54 | BT14: 55 | BU14: 47 | BV14: 47 | BW14: 47 | BX14: 45 | BY14: 46 | BZ14: 48 | CA14: 49 | CB14: 50 | CC14: 50 | CD14: 49 | CE14: 51 | CF14: 50 | CG14: 67 | CH14: 67 | CI14: 67 | CJ14: 88.188 | CK14: 782 | CL14: 782 | CM14: 0 | CN14: 323.31 | CO14: By MS/MS | CP14: By MS/MS | CQ14: By MS/MS | CR14: By MS/MS | CS14: By MS/MS | CT14: By MS/MS | CU14: By MS/MS | CV14: By MS/MS | CW14: By MS/MS | CX14: By MS/MS | CY14: By MS/MS | CZ14: By MS/MS | DA14: By MS/MS | DB14: By MS/MS | DC14: By MS/MS | DD14: By MS/MS | DE14: By MS/MS | DF14: By MS/MS | DG14: By MS/MS | DH14: By MS/MS | DI14: By MS/MS | DJ14: By MS/MS | DK14: By MS/MS | DL14: By MS/MS | DM14: 60.4 | DN14: 57 | DO14: 58.6 | DP14: 59.7 | DQ14: 58.4 | DR14: 57 | DS14: 54.2 | DT14: 60.1 | DU14: 61.3 | DV14: 61.6 | DW14: 60.9 | DX14: 62.1 | DY14: 54 | DZ14: 55.5 | EA14: 54 | EB14: 52 | EC14: 54 | ED14: 54 | EE14: 55.2 | EF14: 53.7 | EG14: 54.3 | EH14: 54.9 | EI14: 56.1 | EJ14: 54.6 | EK14: 1209500000000 | EL14: 4897000000 | EM14: 4055500000 | EN14: 4896200000 | EO14: 4887900000 | EP14: 4687800000 | EQ14: 4344400000 | ER14: 46233000000 | ES14: 73255000000 | ET14: 104210000000 | EU14: 101240000000 | EV14: 37939000000 | EW14: 53432000000 | EX14: 9017300000 | EY14: 9538400000 | EZ14: 9360600000 | FA14: 10263000000 | FB14: 10432000000 | FC14: 10337000000 | FD14: 152320000000 | FE14: 153930000000 | FF14: 91154000000 | FG14: 79845000000 | FH14: 115840000000 | FI14: 113360000000 | FJ14: 110220000000 | FK14: 106040000000 | FL14: 104940000000 | FM14: 106720000000 | FN14: 116300000000 | FO14: 122970000000 | FP14: 57391000000 | FQ14: 57338000000 | FR14: 64208000000 | FS14: 61407000000 | FT14: 54005000000 | FU14: 51999000000 | FV14: 131340000000 | FW14: 136190000000 | FX14: 160150000000 | FY14: 164210000000 | FZ14: 149670000000 | GA14: 162080000000 | GB14: 91224000000 | GC14: 94075000000 | GD14: 80471000000 | GE14: 79888000000 | GF14: 96590000000 | GG14: 94316000000 | GH14: 45 | GI14: 46 | GJ14: 48 | GK14: 47 | GL14: 32 | GM14: 35 | GN14: 50 | GO14: 71 | GP14: 68 | GQ14: 77 | GR14: 50 | GS14: 62 | GT14: 82 | GU14: 68 | GV14: 72 | GW14: 66 | GX14: 70 | GY14: 69 | GZ14: 108 | HA14: 103 | HB14: 81 | HC14: 95 | HD14: 104 | HE14: 96 | HF14: 1645 | HJ14: 2233 | HK14: 3213;3230;7365;7594;8098;11441;13409;13696;14436;14437;14905;14906;18056;18057;18306;19485;19486;19648;19649;20862;21163;21676;21750;21751;21752;23396;23666;23667;26714;29677;32047;32927;32928;33758;33759;33760;34048;34090;34091;34092;35161;35335;36161;37853;38909;39240;39241;46575;47300;52177;55020;56637;59369;59854;65157;65509;67268;69273;71628;72755;74007;75602;75603;75637;76214;79527 | HL14: True;True;True;True;True;True;True;True;True;True;True;True;True;True;True;True;True;True;True;True;True;True;True;True;True;True;True;True;True;True;True;True;True;True;True;True;True;True;True;True;True;True;True;True;True;True;True;True;True;True;True;True;True;True;True;True;True;True;True;True;True;True;True;True;True;True | HM14: 3542;3560;8170;8171;8419;8986;12691;14925;14926;15236;16058;16059;16570;16571;20041;20042;20318;21687;21688;21868;21869;21870;23191;23510;24083;24164;24165;24166;24167;24168;25992;26288;26289;29689;32969;35577;35578;35579;36560;36561;37499;37500;37501;37831;37832;37877;37878;37879;39064;39255;40207;42081;43231;43585;43586;51702;51703;52485;58701;58702;61916;63686;63687;63688;63689;63690;66689;67212;73085;73464;73465;75396;77611;80233;81483;82883;84693;84694;84733;85371;89016 | HO14: 28641;28642;28643;28644;28645;28752;28753;28754;67138;67139;67140;67141;67142;67143;67144;67145;67146;67147;67148;67149;67150;67151;67152;67153;67154;67155;67156;67157;67158;67159;67160;67161;67162;67163;67164;67165;67166;67167;67168;67169;67170;67171;67172;67173;67174;67175;67176;67177;67178;67179;67180;67181;67182;67183;67184;67185;67186;67187;67188;67189;67190;67191;67192;67193;67194;67195;67196;67197;67198;67199;67200;67201;67202;67203;67204;67205;67206;67207;67208;67209;67210;67211;67212;67213;67214;67215;67216;67217;67218;67219;67220;67221;67222;67223;67224;67225;67226;67227;67228;67229;69041;69042;69043;69044;69045;69046;69047;69048;69049;73332;73333;73334;73335;73336;73337;73338;73339;73340;73341;73342;73343;73344;73345;73346;73347;73348;73349;73350;73351;73352;73353;73354;73355;73356;73357;73358;105881;105882;105883;105884;105885;105886;105887;105888;105889;105890;105891;105892;105893;105894;105895;105896;105897;105898;105899;105900;105901;105902;105903;105904;105905;105906;105907;105908;105909;105910;105911;105912;105913;105914;105915;105916;105917;105918;105919;105920;105921;105922;105923;105924;105925;105926;105927;105928;105929;105930;105931;105932;125985;125986;125987;125988;125989;125990;125991;125992;125993;125994;125995;125996;125997;125998;125999;126000;126001;126002;126003;126004;126005;126006;126007;126008;126009;126010;126011;126012;126013;126014;126015;126016;126017;126018;126019;128725;128726;128727;128728;128729;128730;128731;128732;128733;128734;128735;135884;135885;135886;135887;135888;135889;135890;135891;135892;135893;135894;135895;135896;135897;135898;135899;135900;135901;135902;135903;135904;135905;135906;135907;135908;135909;135910;135911;135912;135913;135914;140790;140791;140792;140793;140794;140795;140796;140797;140798;140799;140800;140801;170060;170061;170062;170063;170064;170065;170066;170067;170068;170069;170070;170071;170072;170073;170074;170075;170076;170077;170078;170079;170080;170081;170082;170083;170084;170085;170086;170087;170088;170089;170090;170091;170092;170093;170094;170095;170096;170097;170098;170099;170100;170101;170102;170103;170104;170105;170106;170107;170108;170109;170110;170111;170112;170113;170114;170115;170116;170117;170118;170119;170120;170121;170122;170123;170124;170125;170126;170127;170128;170129;170130;170131;170132;172751;172752;172753;172754;172755;172756;172757;172758;172759;172760;172761;172762;172763;172764;172765;172766;172767;172768;172769;172770;172771;172772;172773;172774;172775;172776;172777;172778;172779;172780;172781;183716;183717;183718;183719;183720;183721;183722;183723;183724;183725;183726;183727;183728;183729;183730;183731;183732;183733;183734;183735;183736;183737;183738;183739;183740;183741;183742;183743;183744;183745;185297;185298;185299;185300;185301;185302;185303;185304;185305;185306;185307;185308;185309;185310;185311;185312;185313;185314;195748;195749;195750;195751;195752;195753;195754;195755;195756;195757;195758;195759;195760;195761;195762;195763;195764;195765;195766;195767;195768;195769;195770;195771;195772;195773;198482;198483;198484;198485;198486;198487;198488;198489;202990;202991;202992;202993;202994;202995;202996;202997;202998;202999;203000;203001;203002;203003;203004;203005;203006;203007;203008;203009;203010;203011;203012;203013;203014;203015;203016;203017;203018;203019;203020;203021;203022;203023;203024;203025;203026;203027;203028;203714;203715;203716;203717;203718;203719;203720;203721;203722;203723;203724;203725;203726;203727;203728;203729;203730;203731;203732;203733;203734;203735;203736;203737;203738;203739;203740;203741;203742;203743;203744;203745;203746;203747;203748;203749;203750;203751;203752;203753;203754;203755;203756;203757;203758;203759;203760;203761;203762;203763;203764;203765;203766;203767;203768;203769;203770;203771;203772;203773;203774;203775;203776;203777;203778;203779;203780;203781;203782;203783;203784;203785;203786;203787;203788;203789;203790;203791;203792;203793;203794;203795;203796;203797;203798;203799;203800;203801;203802;203803;203804;203805;203806;203807;203808;203809;203810;203811;203812;203813;203814;203815;203816;203817;203818;203819;203820;203821;203822;203823;203824;203825;203826;203827;203828;203829;203830;203831;203832;203833;203834;203835;203836;203837;203838;203839;203840;203841;203842;203843;203844;203845;203846;203847;203848;203849;203850;203851;203852;203853;203854;203855;203856;203857;203858;203859;203860;203861;203862;203863;203864;203865;203866;203867;203868;203869;203870;203871;203872;203873;203874;203875;218524;218525;218526;218527;218528;218529;220992;220993;220994;220995;220996;220997;220998;220999;221000;221001;221002;221003;221004;221005;221006;221007;221008;221009;221010;221011;221012;221013;221014;221015;221016;221017;221018;221019;221020;221021;221022;221023;221024;221025;221026;221027;221028;221029;221030;221031;221032;221033;221034;221035;221036;221037;221038;221039;221040;221041;221042;221043;221044;221045;250037;250038;276645;276646;276647;276648;301818;301819;301820;301821;301822;301823;301824;301825;301826;301827;301828;301829;301830;301831;301832;301833;301834;301835;301836;301837;301838;301839;301840;301841;301842;301843;301844;301845;301846;301847;301848;301849;301850;301851;301852;301853;301854;301855;301856;301857;301858;301859;301860;301861;301862;301863;301864;301865;301866;301867;301868;301869;301870;301871;301872;301873;301874;301875;301876;301877;301878;301879;301880;301881;311148;311149;311150;311151;311152;311153;311154;311155;311156;311157;311158;311159;311160;311161;311162;311163;311164;311165;311166;311167;311168;311169;311170;311171;311172;311173;311174;311175;311176;311177;311178;311179;311180;311181;311182;311183;311184;311185;311186;311187;311188;311189;311190;311191;311192;311193;311194;311195;311196;311197;311198;311199;311200;311201;311202;311203;311204;311205;311206;311207;311208;311209;311210;311211;311212;311213;311214;311215;311216;311217;311218;311219;319285;319286;319287;319288;319289;319290;319291;319292;319293;319294;319295;319296;319297;319298;319299;319300;319301;319302;319303;319304;319305;319306;319307;319308;319309;319310;319311;319312;319313;319314;319315;319316;319317;319318;319319;319320;319321;319322;319323;319324;319325;319326;319327;319328;319329;319330;319331;319332;319333;319334;319335;319336;319337;319338;319339;319340;319341;319342;319343;319344;319345;319346;319347;319348;319349;319350;319351;319352;319353;319354;319355;319356;319357;319358;319359;319360;319361;319362;319363;319364;319365;319366;319367;319368;319369;319370;319371;319372;319373;319374;319375;319376;319377;319378;319379;319380;319381;319382;319383;319384;319385;319386;319387;322151;322152;322153;322154;322155;322156;322157;322158;322159;322160;322161;322162;322163;322164;322165;322166;322167;322168;322169;322170;322171;322172;322173;322174;322175;322176;322177;322178;322179;322180;322181;322182;322183;322184;322185;322186;322187;322188;322189;322190;322191;322192;322193;322194;322195;322196;322197;322198;322199;322200;322201;322202;322203;322204;322584;322585;322586;322587;322588;322589;322590;322591;322592;322593;322594;322595;322596;322597;322598;322599;322600;322601;322602;322603;322604;322605;322606;322607;322608;322609;322610;322611;322612;322613;322614;322615;322616;322617;322618;322619;322620;322621;322622;322623;322624;322625;322626;322627;322628;322629;322630;322631;322632;322633;322634;322635;322636;322637;322638;322639;322640;322641;322642;322643;322644;322645;322646;322647;322648;322649;322650;322651;322652;322653;322654;322655;322656;322657;322658;322659;322660;322661;322662;322663;322664;322665;322666;322667;322668;322669;322670;322671;322672;322673;322674;332943;332944;332945;332946;332947;332948;332949;332950;332951;332952;332953;332954;332955;332956;332957;332958;332959;332960;332961;332962;332963;332964;332965;332966;332967;332968;332969;332970;332971;332972;332973;332974;332975;332976;332977;332978;332979;332980;332981;332982;332983;332984;332985;332986;332987;332988;332989;332990;332991;332992;332993;332994;332995;332996;332997;332998;332999;333000;333001;334590;334591;342202;342203;357802;357803;357804;357805;357806;357807;357808;357809;357810;357811;357812;357813;357814;366791;366792;366793;366794;366795;369626;369627;369628;369629;369630;369631;369632;369633;369634;369635;369636;369637;369638;369639;369640;369641;369642;369643;369644;369645;369646;369647;369648;369649;369650;369651;369652;369653;369654;369655;369656;369657;369658;369659;369660;369661;369662;369663;369664;369665;369666;369667;369668;369669;369670;369671;369672;369673;369674;369675;369676;369677;369678;369679;369680;369681;369682;369683;369684;369685;369686;369687;369688;369689;369690;369691;369692;369693;369694;369695;369696;369697;369698;369699;369700;369701;436683;436684;436685;436686;436687;436688;436689;436690;436691;436692;436693;436694;436695;436696;436697;436698;436699;436700;436701;436702;436703;436704;436705;436706;436707;436708;436709;436710;436711;436712;436713;436714;436715;436716;436717;436718;436719;436720;436721;436722;436723;442371;442372;442373;442374;442375;442376;442377;442378;442379;442380;442381;442382;442383;442384;442385;442386;442387;442388;442389;442390;442391;442392;442393;442394;442395;442396;442397;442398;442399;442400;442401;442402;442403;442404;442405;442406;442407;442408;442409;442410;442411;442412;442413;442414;442415;442416;491603;491604;491605;491606;491607;491608;491609;491610;491611;491612;491613;491614;491615;491616;491617;491618;491619;491620;491621;491622;491623;491624;491625;491626;491627;491628;491629;491630;491631;491632;491633;491634;491635;491636;491637;491638;491639;491640;491641;491642;491643;491644;491645;491646;491647;491648;491649;491650;491651;491652;491653;491654;491655;491656;491657;491658;491659;491660;491661;491662;491663;491664;491665;491666;491667;491668;491669;491670;491671;491672;491673;491674;491675;491676;491677;491678;491679;491680;491681;491682;491683;491684;491685;491686;491687;491688;519501;519502;519503;519504;519505;519506;519507;519508;519509;519510;519511;519512;519513;519514;532654;532655;532656;532657;532658;532659;532660;532661;532662;532663;532664;532665;532666;532667;532668;532669;532670;532671;532672;532673;532674;532675;532676;532677;532678;532679;532680;532681;532682;532683;532684;532685;532686;532687;532688;532689;532690;532691;532692;532693;532694;532695;532696;532697;532698;532699;532700;532701;532702;532703;532704;532705;532706;532707;532708;532709;532710;532711;532712;532713;532714;532715;532716;532717;532718;532719;532720;532721;532722;532723;532724;532725;532726;532727;532728;532729;532730;532731;532732;532733;532734;532735;532736;532737;532738;532739;532740;532741;532742;532743;532744;532745;532746;532747;532748;532749;532750;532751;532752;532753;532754;532755;532756;532757;532758;532759;532760;532761;532762;532763;532764;532765;532766;532767;532768;532769;532770;532771;532772;532773;532774;532775;532776;532777;532778;532779;532780;532781;532782;532783;532784;532785;532786;532787;532788;532789;532790;532791;532792;532793;532794;532795;532796;532797;532798;532799;532800;532801;532802;532803;554239;554240;554241;554242;554243;557917;557918;557919;604935;604936;604937;604938;604939;604940;604941;604942;604943;604944;604945;604946;604947;604948;604949;604950;604951;604952;607880;607881;607882;607883;607884;607885;607886;607887;607888;607889;607890;607891;607892;607893;607894;607895;607896;623331;623332;623333;623334;623335;623336;623337;623338;623339;623340;623341;623342;623343;623344;623345;623346;623347;623348;623349;623350;623351;623352;623353;623354;623355;623356;623357;642893;642894;642895;642896;642897;642898;642899;665699;665700;665701;677022;677023;677024;677025;677026;677027;677028;677029;677030;677031;677032;677033;677034;677035;677036;677037;677038;677039;677040;677041;677042;677043;677044;677045;689374;689375;689376;689377;689378;689379;704902;704903;704904;704905;704906;704907;704908;704909;704910;704911;704912;704913;704914;704915;704916;704917;704918;704919;704920;704921;704922;704923;704924;704925;704926;704927;705338;705339;705340;705341;705342;705343;705344;705345;705346;705347;705348;705349;705350;705351;705352;705353;705354;705355;705356;705357;705358;705359;705360;705361;705362;705363;705364;705365;705366;705367;705368;705369;705370;705371;705372;705373;705374;705375;710412;710413;710414;710415;710416;710417;710418;710419;710420;710421;710422;710423;710424;710425;710426;710427;710428;710429;710430;710431;710432;710433;710434;710435;710436;710437;710438;710439;710440;710441;710442;710443;710444;710445;710446;710447;710448;710449;710450;710451;710452;710453;710454;710455;710456;710457;710458;710459;710460;710461;710462;710463;710464;710465;710466;710467;710468;710469;710470;710471;710472;740779;740780;740781;740782;740783;740784;740785;740786;740787;740788;740789;740790;740791;740792;740793;740794;740795;740796;740797;740798;740799 | HP14: 28643;28754;67196;69044;73345;105891;126001;128725;135885;135911;140791;140792;170098;170113;172767;183724;183745;185301;185314;195769;198489;203011;203727;203850;203872;218526;221023;221042;250038;276648;301825;311149;311217;319288;319373;319383;322186;322601;322606;322641;332970;334590;342202;357809;366795;369687;369694;436711;442393;491687;519501;532787;554239;557917;604952;607885;623338;642898;665699;677035;689376;704922;704927;705356;710455;740785 | HQ14: 959;960;961;962;963;964 | HR14: 5051;5052;5053;5054;5055;5056;5057;5058;5059 | HS14: 251;506;572;634;647;666 | HT14: 42;43;50;52;56;60;465;564;597 | HU14: 8.942733333e+10 | HV14: 1.506066667e+11 | HW14: 5.772466667e+10 | HX14: 1.111983333e+11 | HY14: -0.6315279193 | HZ14: -0.4376504681
A15: P05213;Q3UX10 | B15: P05213 | C15: 37;4 | D15: 37;4 | E15: 0;0 | F15: Tubulin alpha-1B chain | G15: Tuba1b | H15: sp|P05213|TBA1B_MOUSE Tubulin alpha-1B chain OS=Mus musculus GN=Tuba1b PE=1 SV=2 | I15: 2 | J15: 37 | K15: 37 | L15: 0 | M15: 22 | N15: 24 | O15: 24 | P15: 24 | Q15: 25 | R15: 21 | S15: 22 | T15: 33 | U15: 28 | V15: 30 | W15: 32 | X15: 32 | Y15: 27 | Z15: 27 | AA15: 26 | AB15: 27 | AC15: 23 | AD15: 24 | AE15: 31 | AF15: 28 | AG15: 31 | AH15: 29 | AI15: 30 | AJ15: 32 | AK15: 22 | AL15: 24 | AM15: 24 | AN15: 24 | AO15: 25 | AP15: 21 | AQ15: 22 | AR15: 33 | AS15: 28 | AT15: 30 | AU15: 32 | AV15: 32 | AW15: 27 | AX15: 27 | AY15: 26 | AZ15: 27 | BA15: 23 | BB15: 24 | BC15: 31 | BD15: 28 | BE15: 31 | BF15: 29 | BG15: 30 | BH15: 32 | BI15: 0 | BJ15: 0 | BK15: 0 | BL15: 0 | BM15: 0 | BN15: 0 | BO15: 0 | BP15: 0 | BQ15: 0 | BR15: 0 | BS15: 0 | BT15: 0 | BU15: 0 | BV15: 0 | BW15: 0 | BX15: 0 | BY15: 0 | BZ15: 0 | CA15: 0 | CB15: 0 | CC15: 0 | CD15: 0 | CE15: 0 | CF15: 0 | CG15: 85.6 | CH15: 85.6 | CI15: 0 | CJ15: 50.151 | CK15: 451 | CL15: 451;446 | CM15: 0 | CN15: 323.31 | CO15: By MS/MS | CP15: By MS/MS | CQ15: By MS/MS | CR15: By MS/MS | CS15: By MS/MS | CT15: By MS/MS | CU15: By MS/MS | CV15: By MS/MS | CW15: By MS/MS | CX15: By MS/MS | CY15: By MS/MS | CZ15: By MS/MS | DA15: By MS/MS | DB15: By MS/MS | DC15: By MS/MS | DD15: By MS/MS | DE15: By MS/MS | DF15: By MS/MS | DG15: By MS/MS | DH15: By MS/MS | DI15: By MS/MS | DJ15: By MS/MS | DK15: By MS/MS | DL15: By MS/MS | DM15: 60.3 | DN15: 62.1 | DO15: 62.1 | DP15: 68.1 | DQ15: 69.2 | DR15: 58.3 | DS15: 53 | DT15: 80 | DU15: 79.2 | DV15: 79.8 | DW15: 80 | DX15: 80 | DY15: 66.3 | DZ15: 73.2 | EA15: 72.3 | EB15: 73.6 | EC15: 61.4 | ED15: 68.5 | EE15: 77.8 | EF15: 70.7 | EG15: 82.5 | EH15: 74.5 | EI15: 77.8 | EJ15: 83.8 | EK15: 1207900000000 | EL15: 3188300000 | EM15: 2766000000 | EN15: 2808600000 | EO15: 3123000000 | EP15: 2277900000 | EQ15: 1962600000 | ER15: 58538000000 | ES15: 112470000000 | ET15: 133760000000 | EU15: 132950000000 | EV15: 66474000000 | EW15: 96943000000 | EX15: 4355300000 | EY15: 4880400000 | EZ15: 3611100000 | FA15: 3502200000 | FB15: 3985000000 | FC15: 4077600000 | FD15: 110450000000 | FE15: 111580000000 | FF15: 84772000000 | FG15: 80074000000 | FH15: 91522000000 | FI15: 87875000000 | FJ15: 69253000000 | FK15: 66684000000 | FL15: 53301000000 | FM15: 59051000000 | FN15: 50333000000 | FO15: 53120000000 | FP15: 106360000000 | FQ15: 102450000000 | FR15: 98554000000 | FS15: 100690000000 | FT15: 96223000000 | FU15: 104790000000 | FV15: 64681000000 | FW15: 67846000000 | FX15: 55140000000 | FY15: 54026000000 | FZ15: 51508000000 | GA15: 52714000000 | GB15: 65577000000 | GC15: 70253000000 | GD15: 68407000000 | GE15: 75046000000 | GF15: 61910000000 | GG15: 70446000000 | GH15: 30 | GI15: 28 | GJ15: 26 | GK15: 27 | GL15: 15 | GM15: 15 | GN15: 43 | GO15: 76 | GP15: 71 | GQ15: 69 | GR15: 54 | GS15: 63 | GT15: 46 | GU15: 41 | GV15: 34 | GW15: 38 | GX15: 33 | GY15: 33 | GZ15: 104 | HA15: 102 | HB15: 87 | HC15: 82 | HD15: 78 | HE15: 83 | HF15: 1278 | HJ15: 742 | HK15: 2094;2095;6460;6593;6594;6595;7117;13821;14119;15106;15168;15408;17588;17589;22788;22831;26083;27165;34213;34214;39354;40382;40383;43192;47235;50235;52298;57482;57483;59514;62929;68809;68810;68811;73504;79884;79885 | HL15: True;True;True;True;True;True;True;True;True;True;True;True;True;True;True;True;True;True;True;True;True;True;True;True;True;True;True;True;True;True;True;True;True;True;True;True;True | HM15: 2288;2289;2290;2291;2292;7171;7172;7173;7322;7323;7324;7881;7882;7883;7884;15376;15377;15705;16786;16787;16855;16856;17125;17126;19510;19511;25316;25317;25367;25368;28983;30181;38017;38018;38019;43710;43711;44844;44845;44846;47938;52410;56331;58835;64604;64605;64606;66846;70580;77110;77111;77112;77113;82333;82334;89404;89405;89406 | HN15: 30287;30288;30289;30290;30291;30292;30293;30294;30295;30296;30297;30298;30299;30300;30301;30302;30303;30304;30305;30306;30307;30308;30309;30310;30311;30312;30313;30314;30315;30316;30317;30318;30319;30320;30321;30322;30323;30324;30325;30326;30327;30328;30329;30330;30331;30332;30333;30334;30335;30336;30337;30338;30339;30340;30341;30342;30343;30344;30345;30346;30347;30348;30349;30350;30351;30352;30353;30354;30355;30356;30357;30358;30359;30360;30361;30362;30363;30364;30365;30366;30367;30368;30369;30370;30371;30372;30373;30374;30375;30376;30377;30378;30379;30380;30381;30382;30383;30384;30385;30386;30387;30388;30389;30390;30391;30392;30393;30394;30395;30396;30397;30398;30399;30400;30401;30402;30403;30404;30405;30406;30407;30408;30409;30410;30411;30412;30413;30414;30415;30416;30417;30418;30419;30420;30421;30422;30423;30424;30425;30426;30427;30428;30429;30430;30431;30432;30433;30434;30435;30436;30437;30438;30439;30440;30441;30442;30443;30444;30445;30446;30447;30448;30449;30450;30451;30452;30453;30454;30455;30456;30457;30458;30459;97084;97085;97086;97087;97088;97089;97090;97091;97092;97093;97094;97095;97096;97097;97098;97099;97100;97101;97102;97103;97104;97105;97106;97107;97108;97109;97110;97111;97112;97113;97114;97115;97116;97117;97118;97119;97120;97121;97122;97123;97124;97125;97126;97127;97128;97129;97130;97131;97132;97133;97134;97135;97136;97137;97138;99422;99423;99424;99425;99426;99427;99428;99429;99430;99431;99432;99433;99434;99435;99436;99437;99438;99439;99440;99441;99442;99443;99444;99445;99446;99447;99448;99449;99450;99451;99452;99453;99454;99455;99456;99457;99458;99459;99460;99461;99462;99463;99464;99465;99466;99467;99468;99469;99470;99471;99472;99473;99474;99475;99476;99477;99478;99479;99480;99481;99482;99483;99484;99485;99486;99487;99488;99489;99490;99491;99492;99493;99494;99495;99496;99497;99498;99499;99500;99501;99502;99503;99504;99505;99506;99507;99508;99509;99510;99511;99512;99513;99514;99515;106549;106550;106551;106552;106553;106554;106555;106556;106557;106558;106559;106560;106561;106562;106563;106564;106565;106566;106567;106568;106569;106570;106571;106572;106573;106574;106575;106576;106577;106578;106579;106580;106581;106582;106583;106584;106585;106586;106587;106588;106589;106590;106591;106592;106593;106594;106595;106596;106597;106598;106599;106600;106601;106602;106603;106604;106605;106606;106607;106608;106609;106610;106611;106612;106613;106614;106615;106616;106617;106618;106619;106620;106621;106622;106623;106624;106625;106626;106627;106628;106629;106630;106631;106632;106633;106634;106635;106636;106637;106638;106639;106640;106641;106642;106643;106644;106645;106646;106647;106648;106649;106650;106651;106652;106653;106654;106655;106656;106657;106658;106659;106660;106661;106662;106663;106664;106665;106666;106667;106668;106669;106670;106671;106672;106673;106674;106675;106676;106677;106678;106679;106680;106681;106682;106683;106684;106685;106686;106687;106688;106689;106690;106691;106692;106693;106694;106695;106696;106697;106698;106699;106700;106701;106702;106703;106704;106705;106706;106707;106708;106709;106710;106711;106712;106713;106714;106715;106716;106717;106718;106719;106720;209212;209213;209214;209215;209216;209217;209218;209219;209220;209221;209222;209223;209224;209225;209226;209227;209228;209229;209230;209231;209232;209233;209234;209235;209236;209237;209238;209239;209240;209241;209242;209243;209244;209245;213561;213562;213563;213564;213565;213566;213567;213568;213569;229581;229582;229583;229584;229585;229586;229587;229588;229589;229590;229591;229592;229593;229594;229595;229596;229597;229598;229599;229600;229601;229602;230489;230490;230491;230492;230493;230494;230495;230496;230497;230498;230499;230500;230501;230502;230503;230504;230505;230506;230507;230508;230509;230510;230511;230512;230513;230514;230515;230516;230517;230518;230519;230520;230521;230522;230523;230524;230525;230526;230527;230528;230529;230530;230531;230532;230533;230534;230535;230536;230537;230538;230539;230540;230541;230542;230543;230544;230545;230546;230547;230548;230549;230550;230551;230552;230553;230554;230555;230556;230557;230558;230559;230560;230561;230562;230563;230564;230565;230566;230567;230568;230569;230570;230571;230572;230573;230574;230575;230576;230577;230578;230579;230580;230581;230582;230583;230584;230585;230586;230587;230588;230589;230590;230591;230592;230593;230594;230595;230596;230597;230598;230599;230600;230601;230602;234059;234060;234061;234062;234063;234064;234065;234066;234067;234068;234069;234070;234071;234072;234073;234074;234075;234076;234077;234078;234079;234080;234081;234082;234083;234084;234085;234086;234087;234088;234089;234090;234091;234092;234093;234094;234095;234096;234097;234098;234099;267075;267076;267077;267078;267079;267080;267081;267082;267083;267084;267085;267086;267087;267088;267089;267090;267091;267092;267093;267094;267095;267096;267097;267098;267099;267100;267101;267102;267103;267104;267105;267106;267107;267108;267109;267110;267111;267112;267113;267114;267115;267116;267117;267118;267119;267120;267121;267122;267123;267124;267125;267126;267127;267128;267129;267130;267131;267132;267133;267134;267135;267136;267137;267138;267139;267140;267141;267142;267143;267144;267145;267146;345413;345414;345415;345416;345417;345418;345419;345420;345421;345422;345423;345424;345425;345426;345427;345428;345429;345430;345431;345432;345433;345434;345435;345436;345437;345438;345439;345440;345441;345442;345443;345444;345445;345446;345447;345448;345449;345450;345451;345452;345453;345454;345455;345456;345457;345458;345459;345460;345461;345462;345463;345464;345465;345466;345467;345468;345469;345470;345471;345472;345473;345474;345475;345476;345477;345478;345479;345480;345481;345482;345483;345484;345485;345486;345487;345488;345489;345490;345491;345492;345493;345494;345495;345496;345497;345498;345499;345500;345501;345502;345503;345504;345505;345506;345507;345508;345509;345510;345511;345512;345513;345514;345515;345516;345517;345518;345519;345520;345521;345522;345523;345524;346035;346036;346037;346038;346039;346040;346041;346042;346043;346044;346045;346046;346047;346048;346049;346050;346051;346052;346053;346054;346055;346056;346057;346058;346059;346060;346061;346062;346063;346064;346065;346066;346067;346068;346069;346070;346071;346072;346073;346074;346075;395024;395025;395026;395027;395028;395029;411792;411793;411794;411795;411796;411797;411798;411799;411800;411801;411802;411803;521853;521854;521855;521856;521857;521858;521859;521860;521861;521862;521863;521864;521865;521866;521867;521868;521869;521870;521871;521872;521873;521874;521875;521876;521877;521878;521879;521880;521881;521882;521883;521884;521885;521886;521887;521888;521889;521890;521891;521892;521893;521894;521895;521896;521897;521898;521899;521900;521901;521902;521903;521904;521905;521906;521907;521908;521909;521910;521911;521912;521913;521914;521915;521916;521917;521918;521919;521920;521921;521922;521923;521924;521925;521926;521927;521928;521929;521930;521931;521932;521933;521934;521935;521936;521937;521938;521939;521940;521941;521942;521943;601003;601004;601005;601006;601007;601008;601009;601010;601011;601012;601013;601014;601015;601016;601017;601018;601019;616765;616766;616767;616768;616769;616770;616771;616772;616773;616774;616775;616776;616777;616778;616779;616780;616781;616782;616783;616784;616785;616786;616787;616788;616789;616790;616791;616792;616793;616794;616795;616796;616797;616798;616799;616800;616801;616802;616803;616804;616805;616806;616807;616808;616809;616810;657270;657271;657272;657273;657274;657275;657276;657277;657278;657279;657280;657281;657282;657283;657284;657285;657286;657287;657288;657289;657290;657291;657292;657293;657294;657295;657296;657297;657298;716618;716619;716620;716621;716622;716623;716624;716625;716626;716627;716628;716629;716630;716631;716632;716633;716634;716635;716636;716637;716638;716639;716640;716641;716642;716643;716644;716645;716646;716647;716648;716649;716650;716651;716652;716653;766320;766321;766322;766323;766324;766325;766326;766327;766328;766329;766330;799794;799795;799796;799797;799798;799799;799800;799801;799802;799803;799804;799805;799806;799807;799808;799809;799810;799811;799812;799813;799814;799815;799816;799817;799818;799819;799820;799821;799822;799823;799824;799825;799826;799827;799828;799829;799830;799831;799832;799833;799834;799835;799836;799837;799838;876057;876058;876059;876060;876061;876062;876063;876064;876065;876066;876067;876068;876069;876070;876071;876072;876073;876074;876075;876076;876077;876078;876079;876080;876081;876082;876083;876084;876085;876086;876087;876088;876089;876090;876091;876092;876093;876094;876095;876096;876097;876098;876099;876100;876101;876102;876103;876104;876105;876106;876107;876108;876109;876110;876111;876112;876113;876114;876115;876116;876117;876118;876119;876120;876121;876122;876123;876124;876125;876126;876127;876128;876129;876130;876131;876132;876133;876134;876135;876136;876137;876138;876139;876140;876141;876142;876143;876144;876145;876146;876147;876148;876149;876150;876151;876152;876153;876154;876155;876156;876157;876158;876159;876160;876161;876162;876163;876164;876165;876166;876167;876168;876169;876170;876171;876172;876173;876174;876175;876176;876177;876178;876179;876180;876181;876182;876183;876184;876185;876186;876187;876188;876189;904183;904184;904185;904186;953524;953525;953526;953527;953528;953529;953530;953531;953532;953533;953534;953535;953536;953537;953538;953539;953540;953541;953542;953543;953544;953545;953546;953547;953548;953549;953550;953551;953552;953553;953554;1041318;1041319;1041320;1041321;1041322;1041323;1041324;1041325;1041326;1041327;1041328;1041329;1041330;1041331;1041332;1041333;1041334;1041335;1041336;1041337;1041338;1041339;1041340;1041341;1041342;1041343;1041344;1041345;1041346;1041347;1041348;1041349;1041350;1041351;1041352;1041353;1041354;1041355;1041356;1041357;1041358;1041359;1041360;1041361;1041362;1041363;1041364;1041365;1041366;1041367;1041368;1041369;1041370;1041371;1041372;1041373;1041374;1041375;1041376;1041377;1041378;1041379;1041380;1041381;1041382;1041383;1041384;1041385;1041386;1041387;1041388;1041389;1041390;1041391;1041392;1041393;1041394;1041395;1041396;1041397;1041398;1041399;1041400;1041401;1041402;1041403;1041404;1041405;1041406;1041407;1041408;1041409;1041410;1041411;1041412;1041413;1041414;1041415;1041416;1041417;1041418;1041419;1041420;1041421;1041422;1041423;1041424;1041425;1041426;1041427;1041428;1041429;1041430;1041431;1041432;1041433;1041434;1041435;1114210;1114211;1114212;1114213;1114214;1114215;1114216;1114217;1114218;1114219;1114220;1114221;1114222;1114223;1114224;1114225;1114226;1114227;1114228;1114229;1114230;1114231;1114232;1114233;1114234;1114235;1114236;1114237;1114238;1114239;1114240;1114241;1114242;1114243;1114244;1114245;1114246;1114247;1114248;1114249;1114250;1114251;1114252;1114253;1114254;1114255;1114256;1114257;1114258;1114259;1114260;1114261;1114262;1114263;1212143;1212144;1212145;1212146;1212147;1212148;1212149;1212150;1212151;1212152;1212153;1212154;1212155;1212156;1212157;1212158;1212159;1212160;1212161;1212162;1212163;1212164;1212165;1212166;1212167;1212168;1212169;1212170;1212171;1212172;1212173;1212174;1212175;1212176;1212177;1212178;1212179;1212180;1212181;1212182;1212183 | HO15: 18256;18257;18258;18259;18260;18261;18262;18263;18264;18265;18266;18267;18268;18269;18270;18271;18272;18273;18274;18275;18276;18277;18278;18279;18280;18281;18282;18283;18284;18285;18286;18287;18288;18289;18290;18291;18292;18293;18294;18295;18296;18297;18298;18299;18300;18301;18302;18303;18304;18305;18306;18307;18308;18309;18310;18311;18312;18313;18314;18315;18316;18317;18318;18319;18320;18321;18322;18323;18324;18325;18326;18327;18328;18329;18330;18331;18332;18333;18334;18335;18336;18337;18338;18339;18340;18341;18342;18343;18344;18345;18346;18347;18348;18349;18350;18351;18352;18353;18354;18355;18356;18357;18358;18359;18360;18361;18362;18363;18364;18365;18366;18367;18368;18369;18370;18371;18372;18373;18374;18375;18376;18377;18378;18379;18380;18381;18382;18383;18384;18385;58974;58975;58976;58977;58978;58979;58980;58981;58982;58983;58984;58985;58986;58987;58988;58989;58990;58991;58992;58993;58994;58995;58996;58997;58998;58999;59000;59001;59002;59003;59004;59005;59006;59007;59008;59009;59010;59011;59012;60521;60522;60523;60524;60525;60526;60527;60528;60529;60530;60531;60532;60533;60534;60535;60536;60537;60538;60539;60540;60541;60542;60543;60544;60545;60546;60547;60548;60549;60550;60551;60552;60553;60554;60555;60556;60557;60558;60559;60560;60561;60562;60563;60564;60565;60566;60567;60568;60569;60570;60571;60572;60573;60574;60575;60576;60577;60578;60579;60580;60581;60582;60583;60584;60585;60586;60587;60588;60589;60590;60591;60592;60593;60594;60595;60596;60597;60598;60599;60600;60601;60602;60603;60604;60605;60606;60607;60608;60609;60610;64657;64658;64659;64660;64661;64662;64663;64664;64665;64666;64667;64668;64669;64670;64671;64672;64673;64674;64675;64676;64677;64678;64679;64680;64681;64682;64683;64684;64685;64686;64687;64688;64689;64690;64691;64692;64693;64694;64695;64696;64697;64698;64699;64700;64701;64702;64703;64704;64705;64706;64707;64708;64709;64710;64711;64712;64713;64714;64715;64716;64717;64718;64719;64720;64721;64722;64723;64724;64725;64726;64727;64728;64729;64730;64731;64732;64733;64734;64735;64736;64737;64738;64739;64740;64741;64742;64743;64744;64745;64746;64747;64748;64749;64750;64751;64752;64753;64754;64755;64756;64757;64758;64759;64760;64761;64762;64763;64764;64765;64766;64767;64768;64769;64770;64771;64772;64773;64774;64775;64776;64777;64778;64779;64780;64781;64782;64783;64784;64785;64786;64787;64788;64789;64790;64791;64792;64793;64794;64795;64796;64797;64798;64799;64800;64801;64802;64803;64804;64805;64806;64807;64808;64809;64810;64811;64812;64813;64814;64815;64816;64817;64818;64819;64820;64821;64822;64823;64824;64825;64826;64827;64828;64829;64830;64831;64832;129941;129942;129943;129944;129945;129946;129947;129948;129949;129950;129951;129952;129953;129954;129955;129956;129957;129958;129959;129960;129961;129962;129963;129964;129965;129966;129967;129968;129969;129970;129971;129972;129973;129974;129975;129976;129977;129978;129979;129980;129981;129982;129983;129984;129985;129986;129987;129988;129989;129990;129991;129992;129993;132737;132738;132739;132740;132741;132742;132743;132744;132745;142548;142549;142550;142551;142552;142553;142554;142555;142556;142557;142558;142559;142560;142561;142562;142563;142564;143083;143084;143085;143086;143087;143088;143089;143090;143091;143092;143093;143094;143095;143096;143097;143098;143099;143100;143101;143102;143103;143104;143105;143106;143107;143108;143109;143110;143111;143112;143113;143114;143115;143116;143117;143118;143119;143120;143121;143122;143123;143124;143125;143126;143127;143128;143129;143130;143131;143132;143133;143134;143135;143136;143137;143138;143139;143140;143141;143142;143143;143144;143145;143146;143147;143148;143149;143150;143151;143152;143153;143154;145258;145259;145260;145261;145262;145263;145264;145265;145266;145267;145268;145269;145270;145271;145272;145273;145274;145275;145276;145277;145278;145279;145280;145281;165353;165354;165355;165356;165357;165358;165359;165360;165361;165362;165363;165364;165365;165366;165367;165368;165369;165370;165371;165372;165373;165374;165375;165376;165377;165378;165379;165380;165381;165382;165383;165384;165385;165386;165387;165388;165389;165390;165391;165392;165393;165394;165395;165396;165397;165398;165399;165400;165401;165402;165403;165404;165405;165406;165407;165408;165409;165410;165411;165412;165413;165414;165415;165416;165417;165418;165419;165420;213207;213208;213209;213210;213211;213212;213213;213214;213215;213216;213217;213218;213219;213220;213221;213222;213223;213224;213225;213226;213227;213228;213229;213230;213231;213232;213233;213234;213235;213236;213237;213238;213239;213240;213241;213242;213243;213244;213245;213246;213247;213248;213249;213250;213251;213252;213253;213254;213255;213256;213257;213258;213259;213260;213261;213262;213263;213264;213265;213266;213267;213268;213269;213270;213271;213272;213273;213274;213275;213276;213277;213278;213279;213280;213281;213282;213283;213284;213285;213578;213579;213580;213581;213582;213583;213584;213585;213586;213587;213588;213589;213590;213591;213592;213593;213594;213595;213596;213597;213598;213599;213600;213601;213602;213603;213604;213605;213606;213607;213608;213609;213610;213611;213612;213613;213614;213615;213616;213617;213618;213619;213620;213621;213622;213623;244003;254402;254403;254404;254405;254406;254407;254408;254409;254410;323833;323834;323835;323836;323837;323838;323839;323840;323841;323842;323843;323844;323845;323846;323847;323848;323849;323850;323851;323852;323853;323854;323855;323856;323857;323858;323859;323860;323861;323862;323863;323864;323865;323866;323867;323868;323869;323870;323871;323872;323873;323874;323875;323876;323877;323878;323879;323880;323881;323882;323883;323884;323885;323886;323887;323888;323889;323890;323891;323892;323893;323894;323895;323896;323897;323898;323899;323900;323901;323902;323903;323904;323905;323906;323907;323908;323909;323910;323911;323912;323913;323914;323915;323916;323917;323918;323919;323920;323921;323922;323923;323924;323925;323926;323927;323928;323929;323930;323931;323932;323933;323934;323935;323936;323937;323938;323939;323940;323941;323942;323943;323944;323945;323946;323947;323948;323949;323950;323951;323952;370671;370672;370673;370674;370675;370676;370677;370678;370679;370680;380799;380800;380801;380802;380803;380804;380805;380806;380807;380808;380809;380810;380811;380812;380813;380814;380815;380816;380817;380818;380819;380820;380821;380822;380823;380824;380825;405392;405393;405394;405395;405396;405397;405398;405399;405400;405401;405402;405403;405404;405405;405406;405407;405408;405409;405410;405411;405412;405413;441909;441910;441911;441912;441913;441914;441915;441916;441917;441918;472180;472181;472182;472183;472184;472185;472186;472187;472188;472189;472190;472191;492894;492895;492896;492897;492898;492899;492900;492901;492902;492903;492904;492905;492906;492907;492908;492909;492910;492911;492912;492913;539551;539552;539553;539554;539555;539556;539557;539558;539559;539560;539561;539562;539563;539564;539565;539566;539567;539568;539569;539570;539571;539572;539573;539574;539575;539576;539577;539578;539579;539580;539581;539582;539583;539584;539585;539586;539587;539588;539589;539590;539591;539592;539593;539594;539595;539596;539597;539598;539599;539600;539601;539602;539603;539604;539605;539606;539607;539608;539609;539610;539611;539612;539613;539614;539615;539616;539617;539618;539619;539620;539621;539622;539623;539624;539625;539626;539627;539628;539629;539630;539631;539632;539633;539634;539635;539636;539637;539638;539639;539640;539641;539642;539643;539644;539645;539646;539647;539648;539649;539650;539651;539652;539653;539654;539655;539656;539657;539658;539659;539660;539661;539662;539663;539664;539665;539666;539667;539668;539669;539670;539671;539672;539673;555282;584657;584658;584659;584660;584661;584662;584663;584664;584665;584666;584667;584668;584669;584670;584671;584672;584673;584674;584675;584676;584677;584678;584679;584680;584681;584682;584683;584684;584685;584686;638821;638822;638823;638824;638825;638826;638827;638828;638829;638830;638831;638832;638833;638834;638835;638836;638837;638838;638839;638840;638841;638842;638843;638844;638845;638846;638847;638848;638849;638850;638851;638852;638853;638854;638855;638856;638857;638858;638859;638860;638861;638862;638863;638864;638865;638866;638867;638868;638869;638870;638871;638872;638873;638874;638875;638876;638877;638878;638879;638880;638881;638882;638883;638884;638885;638886;638887;638888;638889;638890;638891;638892;638893;638894;638895;638896;638897;638898;638899;638900;638901;638902;638903;638904;638905;638906;638907;638908;638909;638910;638911;638912;638913;638914;638915;638916;638917;638918;638919;638920;638921;638922;638923;638924;638925;638926;638927;638928;638929;638930;638931;638932;638933;638934;638935;638936;638937;638938;638939;684919;684920;684921;684922;684923;684924;684925;684926;684927;684928;684929;684930;684931;684932;684933;684934;684935;684936;684937;684938;684939;684940;684941;684942;684943;684944;684945;684946;684947;684948;684949;684950;684951;684952;684953;684954;684955;684956;684957;684958;684959;684960;684961;684962;684963;684964;684965;684966;684967;684968;684969;684970;684971;684972;744147;744148;744149;744150;744151;744152;744153;744154;744155;744156;744157;744158;744159;744160;744161;744162;744163;744164;744165;744166;744167;744168;744169;744170;744171;744172;744173;744174;744175;744176;744177;744178;744179;744180;744181;744182;744183;744184;744185;744186;744187;744188;744189;744190 | HP15: 18280;18364;58988;60559;60607;60610;64707;129949;132745;142549;143148;145268;165387;165418;213255;213595;244003;254402;323927;323951;370673;380807;380824;405408;441918;472189;492903;539556;539662;555282;584672;638876;638935;638939;684947;744162;744190 | HQ15: 275;276;277;278;279;280 | HR15: 1558;1559;1560;1561;1562;1563;1564;1565;1566 | HS15: 50;101;258;293;356;380 | HT15: 1;36;154;302;313;377;398;413;425 | HU15: 68606500000 | HV15: 57652500000 | HW15: 1.015111667e+11 | HX15: 5.862366667e+10 | HY15: 0.5652212653 | HZ15: 0.02410003624
